{"text_format":"1","workbook":"xlsx","n_sheets":98,"sheets":["main","main0","buffer","log","101FieldTable","102FieldnumTable","103Filedowner","104Fieldlink","syukka_nipopu","2014SyukkaTable","2015SagyouHistory","2016roumulist","2017JutakuSyukei","207syukkamemberlist","html","pc01_101FieldTable","pc02_101FieldTable","pc03_101FieldTable","pc04_101FieldTable","pc05_101FieldTable","2011SagyouReport","pc01_2011SagyouReport","pc02_2011SagyouReport","pc03_2011SagyouReport","pc04_2011SagyouReport","pc05_2011SagyouReport","2012RoumReport","pc01_2012RoumReport","pc02_2012RoumReport","pc03_2012RoumReport","pc04_2012RoumReport","pc05_2012RoumReport","2013MachineReport","pc01_2013MachineReport","pc02_2013MachineReport","pc03_2013MachineReport","pc04_2013MachineReport","pc05_2013MachineReport","memo","csvfile","productlabel","label","label_data","CSV","RoumuBuffer","nippou","kinmunippou","nippou2","202MemberList","203UnitList","204SagyouList","205PCList","206Sagyoulist2","207UnitList","timeinput","timeinput2","901IshokuList","902ExcrementList","903ManureList","904WeedKillerlist","905InsecticideList","906CropTimeList","907RiceAgeList","908GrassDamageList","909GrassKindList","910DiseaseDamageList","911DiseaseKindList","912FallDamageList","913FiledConditionList","914MachineKindList","914MachineKindList2","914MachineKindList3","915HantenKindList","916TenkaUseList","917BacteriaList","918WrapLayerList","919WeightKindList","920MoistureKindList","921RadiationJudgeList","922KeepPlaceList","923DressingList","924DrugList","925TransplantList","926HarvestList","930cornharvesterList","931corncrusherList","940memolist","941fielddatalist","942Machindeconditionlist","Sheet3","Sheet10","Sheet6","Sheet11","Sheet14","Sheet7","sqlite","Label_serial","croplist"],"not_rendered":{"charts":0,"images":7,"macros":1,"external_links":0,"defined_names":14,"comments":0,"pivot_tables":0},"unopened":[],"bounds":{"document_bytes":16777216,"sheet_cells":100000,"rows_first":2000,"rows_last":500,"rows_between":2000,"halvings":0,"cell_chars":16384,"cell_head_chars":4096},"cells_cut":0,"cells_raw":0,"read":"whole","date_system":"1900"}

{"sheet":"main","index":0,"n_rows":152,"n_cols":59,"rows_kept":152,"cut":false,"hidden":false,"merged":[]}
[]
[]
[null,"生産履歴管理システム　Windows/EXCEL版「モォーばいる」 "]
[]
[]
[]
[]
[]
[]
[]
[]
[]
[]
[]
[]
[]
[]
[]
[]
[]
[]
[]
[null,null,"現在作業中の圃場情報"]
[]
[null,null,null,null,null,null,71]
[null,null,null,"起動回数カウンタ",null,null,0,null,"選択年",2020,null,"データベース取扱い年次"]
[null,null,null,"作業委託者名",null,null,null,null,"天気",null,null,"開始",2017]
[null,null,null,"作業者名",null,null,null,null,"圃場状態",null,null,"最終",2025]
[null,null,null,"作業ユニット名",null,null,0,"mainpc",null,2020]
[null,null,null,"作業日",null,null,null,null,"作業内容"]
[null,null,null,"作業日報の主キー",null,null,null,null,null,",圃場１"]
[null,null,null,"作業日報の戻りフラグ",null,null,0,null,"作業代表者","高久忠"]
[null,null,null,"作業日報の戻りフラグその２"]
[null,null,null,"登録作業者数",null,null,null,null,null,"01:00:00"]
[null,null,null,"作業日報の戻りフラグその3"]
[null,null,null,"圃場番号の主キー",null,null,null,null,"ロールシリアル番号",null,393]
[null,null,null,"作業日報から精算履歴管理フラグ",null,null,null,null,"ロール個数",null,0]
[null,null,"作業者","作業ユニット名",null,null,null,null,null,"委託者","圃場面積","作物","作業内容","完了","開始時間","終了時間","天気","圃場状態","作業機械","'軽油","ガソリン","'オイル","ネット","'ラップフィルム","'乳酸菌","ロール数","質量",null,"備考","備考","アワーメータ","Listindex",null,null,"備考"]
[]
[]
[]
[]
[]
[]
[]
[1,{"$f":"A46+1","v":2},{"$f":"B46+1","v":3},4,5,6,7,8,9,10,11,12,{"$f":"L46+1","v":13},14,15,16,17,18,19,20,21,22,23,24,25,26,27,28,29,30,31,32,33,34,35]
[null,null,null,"作業日報で入力中の主キー",null,null,1]
[null,null,null,"労務管理で入力中の主キー",null,null,12]
[null,null,null,"生産履歴管理用主キー"]
[]
[null,null,null,"入力中テキストの情報"]
[null,null,null,"userform名","UserForm26"]
[null,null,null,"label名",78]
[null,null,null,"入力名"]
[]
[null,null,null,"入力数字のフラグ",null,10]
[null,null,null,"入力行のフラグ",1]
[]
[null,null,null,"入力主キーのバックアップ"]
[null,null,1]
[null,null,2]
[null,null,3]
[null,null,4]
[null,null,5]
[null,null,6]
[null,null,null,127,676]
[null,null,null,127,544]
[null,null,null,586]
[null,null,null,778]
[null,null,null,"2018-02-04"]
[null,null,null,null,1,31]
[]
[null,null,"作業日","2020-09-03"]
[null,null,"作業機","開始時間","終了時間","チェックボックス","昼休み","機械利用"]
[null,0,null,null,null,null,null,null,null,null,null,null,null,null,null,null,null,null,null,null,null,null,null,null,null,null,null,null,null,null,null,null,null,null,null,false,false,false,false,false,false,false,false,false,false,false,false,false,false,false,false,false,false,false,false,false,false,false,false]
[null,1,null,null,null,null,null,null,null,null,null,null,null,null,null,null,null,null,null,null,null,null,null,null,null,null,null,null,null,null,null,null,null,null,null,false,false,false,false,false,false,false,false,false,false,false,false,false,false,false,false,false,false,false,false,false,false,false,false]
[null,2,null,null,null,null,null,null,null,null,null,null,null,null,null,null,null,null,null,null,null,null,null,null,null,null,null,null,null,null,null,null,null,null,null,false,false,false,false,false,false,false,false,false,false,false,false,false,false,false,false,false,false,false,false,false,false,false,false]
[null,3]
[null,4]
[null,5]
[]
[]
[null,null,null,"RFID番頭と名前",null,null,null,"RFID"]
[null,null,null,null,null,null,1,"012E412935938036"]
[null,null,null,null,null,null,{"$f":"G84+1","v":2},"012E413566D4663A"]
[null,null,null,"戻りのフラグ",null,null,{"$f":"G85+1","v":3},"012E413566D4529C"]
[null,null,null,"Userform31からUserform3",null,null,4,"012E413566D45434"]
[null,null,null,null,null,null,5,"012E412935938035"]
[null,null,null,null,null,null,6,"012E413566D46776"]
[null,null,null,null,null,null,7,"012E413566D46775"]
[null,null,null,null,null,null,8,"012E413566D46766"]
[null,null,null,null,null,null,9,"012E413566D4661A"]
[null,null,null,null,null,null,10,"012E413566D46639"]
[null,null,null,null,null,null,11,"012E413566D45678"]
[null,null,null,null,null,null,12,"012E413566D45679"]
[null,null,null,null,null,null,13,"012E413566D455A1"]
[null,null,null,null,null,null,14,"012E413566D455A0"]
[null,null,null,null,null,null,15,"012E413566D45093"]
[null,null,null,null,null,null,16,"012E413566D45669"]
[null,null,null,null,null,null,17,"012E413566D44BBD"]
[null,null,null,null,null,null,18,"012E413566D44AB1"]
[null,null,null,null,null,null,19,"012E413566D44A9D"]
[null,null,null,null,null,null,20,"012E413566D45581"]
[null,null,null,"集計用"]
[null,null,null,"作業者","作業者１"]
[null,null,null,"年",2019]
[null,null,null,"月",12]
[null,null,null,null,1]
[null,null,null,null,"0.5"]
[null,null,null,"単価",1000]
[null,null,null,"時間外単価",1000]
[null,null,null,"日",1]
[]
[null,null,null,"重複日","2019-10-27"]
[]
[]
[null,null,"受託作業の集計"]
[null,null,null,"年"]
[null,null,null,"作業内容"]
[null,null,null,"受託者"]
[null,null,null,"受託内容"]
[null,null,null,null,"wcsイネ","販売用"]
[]
[null,null,null,null,"有本孝之"]
[null,null,null,null,"2018-10-21"]
[null,null,null,null,"汎用型１"]
[null,null,null,null,"wcsイネ"]
[null,null,null,null,58]
[null,null,null,null,350]
[]
[]
[null,null,"圃場番号"]
[null,null,null,null,"有本孝之"]
[null,null,null,null,2019]
[]
[null,null,null,"keynum",162]
[null,null,null,"buffer",0]
[]
[]
[null,null,"作業受託関連　202008追加"]
[null,null,null,"基本料金単価",0]
[null,null,null,"ロール単価",2600]
[null,null,null,"消費税",10]
[]
[]
[null,null,"シリアル番号","全体","イネ","トウモロコシ","その他"]
[null,null,"S/N　トータル",95,95,0,0]
[null,null,"SN1",95,95,0,0]
[null,null,"SN2",0,0,0,0]
[null,null,"SN3",0,0,0,0]
[null,null,"SN4",0,0,0,0]
[null,null,"SN5",0,0,0,0]

{"sheet":"main0","index":1,"n_rows":15,"n_cols":4,"rows_kept":15,"cut":false,"hidden":false,"merged":[]}
[]
[]
[]
[]
[]
[]
[]
[]
[]
[]
[]
[]
[]
[]
[null,null,null,"mobile_v1_10.xlsm"]

{"sheet":"buffer","index":2,"n_rows":0,"n_cols":0,"rows_kept":0,"cut":false,"hidden":false,"merged":[]}

{"sheet":"log","index":3,"n_rows":7,"n_cols":5,"rows_kept":7,"cut":false,"hidden":false,"merged":[]}
["入力ログ"]
["serial","date","input counter","File size"]
[1,"2021-03-03T16:33:57","Open file",2297545,"PC01"]
[2,"2023-01-11T17:04:53","Open file",1413659,"mainpc"]
[3,"2023-01-11T17:07:28","Close file",1413659,"mainpc"]
[4,"2023-01-12T07:54:17","Open file",1438871,"mainpc"]
[5,"2023-01-12T07:55:23","Close file",1438871,"mainpc"]

{"sheet":"101FieldTable","index":4,"n_rows":30,"n_cols":192,"rows_kept":30,"cut":false,"hidden":false,"merged":[]}
[1,2,3,4,5,6,7,8,8,10,11,12,13,14,15,16,17,14,19,20,21,22,23,24,25,26,27,14,14,30,15,32,15,34,35,36,37,37,39,40,41,42,43,44,45,46,46,48,49,50,51,52,53,54,54,56,57,58,59,60,61,62,63,64,65,66,67,68,69,70,71,72,73,74,75,76,77,78,79,80,81,82,83,84,85,86,87,88,89,90,91,92,93,94,95,96,97,98,99,100,101,102,103,104,105,106,107,108,109,42934,null,1,113,114,1,116,117,118,119,1,0,122,123,124,125,1,1,128,129,130,131,1,133,134,135,136,1,138,139,140,141,142,143,144,145,146,147,148,149,150,151,152,153,154,155,156,157,158,159,160,161,162,163,164,165,166,167,168,169,170,171,172,173,174,175,176,177,178,179,180,181,182,183,184,185,186,187,188,189,190,191,192]
["名称","圃場台帳",null,null,null,null,195,"名称",true,null,null,null,null,null,null,null,null,null,null,null,null,null,null,null,null,null,null,null,null,null,null,null,null,null,null,null,null,null,null,null,null,null,null,null,null,null,null,null,null,null,null,null,null,null,null,null,null,null,null,null,null,null,null,null,null,null,null,null,null,null,null,null,null,null,null,null,null,null,null,null,null,null,null,null,null,null,null,null,null,null,null,null,null,null,null,null,null,null,null,null,null,null,null,null,null,null,null,null,null,42934,null,0,null,null,0,null,null,null,null,0,0,null,null,null,null,0,0,null,null,null,null,0,null,null,null,null,0,null,null,null,null,null,null,3,5]
["ファイル名","101FieldTable.csv",null,null,null,null,null,"ファイル名"]
["説明","生産管理者が管理する圃場および生産計画に関する情報",null,null,null,null,null,"説明"]
["1",2,3,4,5,6,7,8,9,10,11,12,13,14,15,16,17,14,19,20,21,22,23,24,25,26,27,28,29,30,31,32,15,34,35,36,37,37,39,40,41,42,43,44,45,46,46,48,49,50,51,52,53,54,54,56,57,58,59,60,61,62,63,64,65,66,67,68,69,70,71,72,73,74,75,76,77,78,79,80,81,82,83,84,85,86,87,88,89,90,91,92,93,94,95,96,97,98,99,100,101,102,103,104,105,106,107,108,109,110,111,112,113,114,115,116,117,118,119,120,121,122,123,124,125,126,127,128,129,130,131,132,133,134,135,136,137,138,139,140,141,142,143,144,145,146,147,148,149,150,151,152,153,154,155,156,157,158,159,160,161,162,163,164,165,166,167,168,169,170,171,172,173,174,175,176,177,178,179,180,181,182,183,184,185,186,187,188,189,190,191,192]
["主キー","圃場番号","栽培番号","収穫有無","シリアル番号","地区・団地名","圃場名","収穫日フラグ","作業終了フラグ","地番（都道府県）","地番（市区町村）","地番（地番）","生産地名","地積（㎡）","地権者名","フリガナ",null,"地積（㎡）","地図URL","圃場コメント","生産年度","作期番号","生産名称","収穫予定日","製品名","作物名","品種名","地積（㎡）","地積（㎡）","生産予定数量(kg)","地権者名","収穫調製者名","地権者名","購入者名","生産計画コメント","移植・直播更新時刻","移植・直播記録者名","移植･直播日","移植･直播種別","苗箱数（個）","播種量（Kg）","移植・直播作業員名","移植･直播コメント","移植・直播写真","堆肥更新時刻","堆肥記録者名","堆肥散布日","畜種","堆肥散布量(t/10a)","堆肥作業員名","堆肥コメント","堆肥写真","基肥更新時刻","基肥記録者名","基肥散布日","基肥肥料名","基肥散布量(kg/10a)","基肥作業員名","基肥コメント","基肥写真","追肥1更新時刻","追肥1記録者名","追肥1散布日","追肥1肥料名","追肥1散布量(kg/10a)","追肥1作業員名","追肥1コメント","追肥1写真","追肥2更新時刻","追肥2記録者名","追肥2散布日","追肥2肥料名","追肥2散布量(kg/10a)","追肥2作業員名","追肥2コメント","追肥2写真","除草1更新時刻","除草1記録者名","除草1散布日","除草1薬剤名","除草1散布量(kg/10a)","除草1作業員名","除草1コメント","除草1写真","除草2更新時刻","除草2記録者名","除草2散布日","除草2薬剤名","除草2散布量(kg/10a)","除草2作業員名","除草2コメント","除草2写真","殺虫1更新時刻","殺虫1記録者名","殺虫1散布日","殺虫1薬剤名","殺虫1散布量(kg/10a)","殺虫1作業員名","殺虫1コメント","殺虫1写真","殺虫2更新時刻","殺虫2記録者名","殺虫2散布日","殺虫2薬剤名","殺虫2散布量(kg/10a)","殺虫2作業員名","殺虫2コメント","殺虫2写真","収穫更新日時","収穫開始日","収穫終了日","収穫時刻","熟度更新時刻","熟度記録者名","収穫時熟度","収穫時熟度コメント","収穫時熟度写真","雑草更新時刻","雑草記録者名","雑草の発生程度","主な雑草の種類","雑草被害コメント","雑草被害写真","病害虫更新時刻","病害虫記録者名","病害虫の被害程度","主な病害虫の種類","病害虫被害コメント","病害虫被害写真","倒伏更新時刻","倒伏記録者名","倒伏の被害程度","倒伏被害コメント","倒伏被害写真","圃場状態更新時刻","圃場状態記録者名","圃場状態","圃場状態コメント","圃場状態写真","収穫梱包更新時刻","収穫梱包記録者名","専用収穫機体系","反転の有無","反転回数","予乾日数","ロール直径","ロール高さ","添加剤使用","添加剤名","収穫梱包作業員名","収穫梱包コメント","収穫梱包写真","密封更新時刻","密封記録者名","フィルム巻き数","密封作業員名","密封コメント","重量更新時刻","重量記録者名","平均重量(KG)","重量算出方法","重量作業員名","重量コメント","水分更新時刻","水分記録者名","水分量(％)","水分算出方法","水分作業員名","水分コメント","放射線更新時刻","放射線記録者名","最大放射線量(Bq)","放射線量作業員名","放射線量コメント","保管更新時刻","保管記録者名","保管ロール数","保管場所","保管作業員名","保管コメント","検品更新時刻","検品記録者名","保管場所","検品作業員名","出荷更新時刻","出荷記録者名","出荷先","出荷作業員名",null,null,"作業ユニット名"]
[1,1,2017,1,null,"那須の農",1,null,null,"栃木県",null,null,null,null,"その他",null,null,0,null,null,null,null,null,null,null,null,null,0,0,null,"その他",null,null,null,null,null,null,null,null,null,null,null,null,null,null,null,null,null,null,null,null,null,null,null,null,null,null,null,null,null,null,null,null,null,null,null,null,null,null,null,null,null,null,null,null,null,null,null,null,null,null,null,null,null,null,null,null,null,null,null,null,null,null,null,null,null,null,null,null,null,null,null,null,null,null,null,null,null,null,null,null,null,null,null,null,null,null,null,null,null,null,null,null,null,null,null,null,null,null,null,null,null,null,null,null,null,null,null,null,null,null,null,null,null,null,null,null,null,null,null,null,null,null,null,null,null,null,null,null,null,null,null,null,null,null,null,null,null,null,null,null,null,null,null,null,null,null,null,null,null,null,null,null,null,null,null,null,null,null,"那須の農1"]
[2,2,2017,1,null,"那須の農",1,null,null,"栃木県","那須町","大字寺子乙3215－1","那須町寺子乙",100,"圃場１","ﾎｼﾞｮｳ1",null,20,null,null,2017,1,"2016年度夏作-WCS用イネ",null,"稲発酵粗飼料","wcsイネ","たちすがた",20,20,null,"千本松太郎","那須の農","千本松太郎","--","--","--",null,null,null,"--",null,"--","--","--","--","--","--","--","--","--","--","--","--","--","--","--","--","--","--","--","--","--","--","--","--","--","--","--","--","--","--","--","--","--","--","--","--","--","--","--","--","--","--","--","--","--","--","--","--","--","--","--","--","--","--","--","--","--","--","--","--","--","--","--","--","--","--","--","--","--","--","--","--","--","--","--","--","--","--","--","--","--","--","--","--","--","--","--","--","--","--","--","--","--","--","--","--","--","--","--","--","--","--","--","--","--","--","--","--","--","--","--","--","--","--","--","--","--","--","--","--","--","--","--","--","--","--","--","--","--","--","--","--","--","--","--",4,"--","--","--","--","--","--","--","--","--","--","--","--","那須の農1","--","--"]
[3,3,2017,1,null,"那須の農",1,null,null,"栃木県","那須町","大字寺子乙3215－16","那須町寺子乙",10,"圃場２","ﾎｼﾞｮｳ2",null,10,null,null,2017,1,"2016年度夏作-WCS用イネ",null,"稲発酵粗飼料","wcsイネ","たちすがた",10,10,null,"赤田太郎","那須の農","赤田太郎",null,null,null,null,null,null,null,null,null,null,null,null,null,null,null,null,null,null,null,null,null,null,null,null,null,null,null,null,null,null,null,null,null,null,null,null,null,null,null,null,null,null,null,null,null,null,null,null,null,null,null,null,null,null,null,null,null,null,null,null,null,null,null,null,null,null,null,null,null,null,null,null,null,null,null,null,null,null,null,null,null,null,null,null,null,null,null,null,null,null,null,null,null,null,null,null,null,null,null,null,null,null,null,null,null,null,null,null,null,null,null,null,null,null,null,null,null,null,null,null,null,null,null,null,null,null,null,null,null,null,null,null,null,null,null,null,null,null,null,null,null,null,null,null,null,null,null,null,null,null,null,null,null,null,null,null,"那須の農1"]
[4,4,2017,1,null,"那須の農",1,null,null,"栃木県","那須町","大字寺子乙3215－1","那須町寺子乙",457.8,"圃場３","ﾎｼﾞｮｳ3",2017,100,null,null,2017,null,null,null,"稲発酵粗飼料","wcsイネ","たちすがた",100,100,null,"乗瀬一","那須の農","乗瀬一",null,null,null,null,null,null,null,null,null,null,null,null,null,null,null,null,null,null,null,null,null,null,null,null,null,null,null,null,null,null,null,null,null,null,null,null,null,null,null,null,null,null,null,null,null,null,null,null,null,null,null,null,null,null,null,null,null,null,null,null,null,null,null,null,null,null,null,null,null,null,null,null,null,null,null,null,null,null,null,null,null,null,null,null,null,null,null,null,null,null,null,null,null,null,null,null,null,null,null,null,null,null,null,null,null,null,null,null,null,null,null,null,null,null,null,null,null,null,null,null,null,null,null,null,null,null,null,null,null,null,null,null,null,null,null,null,null,null,null,null,null,null,null,null,null,null,null,null,null,null,null,null,null,null,null,null,"那須の農1"]
[5,1,2018,1,null,"那須の農",1,null,null,"栃木県","那須町","大字寺子乙3215－2","那須町寺子乙",246.5,"千本松太郎","ｾﾝﾎﾞﾝﾏﾂﾀﾛｳ",2018,33,null,null,2018,1,null,null,"稲発酵粗飼料","wcsイネ","たちすがた",33,33,null,"千本松太郎","那須の農","千本松太郎",null,null,null,null,null,null,null,null,null,null,"無",null,null,null,null,null,null,null,"無",null,null,null,null,null,null,null,"無",null,null,null,null,null,null,null,"無",null,null,null,null,null,null,null,"無",null,null,null,null,null,null,null,"無",null,null,null,null,null,null,null,"無",null,null,null,null,null,null,null,"無",null,null,null,null,null,null,null,"無",null,null,null,null,null,null,null,null,"無",null,null,null,null,null,"無",null,null,1,1,null,"無",null,null,1,null,"無",null,null,null,null,null,null,null,null,null,null,null,null,null,null,null,null,null,null,null,null,null,null,null,null,null,null,null,null,null,null,null,null,null,null,null,null,null,null,null,null,null,null,9,null,null,null,null,null,null,null,null,null,null,null,null,"那須の農1"]
[6,2,2018,1,null,"那須の農",1,null,null,"栃木県","那須町","大字寺子乙3309-5","那須町大字寺子乙3309-5",31,"赤田太郎","ｱｶﾀﾞﾀﾛｳ",2018,20,null,null,2018,1,null,null,"稲発酵粗飼料","wcsイネ","たちすがた",20,20,null,"赤田太郎","那須の農","赤田太郎",null,null,null,null,null,null,null,null,null,null,"無",null,null,null,null,null,null,null,"無",null,null,null,null,null,null,null,"無",null,null,null,null,null,null,null,"無",null,null,null,null,null,null,null,"無",null,null,null,null,null,null,null,"無",null,null,null,null,null,null,null,"無",null,null,null,null,null,null,null,"無",null,null,null,null,null,null,null,"無",null,null,null,null,null,null,null,null,"無",null,null,null,null,null,"無",null,null,null,null,null,"無",null,null,null,null,"無",null,null,null,null,"無",null,null,null,null,null,null,null,null,null,null,null,null,"無",null,null,null,null,null,null,null,null,null,null,null,null,null,null,null,null,null,null,null,null,null,null,null,null,4,null,null,null,null,null,null,null,null,null,null,null,null,"那須の農1"]
[7,3,2018,1,null,"那須の農",1,null,null,"栃木県","那須町","大字寺子乙　2916","那須町大字寺子乙　2916",60,"乗瀬一","ﾉﾘｾﾊｼﾞﾒ",2018,30,null,null,2018,1,null,null,"稲発酵粗飼料","wcsイネ","たちすがた",30,30,null,"乗瀬一","那須の農","乗瀬一",null,null,null,null,null,null,null,null,null,null,"無",null,null,null,null,null,null,null,"無",null,null,null,null,null,null,null,"無",null,null,null,null,null,null,null,"無",null,null,null,null,null,null,null,"無",null,null,null,null,null,null,null,"無",null,null,null,null,null,null,null,"無",null,null,null,null,null,null,null,"無",null,null,null,null,null,null,null,"無",null,null,null,null,null,null,null,null,"無",null,null,null,null,null,"無",null,null,null,null,null,"無",null,null,null,null,"無",null,null,null,null,"無",null,null,null,null,null,null,null,null,null,null,null,null,"無",null,null,null,null,null,null,null,null,null,null,null,null,null,null,null,null,null,null,null,null,null,null,null,null,4,null,null,null,null,null,null,null,null,null,null,null,null,"那須の農1"]
[8,1,2019,1,null,"那須の農",1,null,null,"栃木県","那須町","大字寺子乙3215－1","那須町寺子乙",460,"千本松太郎","ｾﾝﾎﾞﾝﾏﾂﾀﾛｳ",2019,100,null,null,2019,null,null,null,"稲発酵粗飼料","wcsイネ","たちすがた",100,100,null,"千本松太郎","那須の農","千本松太郎",null,null,null,null,null,null,null,null,null,null,null,null,null,null,null,null,null,null,null,null,null,null,null,null,null,null,null,null,null,null,null,null,null,null,null,null,null,null,null,null,null,null,null,null,null,null,null,null,null,null,null,null,null,null,null,null,null,null,null,null,null,null,null,null,null,null,null,null,null,null,null,null,null,null,null,null,null,null,null,null,null,null,null,null,null,null,null,null,null,null,null,null,null,null,null,null,null,null,null,null,null,null,null,null,null,null,null,null,null,null,null,null,null,null,null,null,null,null,null,null,null,null,null,null,null,null,null,null,null,null,null,null,null,null,null,null,null,null,null,null,null,null,null,null,null,null,null,null,null,null,null,null,null,null,null,null,"那須の農1"]
[9,2,2019,1,null,"那須の農",1,null,null,"栃木県","那須町","大字寺子乙3215－2","那須町寺子乙",215.4,"赤田太郎","ｱｶﾀﾞﾀﾛｳ",2019,33,null,null,2019,1,null,null,"稲発酵粗飼料","wcsイネ","たちすがた",33,33,null,"赤田太郎","那須の農","赤田太郎",null,null,null,null,null,null,null,null,null,null,"無",null,null,null,null,null,null,null,"無",null,null,null,null,null,null,null,"無",null,null,null,null,null,null,null,"無",null,null,null,null,null,null,null,"無",null,null,null,null,null,null,null,"無",null,null,null,null,null,null,null,"無",null,null,null,null,null,null,null,"無",null,null,null,null,null,null,null,"無",null,null,null,null,null,null,null,null,"無",null,null,null,null,null,"無",null,null,1,1,null,"無",null,null,1,null,"無",null,null,null,null,null,null,null,null,null,null,null,null,null,null,null,null,null,null,null,null,null,null,null,null,null,null,null,null,null,null,null,null,null,null,null,null,null,null,null,null,null,null,9,null,null,null,null,null,null,null,null,null,null,null,null,"那須の農1"]
[10,3,2019,1,null,"那須の農",1,null,null,"栃木県","那須町","大字寺子乙3309-5","那須町大字寺子乙3309-5",31,"乗瀬一","ﾉﾘｾﾊｼﾞﾒ",2019,20,null,null,2019,1,null,null,"稲発酵粗飼料","wcsイネ","たちすがた",20,20,null,"乗瀬一","那須の農","乗瀬一",null,null,null,null,null,null,null,null,null,null,"無",null,null,null,null,null,null,null,"無",null,null,null,null,null,null,null,"無",null,null,null,null,null,null,null,"無",null,null,null,null,null,null,null,"無",null,null,null,null,null,null,null,"無",null,null,null,null,null,null,null,"無",null,null,null,null,null,null,null,"無",null,null,null,null,null,null,null,"無",null,null,null,null,null,null,null,null,"無",null,null,null,null,null,"無",null,null,null,null,null,"無",null,null,null,null,"無",null,null,null,null,"無",null,null,null,null,null,null,null,null,null,null,null,null,"無",null,null,null,null,null,null,null,null,null,null,null,null,null,null,null,null,null,null,null,null,null,null,null,null,4,null,null,null,null,null,null,null,null,null,null,null,null,"那須の農1"]
[11,1,2020,1,null,"那須の農",1,null,null,"栃木県",null,null,null,null,"その他",null,2020,0,null,null,2020,null,null,null,null,null,null,0,0,null,"その他",null,null,null,null,null,null,null,null,null,null,null,null,null,null,null,null,null,null,null,null,null,null,null,null,null,null,null,null,null,null,null,null,null,null,null,null,null,null,null,null,null,null,null,null,null,null,null,null,null,null,null,null,null,null,null,null,null,null,null,null,null,null,null,null,null,null,null,null,null,null,null,null,null,null,null,null,null,null,null,null,null,null,null,null,null,null,null,null,null,null,null,null,null,null,null,null,null,null,null,null,null,null,null,null,null,null,null,null,null,null,null,null,null,null,null,null,null,null,null,null,null,null,null,null,null,null,null,null,null,null,null,null,null,null,null,null,null,null,null,null,null,null,null,null,null,null,null,null,null,null,null,null,null,null,null,null,null,null,"那須の農1"]
[12,2,2020,1,null,"那須の農",1,null,null,"栃木県","那須町","大字寺子乙3215－1","那須町寺子乙",100,"圃場１","ﾎｼﾞｮｳ1",2020,20,null,null,2020,1,"2016年度夏作-WCS用イネ",null,"稲発酵粗飼料","wcsイネ","たちすがた",20,20,null,"千本松太郎","那須の農","千本松太郎","--","--","--",null,null,null,"--",null,"--","--","--","--","--","--","--","--","--","--","--","--","--","--","--","--","--","--","--","--","--","--","--","--","--","--","--","--","--","--","--","--","--","--","--","--","--","--","--","--","--","--","--","--","--","--","--","--","--","--","--","--","--","--","--","--","--","--","--","--","--","--","--","--","--","--","--","--","--","--","--","--","--","--","--","--","--","--","--","--","--","--","--","--","--","--","--","--","--","--","--","--","--","--","--","--","--","--","--","--","--","--","--","--","--","--","--","--","--","--","--","--","--","--","--","--","--","--","--","--","--","--","--","--","--","--","--","--","--","--","--","--","--","--","--",4,"--","--","--","--","--","--","--","--","--","--","--","--","那須の農1","--","--"]
[13,3,2020,1,null,"那須の農",1,null,null,"栃木県","那須町","大字寺子乙3215－16","那須町寺子乙",10,"圃場２","ﾎｼﾞｮｳ2",2020,10,null,null,2020,1,"2016年度夏作-WCS用イネ",null,"稲発酵粗飼料","wcsイネ","たちすがた",10,10,null,"赤田太郎","那須の農","赤田太郎",null,null,null,null,null,null,null,null,null,null,null,null,null,null,null,null,null,null,null,null,null,null,null,null,null,null,null,null,null,null,null,null,null,null,null,null,null,null,null,null,null,null,null,null,null,null,null,null,null,null,null,null,null,null,null,null,null,null,null,null,null,null,null,null,null,null,null,null,null,null,null,null,null,null,null,null,null,null,null,null,null,null,null,null,null,null,null,null,null,null,null,null,null,null,null,null,null,null,null,null,null,null,null,null,null,null,null,null,null,null,null,null,null,null,null,null,null,null,null,null,null,null,null,null,null,null,null,null,null,null,null,null,null,null,null,null,null,null,null,null,null,null,null,null,null,null,null,null,null,null,null,null,null,null,null,null,"那須の農1"]
[14,4,2020,1,null,"那須の農",1,null,null,"栃木県","那須町","大字寺子乙3215－1","那須町寺子乙",457.8,"圃場３","ﾎｼﾞｮｳ3",2020,100,null,null,2020,null,null,null,"稲発酵粗飼料","wcsイネ","たちすがた",100,100,null,"乗瀬一","那須の農","乗瀬一",null,null,null,null,null,null,null,null,null,null,null,null,null,null,null,null,null,null,null,null,null,null,null,null,null,null,null,null,null,null,null,null,null,null,null,null,null,null,null,null,null,null,null,null,null,null,null,null,null,null,null,null,null,null,null,null,null,null,null,null,null,null,null,null,null,null,null,null,null,null,null,null,null,null,null,null,null,null,null,null,null,null,null,null,null,null,null,null,null,null,null,null,null,null,null,null,null,null,null,null,null,null,null,null,null,null,null,null,null,null,null,null,null,null,null,null,null,null,null,null,null,null,null,null,null,null,null,null,null,null,null,null,null,null,null,null,null,null,null,null,null,null,null,null,null,null,null,null,null,null,null,null,null,null,null,null,"那須の農1"]
[15,1,2020,1,null,"那須の農",1,null,null,"栃木県","那須町","大字寺子乙3215－1","那須町寺子乙",460,"千本松太郎","ｾﾝﾎﾞﾝﾏﾂﾀﾛｳ",2020,100,null,null,2020,null,null,null,"稲発酵粗飼料","wcsイネ","たちすがた",100,100,null,"千本松太郎","那須の農","千本松太郎",null,null,null,null,null,null,null,null,null,null,null,null,null,null,null,null,null,null,null,null,null,null,null,null,null,null,null,null,null,null,null,null,null,null,null,null,null,null,null,null,null,null,null,null,null,null,null,null,null,null,null,null,null,null,null,null,null,null,null,null,null,null,null,null,null,null,null,null,null,null,null,null,null,null,null,null,null,null,null,null,null,null,null,null,null,null,null,null,null,null,null,null,null,null,null,null,null,null,null,null,null,null,null,null,null,null,null,null,null,null,null,null,null,null,null,null,null,null,null,null,null,null,null,null,null,null,null,null,null,null,null,null,null,null,null,null,null,null,null,null,null,null,null,null,null,null,null,null,null,null,null,null,null,null,null,null,"那須の農1"]
[16,2,2020,1,null,"那須の農",1,null,null,"栃木県","那須町","大字寺子乙3215－2","那須町寺子乙",215.4,"赤田太郎","ｱｶﾀﾞﾀﾛｳ",2020,33,null,null,2020,1,null,null,"稲発酵粗飼料","wcsイネ","たちすがた",33,33,null,"赤田太郎","那須の農","赤田太郎",null,null,null,null,null,null,null,null,null,null,"無",null,null,null,null,null,null,null,"無",null,null,null,null,null,null,null,"無",null,null,null,null,null,null,null,"無",null,null,null,null,null,null,null,"無",null,null,null,null,null,null,null,"無",null,null,null,null,null,null,null,"無",null,null,null,null,null,null,null,"無",null,null,null,null,null,null,null,"無",null,null,null,null,null,null,null,null,"無",null,null,null,null,null,"無",null,null,1,1,null,"無",null,null,1,null,"無",null,null,null,null,null,null,null,null,null,null,null,null,null,null,null,null,null,null,null,null,null,null,null,null,null,null,null,null,null,null,null,null,null,null,null,null,null,null,null,null,null,null,9,null,null,null,null,null,null,null,null,null,null,null,null,"那須の農1"]
[17,3,2020,1,null,"那須の農",1,null,null,"栃木県","那須町","大字寺子乙3309-5","那須町大字寺子乙3309-5",31,"乗瀬一","ﾉﾘｾﾊｼﾞﾒ",2020,20,null,null,2020,1,null,null,"稲発酵粗飼料","wcsイネ","たちすがた",20,20,null,"乗瀬一","那須の農","乗瀬一",null,null,null,null,null,null,null,null,null,null,"無",null,null,null,null,null,null,null,"無",null,null,null,null,null,null,null,"無",null,null,null,null,null,null,null,"無",null,null,null,null,null,null,null,"無",null,null,null,null,null,null,null,"無",null,null,null,null,null,null,null,"無",null,null,null,null,null,null,null,"無",null,null,null,null,null,null,null,"無",null,null,null,null,null,null,null,null,"無",null,null,null,null,null,"無",null,null,null,null,null,"無",null,null,null,null,"無",null,null,null,null,"無",null,null,null,null,null,null,null,null,null,null,null,null,"無",null,null,null,null,null,null,null,null,null,null,null,null,null,null,null,null,null,null,null,null,null,null,null,null,4,null,null,null,null,null,null,null,null,null,null,null,null,"那須の農1"]
[18,1,2021,1,null,"那須の農",1,null,null,"栃木県",null,null,null,null,"その他",null,2021,0,null,null,2021,null,null,null,null,null,null,0,0,null,"その他",null,null,null,null,null,null,null,null,null,null,null,null,null,null,null,null,null,null,null,null,null,null,null,null,null,null,null,null,null,null,null,null,null,null,null,null,null,null,null,null,null,null,null,null,null,null,null,null,null,null,null,null,null,null,null,null,null,null,null,null,null,null,null,null,null,null,null,null,null,null,null,null,null,null,null,null,null,null,null,null,null,null,null,null,null,null,null,null,null,null,null,null,null,null,null,null,null,null,null,null,null,null,null,null,null,null,null,null,null,null,null,null,null,null,null,null,null,null,null,null,null,null,null,null,null,null,null,null,null,null,null,null,null,null,null,null,null,null,null,null,null,null,null,null,null,null,null,null,null,null,null,null,null,null,null,null,null,null,"那須の農1"]
[19,2,2021,1,null,"那須の農",1,null,null,"栃木県","那須町","大字寺子乙3215－1","那須町寺子乙",100,"圃場１","ﾎｼﾞｮｳ1",2021,20,null,null,2021,1,"2016年度夏作-WCS用イネ",null,"稲発酵粗飼料","wcsイネ","たちすがた",20,20,null,"千本松太郎","那須の農","千本松太郎","--","--","--",null,null,null,"--",null,"--","--","--","--","--","--","--","--","--","--","--","--","--","--","--","--","--","--","--","--","--","--","--","--","--","--","--","--","--","--","--","--","--","--","--","--","--","--","--","--","--","--","--","--","--","--","--","--","--","--","--","--","--","--","--","--","--","--","--","--","--","--","--","--","--","--","--","--","--","--","--","--","--","--","--","--","--","--","--","--","--","--","--","--","--","--","--","--","--","--","--","--","--","--","--","--","--","--","--","--","--","--","--","--","--","--","--","--","--","--","--","--","--","--","--","--","--","--","--","--","--","--","--","--","--","--","--","--","--","--","--","--","--","--","--",4,"--","--","--","--","--","--","--","--","--","--","--","--","那須の農1","--","--"]
[20,3,2021,1,null,"那須の農",1,null,null,"栃木県","那須町","大字寺子乙3215－16","那須町寺子乙",10,"圃場２","ﾎｼﾞｮｳ2",2021,10,null,null,2021,1,"2016年度夏作-WCS用イネ",null,"稲発酵粗飼料","wcsイネ","たちすがた",10,10,null,"赤田太郎","那須の農","赤田太郎",null,null,null,null,null,null,null,null,null,null,null,null,null,null,null,null,null,null,null,null,null,null,null,null,null,null,null,null,null,null,null,null,null,null,null,null,null,null,null,null,null,null,null,null,null,null,null,null,null,null,null,null,null,null,null,null,null,null,null,null,null,null,null,null,null,null,null,null,null,null,null,null,null,null,null,null,null,null,null,null,null,null,null,null,null,null,null,null,null,null,null,null,null,null,null,null,null,null,null,null,null,null,null,null,null,null,null,null,null,null,null,null,null,null,null,null,null,null,null,null,null,null,null,null,null,null,null,null,null,null,null,null,null,null,null,null,null,null,null,null,null,null,null,null,null,null,null,null,null,null,null,null,null,null,null,null,"那須の農1"]
[21,4,2021,1,null,"那須の農",1,null,null,"栃木県","那須町","大字寺子乙3215－1","那須町寺子乙",457.8,"圃場３","ﾎｼﾞｮｳ3",2021,100,null,null,2021,null,null,null,"稲発酵粗飼料","wcsイネ","たちすがた",100,100,null,"乗瀬一","那須の農","乗瀬一",null,null,null,null,null,null,null,null,null,null,null,null,null,null,null,null,null,null,null,null,null,null,null,null,null,null,null,null,null,null,null,null,null,null,null,null,null,null,null,null,null,null,null,null,null,null,null,null,null,null,null,null,null,null,null,null,null,null,null,null,null,null,null,null,null,null,null,null,null,null,null,null,null,null,null,null,null,null,null,null,null,null,null,null,null,null,null,null,null,null,null,null,null,null,null,null,null,null,null,null,null,null,null,null,null,null,null,null,null,null,null,null,null,null,null,null,null,null,null,null,null,null,null,null,null,null,null,null,null,null,null,null,null,null,null,null,null,null,null,null,null,null,null,null,null,null,null,null,null,null,null,null,null,null,null,null,"那須の農1"]
[22,1,2021,1,null,"那須の農",1,null,null,"栃木県","那須町","大字寺子乙3215－1","那須町寺子乙",460,"千本松太郎","ｾﾝﾎﾞﾝﾏﾂﾀﾛｳ",2021,100,null,null,2021,null,null,null,"稲発酵粗飼料","wcsイネ","たちすがた",100,100,null,"千本松太郎","那須の農","千本松太郎",null,null,null,null,null,null,null,null,null,null,null,null,null,null,null,null,null,null,null,null,null,null,null,null,null,null,null,null,null,null,null,null,null,null,null,null,null,null,null,null,null,null,null,null,null,null,null,null,null,null,null,null,null,null,null,null,null,null,null,null,null,null,null,null,null,null,null,null,null,null,null,null,null,null,null,null,null,null,null,null,null,null,null,null,null,null,null,null,null,null,null,null,null,null,null,null,null,null,null,null,null,null,null,null,null,null,null,null,null,null,null,null,null,null,null,null,null,null,null,null,null,null,null,null,null,null,null,null,null,null,null,null,null,null,null,null,null,null,null,null,null,null,null,null,null,null,null,null,null,null,null,null,null,null,null,null,"那須の農1"]
[23,2,2021,1,null,"那須の農",1,null,null,"栃木県","那須町","大字寺子乙3215－2","那須町寺子乙",215.4,"赤田太郎","ｱｶﾀﾞﾀﾛｳ",2021,33,null,null,2021,1,null,null,"稲発酵粗飼料","wcsイネ","たちすがた",33,33,null,"赤田太郎","那須の農","赤田太郎",null,null,null,null,null,null,null,null,null,null,"無",null,null,null,null,null,null,null,"無",null,null,null,null,null,null,null,"無",null,null,null,null,null,null,null,"無",null,null,null,null,null,null,null,"無",null,null,null,null,null,null,null,"無",null,null,null,null,null,null,null,"無",null,null,null,null,null,null,null,"無",null,null,null,null,null,null,null,"無",null,null,null,null,null,null,null,null,"無",null,null,null,null,null,"無",null,null,1,1,null,"無",null,null,1,null,"無",null,null,null,null,null,null,null,null,null,null,null,null,null,null,null,null,null,null,null,null,null,null,null,null,null,null,null,null,null,null,null,null,null,null,null,null,null,null,null,null,null,null,9,null,null,null,null,null,null,null,null,null,null,null,null,"那須の農1"]
[24,3,2021,1,null,"那須の農","2020-09-03",null,null,"栃木県","那須町","大字寺子乙3309-5","那須町大字寺子乙3309-5",31,"乗瀬一","ﾉﾘｾﾊｼﾞﾒ",2021,20,null,null,2021,1,null,null,"稲発酵粗飼料","wcsイネ","たちすがた",20,20,null,"乗瀬一","那須の農","乗瀬一",null,null,null,null,null,null,null,null,null,null,"無",null,null,null,null,null,null,null,"無",null,null,null,null,null,null,null,"無",null,null,null,null,null,null,null,"無",null,null,null,null,null,null,null,"無",null,null,null,null,null,null,null,"無",null,null,null,null,null,null,null,"無",null,null,null,null,null,null,null,"無",null,null,null,null,null,null,null,"無",null,null,null,null,null,null,null,null,"無",null,null,null,null,null,"無",null,null,null,null,null,"無",null,null,null,null,"無",null,null,null,null,"無",null,null,null,null,null,null,null,null,null,null,null,null,"無",null,null,null,null,null,null,null,null,null,null,null,null,null,null,null,null,null,null,null,null,null,null,null,null,4,null,null,null,null,null,null,null,null,null,null,null,null,"那須の農2020/09/03"]

{"sheet":"102FieldnumTable","index":5,"n_rows":25,"n_cols":192,"rows_kept":25,"cut":false,"hidden":false,"merged":[]}
[1,2,3,4,5,6,7,8,8,10,11,12,13,14,15,16,17,14,19,20,21,22,23,24,25,26,27,14,14,30,15,32,15,34,35,36,37,37,39,40,41,42,43,44,45,46,46,48,49,50,51,52,53,54,54,56,57,58,59,60,61,62,63,64,65,66,67,68,69,70,71,72,73,74,75,76,77,78,79,80,81,82,83,84,85,86,87,88,89,90,91,92,93,94,95,96,97,98,99,100,101,102,103,104,105,106,107,108,109,42934,null,1,113,114,1,116,117,118,119,1,0,122,123,124,125,1,1,128,129,130,131,1,133,134,135,136,1,138,139,140,141,142,143,144,145,146,147,148,149,150,151,152,153,154,155,156,157,158,159,160,161,162,163,164,165,166,167,168,169,170,171,172,173,174,175,176,177,178,179,180,181,182,183,184,185,186,187,188,189,190,191,192]
["名称","圃場台帳",null,null,null,null,14,"名称",true,null,null,null,null,null,null,null,null,null,null,null,null,null,null,null,null,null,null,null,null,null,null,null,null,null,null,null,null,null,null,null,null,null,null,null,null,null,null,null,null,null,null,null,null,null,null,null,null,null,null,null,null,null,null,null,null,null,null,null,null,null,null,null,null,null,null,null,null,null,null,null,null,null,null,null,null,null,null,null,null,null,null,null,null,null,null,null,null,null,null,null,null,null,null,null,null,null,null,null,null,42934,null,0,null,null,0,null,null,null,null,0,0,null,null,null,null,0,0,null,null,null,null,0,null,null,null,null,0,null,null,null,null,null,null,3,5]
["ファイル名","101FieldTable.csv",null,null,null,null,null,"ファイル名"]
["説明","生産管理者が管理する圃場および生産計画に関する情報",null,null,null,null,null,"説明"]
["1",2,3,4,5,6,7,8,9,10,11,12,13,14,15,16,17,14,19,20,21,22,23,24,25,26,27,28,29,30,31,32,15,34,35,36,37,37,39,40,41,42,43,44,45,46,46,48,49,50,51,52,53,54,54,56,57,58,59,60,61,62,63,64,65,66,67,68,69,70,71,72,73,74,75,76,77,78,79,80,81,82,83,84,85,86,87,88,89,90,91,92,93,94,95,96,97,98,99,100,101,102,103,104,105,106,107,108,109,110,111,112,113,114,115,116,117,118,119,120,121,122,123,124,125,126,127,128,129,130,131,132,133,134,135,136,137,138,139,140,141,142,143,144,145,146,147,148,149,150,151,152,153,154,155,156,157,158,159,160,161,162,163,164,165,166,167,168,169,170,171,172,173,174,175,176,177,178,179,180,181,182,183,184,185,186,187,188,189,190,191,192]
["主キー","圃場番号","栽培番号","収穫有無","シリアル番号","地区・団地名","圃場名","収穫日フラグ","作業終了フラグ","地番（都道府県）","地番（市区町村）","地番（地番）","生産地名","地積（㎡）","地権者名","フリガナ",null,"地積（㎡）","地図URL","圃場コメント","生産年度","作期番号","生産名称","収穫予定日","製品名","作物名","品種名","地積（㎡）","地積（㎡）","生産予定数量(kg)","地権者名","収穫調製者名","地権者名","購入者名","生産計画コメント","移植・直播更新時刻","移植・直播記録者名","移植･直播日","移植･直播種別","苗箱数（個）","播種量（Kg）","移植・直播作業員名","移植･直播コメント","移植・直播写真","堆肥更新時刻","堆肥記録者名","堆肥散布日","畜種","堆肥散布量(t/10a)","堆肥作業員名","堆肥コメント","堆肥写真","基肥更新時刻","基肥記録者名","基肥散布日","基肥肥料名","基肥散布量(kg/10a)","基肥作業員名","基肥コメント","基肥写真","追肥1更新時刻","追肥1記録者名","追肥1散布日","追肥1肥料名","追肥1散布量(kg/10a)","追肥1作業員名","追肥1コメント","追肥1写真","追肥2更新時刻","追肥2記録者名","追肥2散布日","追肥2肥料名","追肥2散布量(kg/10a)","追肥2作業員名","追肥2コメント","追肥2写真","除草1更新時刻","除草1記録者名","除草1散布日","除草1薬剤名","除草1散布量(kg/10a)","除草1作業員名","除草1コメント","除草1写真","除草2更新時刻","除草2記録者名","除草2散布日","除草2薬剤名","除草2散布量(kg/10a)","除草2作業員名","除草2コメント","除草2写真","殺虫1更新時刻","殺虫1記録者名","殺虫1散布日","殺虫1薬剤名","殺虫1散布量(kg/10a)","殺虫1作業員名","殺虫1コメント","殺虫1写真","殺虫2更新時刻","殺虫2記録者名","殺虫2散布日","殺虫2薬剤名","殺虫2散布量(kg/10a)","殺虫2作業員名","殺虫2コメント","殺虫2写真","収穫更新日時","収穫開始日","収穫終了日","収穫時刻","熟度更新時刻","熟度記録者名","収穫時熟度","収穫時熟度コメント","収穫時熟度写真","雑草更新時刻","雑草記録者名","雑草の発生程度","主な雑草の種類","雑草被害コメント","雑草被害写真","病害虫更新時刻","病害虫記録者名","病害虫の被害程度","主な病害虫の種類","病害虫被害コメント","病害虫被害写真","倒伏更新時刻","倒伏記録者名","倒伏の被害程度","倒伏被害コメント","倒伏被害写真","圃場状態更新時刻","圃場状態記録者名","圃場状態","圃場状態コメント","圃場状態写真","収穫梱包更新時刻","収穫梱包記録者名","専用収穫機体系","反転の有無","反転回数","予乾日数","ロール直径","ロール高さ","添加剤使用","添加剤名","収穫梱包作業員名","収穫梱包コメント","収穫梱包写真","密封更新時刻","密封記録者名","フィルム巻き数","密封作業員名","密封コメント","重量更新時刻","重量記録者名","平均重量(KG)","重量算出方法","重量作業員名","重量コメント","水分更新時刻","水分記録者名","水分量(％)","水分算出方法","水分作業員名","水分コメント","放射線更新時刻","放射線記録者名","最大放射線量(Bq)","放射線量作業員名","放射線量コメント","保管更新時刻","保管記録者名","保管ロール数","保管場所","保管作業員名","保管コメント","検品更新時刻","検品記録者名","保管場所","検品作業員名","出荷更新時刻","出荷記録者名","出荷先","出荷作業員名",null,null,"作業ユニット名"]
[1,1,2017,1,null,"那須の農",1,null,null,"栃木県",null,null,null,null,"その他",null,2017,0,null,null,null,null,null,null,null,null,null,0,0,null,"その他",null,null,null,null,null,null,null,null,null,null,null,null,null,null,null,null,null,null,null,null,null,null,null,null,null,null,null,null,null,null,null,null,null,null,null,null,null,null,null,null,null,null,null,null,null,null,null,null,null,null,null,null,null,null,null,null,null,null,null,null,null,null,null,null,null,null,null,null,null,null,null,null,null,null,null,null,null,null,null,null,null,null,null,null,null,null,null,null,null,null,null,null,null,null,null,null,null,null,null,null,null,null,null,null,null,null,null,null,null,null,null,null,null,null,null,null,null,null,null,null,null,null,null,null,null,null,null,null,null,null,null,null,null,null,null,null,null,null,null,null,null,null,null,null,null,null,null,null,null,null,null,null,null,null,null,null,null,null,"那須の農1"]
[2,2,2017,1,null,"那須の農",1,null,null,"栃木県","那須町","大字寺子乙3215－1","那須町寺子乙",100,"千本松太郎","ｾﾝﾎﾞﾝﾏﾂﾀﾛｳ",2017,20,null,null,2017,1,"2016年度夏作-WCS用イネ",null,"稲発酵粗飼料","wcsイネ","たちすがた",20,20,null,"千本松太郎","那須の農","千本松太郎","--","--","--","--","--","--","--","--","--","--","--","--","--","--","--","--","--","--","--","--","--","--","--","--","--","--","--","--","--","--","--","--","--","--","--","--","--","--","--","--","--","--","--","--","--","--","--","--","--","--","--","--","--","--","--","--","--","--","--","--","--","--","--","--","--","--","--","--","--","--","--","--","--","--","--","--","--","--","--","--","--","--","--","--","--","--","--","--","--","--","--","--","--","--","--","--","--","--","--","--","--","--","--","--","--","--","--","--","--","--","--","--","--","--","--","--","--","--","--","--","--","--","--","--","--","--","--","--","--","--","--","--","--","--","--","--","--","--","--","--","--","--","--",4,"--","--","--","--","--","--","--","--","--","--","--","--","那須の農1","--","--"]
[3,3,2017,1,null,"那須の農",1,null,null,"栃木県","那須町","大字寺子乙3215－16","那須町寺子乙",10,"赤田太郎","ｱｶﾀﾞﾀﾛｳ",2017,10,null,null,2017,1,"2016年度夏作-WCS用イネ",null,"稲発酵粗飼料","wcsイネ","たちすがた",10,10,null,"赤田太郎","那須の農","赤田太郎",null,null,null,null,null,null,null,null,null,null,null,null,null,null,null,null,null,null,null,null,null,null,null,null,null,null,null,null,null,null,null,null,null,null,null,null,null,null,null,null,null,null,null,null,null,null,null,null,null,null,null,null,null,null,null,null,null,null,null,null,null,null,null,null,null,null,null,null,null,null,null,null,null,null,null,null,null,null,null,null,null,null,null,null,null,null,null,null,null,null,null,null,null,null,null,null,null,null,null,null,null,null,null,null,null,null,null,null,null,null,null,null,null,null,null,null,null,null,null,null,null,null,null,null,null,null,null,null,null,null,null,null,null,null,null,null,null,null,null,null,null,null,null,null,null,null,null,null,null,null,null,null,null,null,null,null,"那須の農1"]
[4,4,2017,1,null,"那須の農",1,null,null,"栃木県","那須町","大字寺子乙3215－1","那須町寺子乙",457.8,"乗瀬一","ﾉﾘｾﾊｼﾞﾒ",2017,100,null,null,2017,null,null,null,"稲発酵粗飼料","wcsイネ","たちすがた",100,100,null,"乗瀬一","那須の農","乗瀬一",null,null,null,null,null,null,null,null,null,null,null,null,null,null,null,null,null,null,null,null,null,null,null,null,null,null,null,null,null,null,null,null,null,null,null,null,null,null,null,null,null,null,null,null,null,null,null,null,null,null,null,null,null,null,null,null,null,null,null,null,null,null,null,null,null,null,null,null,null,null,null,null,null,null,null,null,null,null,null,null,null,null,null,null,null,null,null,null,null,null,null,null,null,null,null,null,null,null,null,null,null,null,null,null,null,null,null,null,null,null,null,null,null,null,null,null,null,null,null,null,null,null,null,null,null,null,null,null,null,null,null,null,null,null,null,null,null,null,null,null,null,null,null,null,null,null,null,null,null,null,null,null,null,null,null,null,"那須の農1"]
[5,1,2018,1,null,"那須の農",1,null,null,"栃木県","那須町","大字寺子乙3215－2","那須町寺子乙",246.5,"千本松太郎","ｾﾝﾎﾞﾝﾏﾂﾀﾛｳ",2018,33,null,null,2018,1,null,null,"稲発酵粗飼料","wcsイネ","たちすがた",33,33,null,"千本松太郎","那須の農","千本松太郎",null,null,null,null,null,null,null,null,null,null,"無",null,null,null,null,null,null,null,"無",null,null,null,null,null,null,null,"無",null,null,null,null,null,null,null,"無",null,null,null,null,null,null,null,"無",null,null,null,null,null,null,null,"無",null,null,null,null,null,null,null,"無",null,null,null,null,null,null,null,"無",null,null,null,null,null,null,null,"無",null,null,null,null,null,null,null,null,"無",null,null,null,null,null,"無",null,null,1,1,null,"無",null,null,1,null,"無",null,null,null,null,null,null,null,null,null,null,null,null,null,null,null,null,null,null,null,null,null,null,null,null,null,null,null,null,null,null,null,null,null,null,null,null,null,null,null,null,null,null,9,null,null,null,null,null,null,null,null,null,null,null,null,"那須の農1"]
[6,2,2018,1,null,"那須の農",1,null,null,"栃木県","那須町","大字寺子乙3309-5","那須町大字寺子乙3309-5",31,"赤田太郎","ｱｶﾀﾞﾀﾛｳ",2018,20,null,null,2018,1,null,null,"稲発酵粗飼料","wcsイネ","たちすがた",20,20,null,"赤田太郎","那須の農","赤田太郎",null,null,null,null,null,null,null,null,null,null,"無",null,null,null,null,null,null,null,"無",null,null,null,null,null,null,null,"無",null,null,null,null,null,null,null,"無",null,null,null,null,null,null,null,"無",null,null,null,null,null,null,null,"無",null,null,null,null,null,null,null,"無",null,null,null,null,null,null,null,"無",null,null,null,null,null,null,null,"無",null,null,null,null,null,null,null,null,"無",null,null,null,null,null,"無",null,null,null,null,null,"無",null,null,null,null,"無",null,null,null,null,"無",null,null,null,null,null,null,null,null,null,null,null,null,"無",null,null,null,null,null,null,null,null,null,null,null,null,null,null,null,null,null,null,null,null,null,null,null,null,4,null,null,null,null,null,null,null,null,null,null,null,null,"那須の農1"]
[7,3,2018,1,null,"那須の農",1,null,null,"栃木県","那須町","大字寺子乙　2916","那須町大字寺子乙　2916",60,"乗瀬一","ﾉﾘｾﾊｼﾞﾒ",2018,30,null,null,2018,1,null,null,"稲発酵粗飼料","wcsイネ","たちすがた",30,30,null,"乗瀬一","那須の農","乗瀬一",null,null,null,null,null,null,null,null,null,null,"無",null,null,null,null,null,null,null,"無",null,null,null,null,null,null,null,"無",null,null,null,null,null,null,null,"無",null,null,null,null,null,null,null,"無",null,null,null,null,null,null,null,"無",null,null,null,null,null,null,null,"無",null,null,null,null,null,null,null,"無",null,null,null,null,null,null,null,"無",null,null,null,null,null,null,null,null,"無",null,null,null,null,null,"無",null,null,null,null,null,"無",null,null,null,null,"無",null,null,null,null,"無",null,null,null,null,null,null,null,null,null,null,null,null,"無",null,null,null,null,null,null,null,null,null,null,null,null,null,null,null,null,null,null,null,null,null,null,null,null,4,null,null,null,null,null,null,null,null,null,null,null,null,"那須の農1"]
[8,1,2019,1,null,"那須の農",1,null,null,"栃木県","那須町","大字寺子乙3215－1","那須町寺子乙",460,"千本松太郎","ｾﾝﾎﾞﾝﾏﾂﾀﾛｳ",2019,100,null,null,2019,null,null,null,"稲発酵粗飼料","wcsイネ","たちすがた",100,100,null,"千本松太郎","那須の農","千本松太郎",null,null,null,null,null,null,null,null,null,null,null,null,null,null,null,null,null,null,null,null,null,null,null,null,null,null,null,null,null,null,null,null,null,null,null,null,null,null,null,null,null,null,null,null,null,null,null,null,null,null,null,null,null,null,null,null,null,null,null,null,null,null,null,null,null,null,null,null,null,null,null,null,null,null,null,null,null,null,null,null,null,null,null,null,null,null,null,null,null,null,null,null,null,null,null,null,null,null,null,null,null,null,null,null,null,null,null,null,null,null,null,null,null,null,null,null,null,null,null,null,null,null,null,null,null,null,null,null,null,null,null,null,null,null,null,null,null,null,null,null,null,null,null,null,null,null,null,null,null,null,null,null,null,null,null,null,"那須の農1"]
[9,2,2019,1,null,"那須の農",1,null,null,"栃木県","那須町","大字寺子乙3215－2","那須町寺子乙",215.4,"赤田太郎","ｱｶﾀﾞﾀﾛｳ",2019,33,null,null,2019,1,null,null,"稲発酵粗飼料","wcsイネ","たちすがた",33,33,null,"赤田太郎","那須の農","赤田太郎",null,null,null,null,null,null,null,null,null,null,"無",null,null,null,null,null,null,null,"無",null,null,null,null,null,null,null,"無",null,null,null,null,null,null,null,"無",null,null,null,null,null,null,null,"無",null,null,null,null,null,null,null,"無",null,null,null,null,null,null,null,"無",null,null,null,null,null,null,null,"無",null,null,null,null,null,null,null,"無",null,null,null,null,null,null,null,null,"無",null,null,null,null,null,"無",null,null,1,1,null,"無",null,null,1,null,"無",null,null,null,null,null,null,null,null,null,null,null,null,null,null,null,null,null,null,null,null,null,null,null,null,null,null,null,null,null,null,null,null,null,null,null,null,null,null,null,null,null,null,9,null,null,null,null,null,null,null,null,null,null,null,null,"那須の農1"]
[10,3,2019,1,null,"那須の農",1,null,null,"栃木県","那須町","大字寺子乙3309-5","那須町大字寺子乙3309-5",31,"乗瀬一","ﾉﾘｾﾊｼﾞﾒ",2019,20,null,null,2019,1,null,null,"稲発酵粗飼料","wcsイネ","たちすがた",20,20,null,"乗瀬一","那須の農","乗瀬一",null,null,null,null,null,0,null,null,null,null,"無",null,null,null,null,null,null,null,"無",null,null,null,null,null,null,null,"無",null,null,null,null,null,null,null,"無",null,null,null,null,null,null,null,"無",null,null,null,null,null,null,null,"無",null,null,null,null,null,null,null,"無",null,null,null,null,null,null,null,"無",null,null,null,null,null,null,null,"無",null,null,null,0,null,null,0,null,"無",null,null,0,0,null,"無",null,null,0,0,null,"無",null,null,0,null,"無",null,null,0,null,"無",null,null,null,null,null,null,null,null,null,null,null,null,"無",null,null,null,null,null,null,null,null,null,null,null,null,null,null,null,null,null,null,null,null,null,null,null,null,4,null,null,null,null,null,null,null,null,null,null,null,null,"那須の農1"]
[11,4,2019,1,null,"那須の農",2,null,null,null,null,null,null,65,"千本松太郎","ｾﾝﾎﾞﾝﾏﾂﾀﾛｳ",2019,null,null,null,null,null,null,null,null,"wcsイネ",null,65,65,null,"千本松太郎",null,"千本松太郎"]
[12,1,2020,1,null,"那須の農",1,null,null,"栃木県","那須町","大字寺子乙3215－1","那須町寺子乙",460,"千本松太郎","ｾﾝﾎﾞﾝﾏﾂﾀﾛｳ",2020,100]
[13,2,2020,1,null,"那須の農",1,null,null,"栃木県","那須町","大字寺子乙3215－2","那須町寺子乙",215.4,"赤田太郎","ｱｶﾀﾞﾀﾛｳ",2020,33]
[14,3,2020,1,null,"那須の農",1,null,null,"栃木県","那須町","大字寺子乙3309-5","那須町大字寺子乙3309-5",31,"乗瀬一","ﾉﾘｾﾊｼﾞﾒ",2020,20]
[15,4,2020,1,null,"那須の農",2,null,null,null,null,null,null,65,"千本松太郎","ｾﾝﾎﾞﾝﾏﾂﾀﾛｳ",2020]
[16,1,2021,1,null,"那須の農",1,null,null,"栃木県","那須町","大字寺子乙3215－1","那須町寺子乙",460,"千本松太郎","ｾﾝﾎﾞﾝﾏﾂﾀﾛｳ",2021,100]
[17,2,2021,1,null,"那須の農",1,null,null,"栃木県","那須町","大字寺子乙3215－2","那須町寺子乙",215.4,"赤田太郎","ｱｶﾀﾞﾀﾛｳ",2021,33]
[18,3,2021,1,null,"那須の農",1,null,null,"栃木県","那須町","大字寺子乙3309-5","那須町大字寺子乙3309-5",31,"乗瀬一","ﾉﾘｾﾊｼﾞﾒ",2021,20]
[19,4,2021,1,null,"那須の農",2,null,null,null,null,null,null,65,"千本松太郎","ｾﾝﾎﾞﾝﾏﾂﾀﾛｳ",2021]

{"sheet":"103Filedowner","index":6,"n_rows":70,"n_cols":3,"rows_kept":70,"cut":false,"hidden":false,"merged":[]}
[1,2,3]
["名称","圃場台帳"]
["説明","受託圃場の地権者名"]
["主キー","地権者名","ヨミガナ"]
[1,"有本孝之","ｱﾘﾓﾄﾀｶﾕｷ"]
[2,"有本徳彦","ｱﾘﾓﾄﾉﾘﾋｺ"]
[3,"大島正一","ｵｵｼﾏｼｮｳｲﾁ"]
[4,"大平岳史","ｵｵﾋﾗﾀｹｼ"]
[5,"相馬進　","ｿｳﾏｽｽﾑ"]
[6,"中曽根秀治","ﾅｶｿﾈﾋﾃﾞｼﾞ"]
[7,"井上一雄","ｲﾉｳｴｶｽﾞｵ"]
[8,"高久一雄","ﾀｶｸｶｽﾞｵ"]
[9,"益子軍寿","ﾏｼｺ"]
[10,"高久文芳","ﾀｶｸﾌﾐﾖｼ"]
[11,"佐藤正光","ｻﾄｳﾐﾂﾋﾛ"]
[12,"五月女文哉","ｻｵﾄﾒﾌﾐﾔ"]
[13,"熊田茂","ｸﾏﾀﾞｼｹﾞﾙ"]
[14,"熊田正和","ｸﾏﾀﾞﾏｻｶｽﾞ"]
[15,"熊田孝","ｸﾏﾀﾞﾀｶｼ"]
[16,"小野幹夫","ｵﾉﾐｷｵ"]
[17,"室井歳夫","ﾑﾛｲﾄｼｵ"]
[18,"矢村和憲","ﾔﾑﾗｶｽﾞﾉﾘ"]
[19,"小野孝之","ｵﾉﾀｶﾕｷ"]
[20,"阿久津孝","ｱｸﾂﾀｶｼ"]
[21,"矢野目国男","ﾔﾉﾒｸﾆｵ"]
[22,"薄井幸雄","ｳｽｲｻﾁｵ"]
[23,"大野文博","ｵｵﾉﾌﾐﾋﾛ"]
[24,"和久邦宏","ﾜｸｸﾆﾋﾛ"]
[25,"高橋一雄","ﾀｶﾊｼｶｽﾞｵ"]
[26,"沼野井静雄","ﾇﾏﾉｲｼｽﾞｵ"]
[27,"藤田政宣","ﾌｼﾞﾀﾏｻﾋﾛ"]
[28,"神立正夫","ｶﾐﾀﾁﾏｻｵ"]
[29,"磯洋和","ｲｿﾋﾛｶｽﾞ"]
[30,"斉藤博敏","ｻｲﾄｳﾋﾛﾄｼ"]
[31,"坂内美明","ｻｶｳﾁﾖｼｱｷ"]
[32,"吉成亀美雄","ﾖｼﾅﾘｶﾐｵ"]
[33,"中野謙一","ﾅｶﾉｹﾝｲﾁ"]
[34,"槌江栄作","ﾂﾁｴｴｲｻｸ"]
[35,"澤田浩孝","ｻﾜﾀﾞﾋﾛﾀｶ"]
[36,"草山誠","ｸｻﾔﾏﾏｺﾄ"]
[37,"相馬幸男","ｿｳﾏﾕｷｵ"]
[38,"渡辺祐一","ﾜﾀﾅﾍﾞﾕｳｲﾁ"]
[39,"和久集落営農組合","ﾜｸｼｭｳﾗｸｴｲﾉｳ"]
[40,"岡田牧場","ｵｶﾀﾞﾎﾞｸｼﾞｮｳ"]
[41,"人見二三夫","ﾋﾄﾐｶｽﾞｵ"]
[42,"人見正光","ﾋﾄﾐﾏｻﾐﾂ"]
[43,"林武信","ﾊﾔｼﾀｹﾉﾌﾞ"]
[44,"佐久間隼人","ｻｸﾏﾊﾔﾄ"]
[45,"熊谷貞二","ｸﾏﾀﾆﾃｲｼﾞ"]
[46,"桃井兼夫","ﾓﾓｲｶﾈｵ"]
[47,"斉藤拓巳","ｻｲﾄｳﾀｸﾐ"]
[48,"横山英樹","ﾖｺﾔﾏﾋﾃﾞｷ"]
[49,"今　牧場","ｲﾏﾎﾞｸｼﾞｮｳ"]
[50,"自社圃場","ｼﾞｼｬﾎｼﾞｮｳ"]
[51,"和田吉幸","ﾜﾀﾞﾖｼﾕｷ"]
[52,"南條弘充","ﾐﾅﾐｼﾞｮｳﾋﾛｱﾂ"]
[53,"中島克己","ﾅｶｼﾞﾏｶﾂﾐ"]
[54,"見山貴生","ﾐﾔﾏﾀｶｵ"]
[55,"中野　努","ﾅｶﾉﾂﾄﾑ"]
[56,"杉本茂雄","ｽｷﾞﾓﾄｼｹﾞｵ"]
[57,"人見孝子","ﾋﾄﾐﾀｶｺ"]
[58,"大関一男","ｵｵｾﾞｷｶｽﾞｵ"]
[59,"田代和一","ﾀｼﾛｶｽﾞｲﾁ"]
[60,"人見忠男","ﾋﾄﾐﾀﾀﾞｵ"]
[61,"笹沼正一","ｻｻﾇﾏｼｮｳｲﾁ"]
[62,"阿久津宣之","ｱｸﾂﾖｼﾕｷ"]
[63,"斉藤章","ｻｲﾄｳｱｷﾗ"]
[64,"遠藤清志","ｴﾝﾄﾞｳｷﾖｼ"]
[65,"角田牧場","ﾂﾉﾀﾞﾎﾞｸｼﾞｮｳ"]
[66,"川上哲男","ｶﾜｶﾐﾃﾂｵ"]

{"sheet":"104Fieldlink","index":7,"n_rows":5,"n_cols":6,"rows_kept":5,"cut":false,"hidden":false,"merged":[]}
["名称","圃場台帳"]
["ファイル名","104Fieldlink.csv"]
["説明","圃場契約者と保有者のリンク情報"]
["1",2]
["主キー","圃場番号","契約者","面積","所有者","面積"]

{"sheet":"syukka_nipopu","index":8,"n_rows":5,"n_cols":12,"rows_kept":5,"cut":false,"hidden":false,"merged":[]}
["受託作業日報"]
[]
[null,null,null,"ロール個数: 253個",null,null,null,null,null,null,"供給個数合計：　257個"]
["受託情報",null,null,null,null,null,null,"販売情報"]
["ID","委託者","日付","収穫機","個数","質量",null,"ID","供給日","供給先\n氏名","供給数量\n個数","収穫機"]

{"sheet":"2014SyukkaTable","index":9,"n_rows":7,"n_cols":9,"rows_kept":7,"cut":false,"hidden":false,"merged":[]}
["分類","出荷台帳"]
["ファイル名"]
[null,"コントラクタ作業日報"]
["1","1900-01-02",3,4,5,6,7,8,9]
["ID","供給日","供給先","ロール個数","生産者","作物種","収穫機","生産年","ロットID"]
[1,"2019-12-18","那須次郎",25,"赤田太郎","wcsイネ","専用機",2019]
[1,"2020-12-01","那須次郎",25,"圃場１","wcsイネ","専用機",2020]

{"sheet":"2015SagyouHistory","index":10,"n_rows":5,"n_cols":26,"rows_kept":5,"cut":false,"hidden":false,"merged":[]}
["作業集計","wcsイネ"]
["ID","作業日","作業代表者","オペレータ1","オペレータ2","オペレータ3","オペレータ4","オペレータ5","予備","延人数","受託先","対象作物","開始時間","終了時間","稼働時間","延時間","天候","軽油","ガソリン","オイル","ネット","ラップ","乳酸菌","ロール数","質量","出来高"]
[5,"2021-09-01","那須太郎","那須太郎","作業者１",null,null,null,null,2,"圃場１","wcsイネ","09:30:00","15:30:00","06:00:00","12:00:00","晴れ",0,0,0,0,0,0,45]
[6,"2021-09-03","那須太郎","那須太郎","作業者１","作業者３","作業者２",null,null,4,"圃場１","wcsイネ","13:00:00","16:00:00","03:00:00","12:00:00","晴れ",0,0,0,0,0,0,20]
[7,"2021-09-08","那須太郎","作業者１",null,null,null,null,null,1,"圃場１","wcsイネ","09:00:00","14:30:00","05:30:00","05:30:00","晴れ",0,0,0,0,0,0,30]

{"sheet":"2016roumulist","index":11,"n_rows":1,"n_cols":9,"rows_kept":1,"cut":false,"hidden":false,"merged":[]}
["index","日時","作業ユニット","オペレータ名","開始時間","終了時間","勤務時間","昼休み1時間","機械リスト"]

{"sheet":"2017JutakuSyukei","index":12,"n_rows":7,"n_cols":20,"rows_kept":7,"cut":false,"hidden":false,"merged":[]}
["index","主キー","氏名","住所","連絡先","面積","堆肥散布","栽培品種","種子量","移植時期","作業","収穫作業機","作業終了日","ロール個数","1ヶ質量","基本料金","出来高料金","料金合計","消費税","請求額合計"]
[1,12,"圃場１","那須町大字寺子乙3215－1",null,100,"--","たちすがた",null,null,null,"--","2020-09-08",95]
[2,13,"圃場２","那須町大字寺子乙3215－16",null,10,null,"たちすがた",null,null,null,null,null,0]
[3,14,"圃場３","那須町大字寺子乙3215－1",null,457.8,null,"たちすがた",null,null,null,null,null,0]
[4,15,"千本松太郎","那須町大字寺子乙3215－1",null,460,null,"たちすがた",null,null,null,null,null,0]
[5,16,"赤田太郎","那須町大字寺子乙3215－2",null,215.4,null,"たちすがた",null,null,null,null,null,0]
[6,17,"乗瀬一","那須町大字寺子乙3309-5",null,31,null,"たちすがた",null,null,null,null,null,0]

{"sheet":"207syukkamemberlist","index":13,"n_rows":9,"n_cols":4,"rows_kept":9,"cut":false,"hidden":false,"merged":[]}
["分類","販売先リスト"]
["名称","販売先リスト"]
["ファイル名"]
["説明"]
[1,2,3,4]
["項目番号","表示有無","名前","ふりがな"]
[2,1,"那須次郎","ﾅｽｼﾞﾛｳ"]
[3,1,"那須花子","ﾅｽﾊﾅｺ"]
[4,1,"大宮次郎","ｵｵﾐﾔｼﾞﾛｳ"]

{"sheet":"html","index":14,"n_rows":0,"n_cols":0,"rows_kept":0,"cut":false,"hidden":false,"merged":[]}

{"sheet":"pc01_101FieldTable","index":15,"n_rows":30,"n_cols":192,"rows_kept":30,"cut":false,"hidden":false,"merged":[]}
[1,2,3,4,5,6,7,8,8,10,11,12,13,14,15,16,17,14,19,20,21,22,23,24,25,26,27,14,14,30,15,32,15,34,35,36,37,37,39,40,41,42,43,44,45,46,46,48,49,50,51,52,53,54,54,56,57,58,59,60,61,62,63,64,65,66,67,68,69,70,71,72,73,74,75,76,77,78,79,80,81,82,83,84,85,86,87,88,89,90,91,92,93,94,95,96,97,98,99,100,101,102,103,104,105,106,107,108,109,42934,null,1,113,114,1,116,117,118,119,1,0,122,123,124,125,1,1,128,129,130,131,1,133,134,135,136,1,138,139,140,141,142,143,144,145,146,147,148,149,150,151,152,153,154,155,156,157,158,159,160,161,162,163,164,165,166,167,168,169,170,171,172,173,174,175,176,177,178,179,180,181,182,183,184,185,186,187,188,189,190,191,192]
["名称","圃場台帳",null,null,null,null,195,"名称",true,null,null,null,null,null,null,null,null,null,null,null,null,null,null,null,null,null,null,null,null,null,null,null,null,null,null,null,null,null,null,null,null,null,null,null,null,null,null,null,null,null,null,null,null,null,null,null,null,null,null,null,null,null,null,null,null,null,null,null,null,null,null,null,null,null,null,null,null,null,null,null,null,null,null,null,null,null,null,null,null,null,null,null,null,null,null,null,null,null,null,null,null,null,null,null,null,null,null,null,null,42934,null,0,null,null,0,null,null,null,null,0,0,null,null,null,null,0,0,null,null,null,null,0,null,null,null,null,0,null,null,null,null,null,null,3,5]
["ファイル名","101FieldTable.csv",null,null,null,null,null,"ファイル名"]
["説明","生産管理者が管理する圃場および生産計画に関する情報",null,null,null,null,null,"説明"]
["1",2,3,4,5,6,7,8,9,10,11,12,13,14,15,16,17,14,19,20,21,22,23,24,25,26,27,28,29,30,31,32,15,34,35,36,37,37,39,40,41,42,43,44,45,46,46,48,49,50,51,52,53,54,54,56,57,58,59,60,61,62,63,64,65,66,67,68,69,70,71,72,73,74,75,76,77,78,79,80,81,82,83,84,85,86,87,88,89,90,91,92,93,94,95,96,97,98,99,100,101,102,103,104,105,106,107,108,109,110,111,112,113,114,115,116,117,118,119,120,121,122,123,124,125,126,127,128,129,130,131,132,133,134,135,136,137,138,139,140,141,142,143,144,145,146,147,148,149,150,151,152,153,154,155,156,157,158,159,160,161,162,163,164,165,166,167,168,169,170,171,172,173,174,175,176,177,178,179,180,181,182,183,184,185,186,187,188,189,190,191,192]
["主キー","圃場番号","栽培番号","収穫有無","シリアル番号","地区・団地名","圃場名","収穫日フラグ","作業終了フラグ","地番（都道府県）","地番（市区町村）","地番（地番）","生産地名","地積（㎡）","地権者名","フリガナ",null,"地積（㎡）","地図URL","圃場コメント","生産年度","作期番号","生産名称","収穫予定日","製品名","作物名","品種名","地積（㎡）","地積（㎡）","生産予定数量(kg)","地権者名","収穫調製者名","地権者名","購入者名","生産計画コメント","移植・直播更新時刻","移植・直播記録者名","移植･直播日","移植･直播種別","苗箱数（個）","播種量（Kg）","移植・直播作業員名","移植･直播コメント","移植・直播写真","堆肥更新時刻","堆肥記録者名","堆肥散布日","畜種","堆肥散布量(t/10a)","堆肥作業員名","堆肥コメント","堆肥写真","基肥更新時刻","基肥記録者名","基肥散布日","基肥肥料名","基肥散布量(kg/10a)","基肥作業員名","基肥コメント","基肥写真","追肥1更新時刻","追肥1記録者名","追肥1散布日","追肥1肥料名","追肥1散布量(kg/10a)","追肥1作業員名","追肥1コメント","追肥1写真","追肥2更新時刻","追肥2記録者名","追肥2散布日","追肥2肥料名","追肥2散布量(kg/10a)","追肥2作業員名","追肥2コメント","追肥2写真","除草1更新時刻","除草1記録者名","除草1散布日","除草1薬剤名","除草1散布量(kg/10a)","除草1作業員名","除草1コメント","除草1写真","除草2更新時刻","除草2記録者名","除草2散布日","除草2薬剤名","除草2散布量(kg/10a)","除草2作業員名","除草2コメント","除草2写真","殺虫1更新時刻","殺虫1記録者名","殺虫1散布日","殺虫1薬剤名","殺虫1散布量(kg/10a)","殺虫1作業員名","殺虫1コメント","殺虫1写真","殺虫2更新時刻","殺虫2記録者名","殺虫2散布日","殺虫2薬剤名","殺虫2散布量(kg/10a)","殺虫2作業員名","殺虫2コメント","殺虫2写真","収穫更新日時","収穫開始日","収穫終了日","収穫時刻","熟度更新時刻","熟度記録者名","収穫時熟度","収穫時熟度コメント","収穫時熟度写真","雑草更新時刻","雑草記録者名","雑草の発生程度","主な雑草の種類","雑草被害コメント","雑草被害写真","病害虫更新時刻","病害虫記録者名","病害虫の被害程度","主な病害虫の種類","病害虫被害コメント","病害虫被害写真","倒伏更新時刻","倒伏記録者名","倒伏の被害程度","倒伏被害コメント","倒伏被害写真","圃場状態更新時刻","圃場状態記録者名","圃場状態","圃場状態コメント","圃場状態写真","収穫梱包更新時刻","収穫梱包記録者名","専用収穫機体系","反転の有無","反転回数","予乾日数","ロール直径","ロール高さ","添加剤使用","添加剤名","収穫梱包作業員名","収穫梱包コメント","収穫梱包写真","密封更新時刻","密封記録者名","フィルム巻き数","密封作業員名","密封コメント","重量更新時刻","重量記録者名","平均重量(KG)","重量算出方法","重量作業員名","重量コメント","水分更新時刻","水分記録者名","水分量(％)","水分算出方法","水分作業員名","水分コメント","放射線更新時刻","放射線記録者名","最大放射線量(Bq)","放射線量作業員名","放射線量コメント","保管更新時刻","保管記録者名","保管ロール数","保管場所","保管作業員名","保管コメント","検品更新時刻","検品記録者名","保管場所","検品作業員名","出荷更新時刻","出荷記録者名","出荷先","出荷作業員名",null,null,"作業ユニット名"]
[1,1,2017,1,null,"那須の農",1,null,null,"栃木県",null,null,null,null,"その他",null,null,0,null,null,null,null,null,null,null,null,null,0,0,null,"その他",null,null,null,null,null,null,null,null,null,null,null,null,null,null,null,null,null,null,null,null,null,null,null,null,null,null,null,null,null,null,null,null,null,null,null,null,null,null,null,null,null,null,null,null,null,null,null,null,null,null,null,null,null,null,null,null,null,null,null,null,null,null,null,null,null,null,null,null,null,null,null,null,null,null,null,null,null,null,null,null,null,null,null,null,null,null,null,null,null,null,null,null,null,null,null,null,null,null,null,null,null,null,null,null,null,null,null,null,null,null,null,null,null,null,null,null,null,null,null,null,null,null,null,null,null,null,null,null,null,null,null,null,null,null,null,null,null,null,null,null,null,null,null,null,null,null,null,null,null,null,null,null,null,null,null,null,null,null,"那須の農1"]
[2,2,2017,1,null,"那須の農",1,null,null,"栃木県","那須町","大字寺子乙3215－1","那須町寺子乙",100,"圃場１","ﾎｼﾞｮｳ1",null,20,null,null,2017,1,"2016年度夏作-WCS用イネ",null,"稲発酵粗飼料","wcsイネ","たちすがた",20,20,null,"千本松太郎","那須の農","千本松太郎","--","--","--",null,null,null,"--",null,"--","--","--","--","--","--","--","--","--","--","--","--","--","--","--","--","--","--","--","--","--","--","--","--","--","--","--","--","--","--","--","--","--","--","--","--","--","--","--","--","--","--","--","--","--","--","--","--","--","--","--","--","--","--","--","--","--","--","--","--","--","--","--","--","--","--","--","--","--","--","--","--","--","--","--","--","--","--","--","--","--","--","--","--","--","--","--","--","--","--","--","--","--","--","--","--","--","--","--","--","--","--","--","--","--","--","--","--","--","--","--","--","--","--","--","--","--","--","--","--","--","--","--","--","--","--","--","--","--","--","--","--","--","--","--",4,"--","--","--","--","--","--","--","--","--","--","--","--","那須の農1","--","--"]
[3,3,2017,1,null,"那須の農",1,null,null,"栃木県","那須町","大字寺子乙3215－16","那須町寺子乙",10,"圃場２","ﾎｼﾞｮｳ2",null,10,null,null,2017,1,"2016年度夏作-WCS用イネ",null,"稲発酵粗飼料","wcsイネ","たちすがた",10,10,null,"赤田太郎","那須の農","赤田太郎",null,null,null,null,null,null,null,null,null,null,null,null,null,null,null,null,null,null,null,null,null,null,null,null,null,null,null,null,null,null,null,null,null,null,null,null,null,null,null,null,null,null,null,null,null,null,null,null,null,null,null,null,null,null,null,null,null,null,null,null,null,null,null,null,null,null,null,null,null,null,null,null,null,null,null,null,null,null,null,null,null,null,null,null,null,null,null,null,null,null,null,null,null,null,null,null,null,null,null,null,null,null,null,null,null,null,null,null,null,null,null,null,null,null,null,null,null,null,null,null,null,null,null,null,null,null,null,null,null,null,null,null,null,null,null,null,null,null,null,null,null,null,null,null,null,null,null,null,null,null,null,null,null,null,null,null,"那須の農1"]
[4,4,2017,1,null,"那須の農",1,null,null,"栃木県","那須町","大字寺子乙3215－1","那須町寺子乙",457.8,"圃場３","ﾎｼﾞｮｳ3",2017,100,null,null,2017,null,null,null,"稲発酵粗飼料","wcsイネ","たちすがた",100,100,null,"乗瀬一","那須の農","乗瀬一",null,null,null,null,null,null,null,null,null,null,null,null,null,null,null,null,null,null,null,null,null,null,null,null,null,null,null,null,null,null,null,null,null,null,null,null,null,null,null,null,null,null,null,null,null,null,null,null,null,null,null,null,null,null,null,null,null,null,null,null,null,null,null,null,null,null,null,null,null,null,null,null,null,null,null,null,null,null,null,null,null,null,null,null,null,null,null,null,null,null,null,null,null,null,null,null,null,null,null,null,null,null,null,null,null,null,null,null,null,null,null,null,null,null,null,null,null,null,null,null,null,null,null,null,null,null,null,null,null,null,null,null,null,null,null,null,null,null,null,null,null,null,null,null,null,null,null,null,null,null,null,null,null,null,null,null,"那須の農1"]
[5,1,2018,1,null,"那須の農",1,null,null,"栃木県","那須町","大字寺子乙3215－2","那須町寺子乙",246.5,"千本松太郎","ｾﾝﾎﾞﾝﾏﾂﾀﾛｳ",2018,33,null,null,2018,1,null,null,"稲発酵粗飼料","wcsイネ","たちすがた",33,33,null,"千本松太郎","那須の農","千本松太郎",null,null,null,null,null,null,null,null,null,null,"無",null,null,null,null,null,null,null,"無",null,null,null,null,null,null,null,"無",null,null,null,null,null,null,null,"無",null,null,null,null,null,null,null,"無",null,null,null,null,null,null,null,"無",null,null,null,null,null,null,null,"無",null,null,null,null,null,null,null,"無",null,null,null,null,null,null,null,"無",null,null,null,null,null,null,null,null,"無",null,null,null,null,null,"無",null,null,1,1,null,"無",null,null,1,null,"無",null,null,null,null,null,null,null,null,null,null,null,null,null,null,null,null,null,null,null,null,null,null,null,null,null,null,null,null,null,null,null,null,null,null,null,null,null,null,null,null,null,null,9,null,null,null,null,null,null,null,null,null,null,null,null,"那須の農1"]
[6,2,2018,1,null,"那須の農",1,null,null,"栃木県","那須町","大字寺子乙3309-5","那須町大字寺子乙3309-5",31,"赤田太郎","ｱｶﾀﾞﾀﾛｳ",2018,20,null,null,2018,1,null,null,"稲発酵粗飼料","wcsイネ","たちすがた",20,20,null,"赤田太郎","那須の農","赤田太郎",null,null,null,null,null,null,null,null,null,null,"無",null,null,null,null,null,null,null,"無",null,null,null,null,null,null,null,"無",null,null,null,null,null,null,null,"無",null,null,null,null,null,null,null,"無",null,null,null,null,null,null,null,"無",null,null,null,null,null,null,null,"無",null,null,null,null,null,null,null,"無",null,null,null,null,null,null,null,"無",null,null,null,null,null,null,null,null,"無",null,null,null,null,null,"無",null,null,null,null,null,"無",null,null,null,null,"無",null,null,null,null,"無",null,null,null,null,null,null,null,null,null,null,null,null,"無",null,null,null,null,null,null,null,null,null,null,null,null,null,null,null,null,null,null,null,null,null,null,null,null,4,null,null,null,null,null,null,null,null,null,null,null,null,"那須の農1"]
[7,3,2018,1,null,"那須の農",1,null,null,"栃木県","那須町","大字寺子乙　2916","那須町大字寺子乙　2916",60,"乗瀬一","ﾉﾘｾﾊｼﾞﾒ",2018,30,null,null,2018,1,null,null,"稲発酵粗飼料","wcsイネ","たちすがた",30,30,null,"乗瀬一","那須の農","乗瀬一",null,null,null,null,null,null,null,null,null,null,"無",null,null,null,null,null,null,null,"無",null,null,null,null,null,null,null,"無",null,null,null,null,null,null,null,"無",null,null,null,null,null,null,null,"無",null,null,null,null,null,null,null,"無",null,null,null,null,null,null,null,"無",null,null,null,null,null,null,null,"無",null,null,null,null,null,null,null,"無",null,null,null,null,null,null,null,null,"無",null,null,null,null,null,"無",null,null,null,null,null,"無",null,null,null,null,"無",null,null,null,null,"無",null,null,null,null,null,null,null,null,null,null,null,null,"無",null,null,null,null,null,null,null,null,null,null,null,null,null,null,null,null,null,null,null,null,null,null,null,null,4,null,null,null,null,null,null,null,null,null,null,null,null,"那須の農1"]
[8,1,2019,1,null,"那須の農",1,null,null,"栃木県","那須町","大字寺子乙3215－1","那須町寺子乙",460,"千本松太郎","ｾﾝﾎﾞﾝﾏﾂﾀﾛｳ",2019,100,null,null,2019,null,null,null,"稲発酵粗飼料","wcsイネ","たちすがた",100,100,null,"千本松太郎","那須の農","千本松太郎",null,null,null,null,null,null,null,null,null,null,null,null,null,null,null,null,null,null,null,null,null,null,null,null,null,null,null,null,null,null,null,null,null,null,null,null,null,null,null,null,null,null,null,null,null,null,null,null,null,null,null,null,null,null,null,null,null,null,null,null,null,null,null,null,null,null,null,null,null,null,null,null,null,null,null,null,null,null,null,null,null,null,null,null,null,null,null,null,null,null,null,null,null,null,null,null,null,null,null,null,null,null,null,null,null,null,null,null,null,null,null,null,null,null,null,null,null,null,null,null,null,null,null,null,null,null,null,null,null,null,null,null,null,null,null,null,null,null,null,null,null,null,null,null,null,null,null,null,null,null,null,null,null,null,null,null,"那須の農1"]
[9,2,2019,1,null,"那須の農",1,null,null,"栃木県","那須町","大字寺子乙3215－2","那須町寺子乙",215.4,"赤田太郎","ｱｶﾀﾞﾀﾛｳ",2019,33,null,null,2019,1,null,null,"稲発酵粗飼料","wcsイネ","たちすがた",33,33,null,"赤田太郎","那須の農","赤田太郎",null,null,null,null,null,null,null,null,null,null,"無",null,null,null,null,null,null,null,"無",null,null,null,null,null,null,null,"無",null,null,null,null,null,null,null,"無",null,null,null,null,null,null,null,"無",null,null,null,null,null,null,null,"無",null,null,null,null,null,null,null,"無",null,null,null,null,null,null,null,"無",null,null,null,null,null,null,null,"無",null,null,null,null,null,null,null,null,"無",null,null,null,null,null,"無",null,null,1,1,null,"無",null,null,1,null,"無",null,null,null,null,null,null,null,null,null,null,null,null,null,null,null,null,null,null,null,null,null,null,null,null,null,null,null,null,null,null,null,null,null,null,null,null,null,null,null,null,null,null,9,null,null,null,null,null,null,null,null,null,null,null,null,"那須の農1"]
[10,3,2019,1,null,"那須の農",1,null,null,"栃木県","那須町","大字寺子乙3309-5","那須町大字寺子乙3309-5",31,"乗瀬一","ﾉﾘｾﾊｼﾞﾒ",2019,20,null,null,2019,1,null,null,"稲発酵粗飼料","wcsイネ","たちすがた",20,20,null,"乗瀬一","那須の農","乗瀬一",null,null,null,null,null,null,null,null,null,null,"無",null,null,null,null,null,null,null,"無",null,null,null,null,null,null,null,"無",null,null,null,null,null,null,null,"無",null,null,null,null,null,null,null,"無",null,null,null,null,null,null,null,"無",null,null,null,null,null,null,null,"無",null,null,null,null,null,null,null,"無",null,null,null,null,null,null,null,"無",null,null,null,null,null,null,null,null,"無",null,null,null,null,null,"無",null,null,null,null,null,"無",null,null,null,null,"無",null,null,null,null,"無",null,null,null,null,null,null,null,null,null,null,null,null,"無",null,null,null,null,null,null,null,null,null,null,null,null,null,null,null,null,null,null,null,null,null,null,null,null,4,null,null,null,null,null,null,null,null,null,null,null,null,"那須の農1"]
[11,1,2020,1,null,"那須の農",1,null,null,"栃木県",null,null,null,null,"その他",null,2020,0,null,null,2020,null,null,null,null,null,null,0,0,null,"その他",null,null,null,null,null,null,null,null,null,null,null,null,null,null,null,null,null,null,null,null,null,null,null,null,null,null,null,null,null,null,null,null,null,null,null,null,null,null,null,null,null,null,null,null,null,null,null,null,null,null,null,null,null,null,null,null,null,null,null,null,null,null,null,null,null,null,null,null,null,null,null,null,null,null,null,null,null,null,null,null,null,null,null,null,null,null,null,null,null,null,null,null,null,null,null,null,null,null,null,null,null,null,null,null,null,null,null,null,null,null,null,null,null,null,null,null,null,null,null,null,null,null,null,null,null,null,null,null,null,null,null,null,null,null,null,null,null,null,null,null,null,null,null,null,null,null,null,null,null,null,null,null,null,null,null,null,null,null,"那須の農1"]
[12,2,2020,1,null,"那須の農",1,null,null,"栃木県","那須町","大字寺子乙3215－1","那須町寺子乙",100,"圃場１","ﾎｼﾞｮｳ1",2020,20,null,null,2020,1,"2016年度夏作-WCS用イネ",null,"稲発酵粗飼料","wcsイネ","たちすがた",20,20,null,"千本松太郎","那須の農","千本松太郎","--","--","--",null,null,null,"--",null,"--","--","--","--","--","--","--","--","--","--","--","--","--","--","--","--","--","--","--","--","--","--","--","--","--","--","--","--","--","--","--","--","--","--","--","--","--","--","--","--","--","--","--","--","--","--","--","--","--","--","--","--","--","--","--","--","--","--","--","--","--","--","--","--","--","--","--","--","--","--","--","--","--","--","--","--","--","--","--","--","--","--","--","--","--","--","--","--","--","--","--","--","--","--","--","--","--","--","--","--","--","--","--","--","--","--","--","--","--","--","--","--","--","--","--","--","--","--","--","--","--","--","--","--","--","--","--","--","--","--","--","--","--","--","--",4,"--","--","--","--","--","--","--","--","--","--","--","--","那須の農1","--","--"]
[13,3,2020,1,null,"那須の農",1,null,null,"栃木県","那須町","大字寺子乙3215－16","那須町寺子乙",10,"圃場２","ﾎｼﾞｮｳ2",2020,10,null,null,2020,1,"2016年度夏作-WCS用イネ",null,"稲発酵粗飼料","wcsイネ","たちすがた",10,10,null,"赤田太郎","那須の農","赤田太郎",null,null,null,null,null,null,null,null,null,null,null,null,null,null,null,null,null,null,null,null,null,null,null,null,null,null,null,null,null,null,null,null,null,null,null,null,null,null,null,null,null,null,null,null,null,null,null,null,null,null,null,null,null,null,null,null,null,null,null,null,null,null,null,null,null,null,null,null,null,null,null,null,null,null,null,null,null,null,null,null,null,null,null,null,null,null,null,null,null,null,null,null,null,null,null,null,null,null,null,null,null,null,null,null,null,null,null,null,null,null,null,null,null,null,null,null,null,null,null,null,null,null,null,null,null,null,null,null,null,null,null,null,null,null,null,null,null,null,null,null,null,null,null,null,null,null,null,null,null,null,null,null,null,null,null,null,"那須の農1"]
[14,4,2020,1,null,"那須の農",1,null,null,"栃木県","那須町","大字寺子乙3215－1","那須町寺子乙",457.8,"圃場３","ﾎｼﾞｮｳ3",2020,100,null,null,2020,null,null,null,"稲発酵粗飼料","wcsイネ","たちすがた",100,100,null,"乗瀬一","那須の農","乗瀬一",null,null,null,null,null,null,null,null,null,null,null,null,null,null,null,null,null,null,null,null,null,null,null,null,null,null,null,null,null,null,null,null,null,null,null,null,null,null,null,null,null,null,null,null,null,null,null,null,null,null,null,null,null,null,null,null,null,null,null,null,null,null,null,null,null,null,null,null,null,null,null,null,null,null,null,null,null,null,null,null,null,null,null,null,null,null,null,null,null,null,null,null,null,null,null,null,null,null,null,null,null,null,null,null,null,null,null,null,null,null,null,null,null,null,null,null,null,null,null,null,null,null,null,null,null,null,null,null,null,null,null,null,null,null,null,null,null,null,null,null,null,null,null,null,null,null,null,null,null,null,null,null,null,null,null,null,"那須の農1"]
[15,1,2020,1,null,"那須の農",1,null,null,"栃木県","那須町","大字寺子乙3215－1","那須町寺子乙",460,"千本松太郎","ｾﾝﾎﾞﾝﾏﾂﾀﾛｳ",2020,100,null,null,2020,null,null,null,"稲発酵粗飼料","wcsイネ","たちすがた",100,100,null,"千本松太郎","那須の農","千本松太郎",null,null,null,null,null,null,null,null,null,null,null,null,null,null,null,null,null,null,null,null,null,null,null,null,null,null,null,null,null,null,null,null,null,null,null,null,null,null,null,null,null,null,null,null,null,null,null,null,null,null,null,null,null,null,null,null,null,null,null,null,null,null,null,null,null,null,null,null,null,null,null,null,null,null,null,null,null,null,null,null,null,null,null,null,null,null,null,null,null,null,null,null,null,null,null,null,null,null,null,null,null,null,null,null,null,null,null,null,null,null,null,null,null,null,null,null,null,null,null,null,null,null,null,null,null,null,null,null,null,null,null,null,null,null,null,null,null,null,null,null,null,null,null,null,null,null,null,null,null,null,null,null,null,null,null,null,"那須の農1"]
[16,2,2020,1,null,"那須の農",1,null,null,"栃木県","那須町","大字寺子乙3215－2","那須町寺子乙",215.4,"赤田太郎","ｱｶﾀﾞﾀﾛｳ",2020,33,null,null,2020,1,null,null,"稲発酵粗飼料","wcsイネ","たちすがた",33,33,null,"赤田太郎","那須の農","赤田太郎",null,null,null,null,null,null,null,null,null,null,"無",null,null,null,null,null,null,null,"無",null,null,null,null,null,null,null,"無",null,null,null,null,null,null,null,"無",null,null,null,null,null,null,null,"無",null,null,null,null,null,null,null,"無",null,null,null,null,null,null,null,"無",null,null,null,null,null,null,null,"無",null,null,null,null,null,null,null,"無",null,null,null,null,null,null,null,null,"無",null,null,null,null,null,"無",null,null,1,1,null,"無",null,null,1,null,"無",null,null,null,null,null,null,null,null,null,null,null,null,null,null,null,null,null,null,null,null,null,null,null,null,null,null,null,null,null,null,null,null,null,null,null,null,null,null,null,null,null,null,9,null,null,null,null,null,null,null,null,null,null,null,null,"那須の農1"]
[17,3,2020,1,null,"那須の農",1,null,null,"栃木県","那須町","大字寺子乙3309-5","那須町大字寺子乙3309-5",31,"乗瀬一","ﾉﾘｾﾊｼﾞﾒ",2020,20,null,null,2020,1,null,null,"稲発酵粗飼料","wcsイネ","たちすがた",20,20,null,"乗瀬一","那須の農","乗瀬一",null,null,null,null,null,null,null,null,null,null,"無",null,null,null,null,null,null,null,"無",null,null,null,null,null,null,null,"無",null,null,null,null,null,null,null,"無",null,null,null,null,null,null,null,"無",null,null,null,null,null,null,null,"無",null,null,null,null,null,null,null,"無",null,null,null,null,null,null,null,"無",null,null,null,null,null,null,null,"無",null,null,null,null,null,null,null,null,"無",null,null,null,null,null,"無",null,null,null,null,null,"無",null,null,null,null,"無",null,null,null,null,"無",null,null,null,null,null,null,null,null,null,null,null,null,"無",null,null,null,null,null,null,null,null,null,null,null,null,null,null,null,null,null,null,null,null,null,null,null,null,4,null,null,null,null,null,null,null,null,null,null,null,null,"那須の農1"]
[18,1,2021,1,null,"那須の農",1,null,null,"栃木県",null,null,null,null,"その他",null,2021,0,null,null,2021,null,null,null,null,null,null,0,0,null,"その他",null,null,null,null,null,null,null,null,null,null,null,null,null,null,null,null,null,null,null,null,null,null,null,null,null,null,null,null,null,null,null,null,null,null,null,null,null,null,null,null,null,null,null,null,null,null,null,null,null,null,null,null,null,null,null,null,null,null,null,null,null,null,null,null,null,null,null,null,null,null,null,null,null,null,null,null,null,null,null,null,null,null,null,null,null,null,null,null,null,null,null,null,null,null,null,null,null,null,null,null,null,null,null,null,null,null,null,null,null,null,null,null,null,null,null,null,null,null,null,null,null,null,null,null,null,null,null,null,null,null,null,null,null,null,null,null,null,null,null,null,null,null,null,null,null,null,null,null,null,null,null,null,null,null,null,null,null,null,"那須の農1"]
[19,2,2021,1,null,"那須の農",1,null,null,"栃木県","那須町","大字寺子乙3215－1","那須町寺子乙",100,"圃場１","ﾎｼﾞｮｳ1",2021,20,null,null,2021,1,"2016年度夏作-WCS用イネ",null,"稲発酵粗飼料","wcsイネ","たちすがた",20,20,null,"千本松太郎","那須の農","千本松太郎","--","--","--",null,null,null,"--",null,"--","--","--","--","--","--","--","--","--","--","--","--","--","--","--","--","--","--","--","--","--","--","--","--","--","--","--","--","--","--","--","--","--","--","--","--","--","--","--","--","--","--","--","--","--","--","--","--","--","--","--","--","--","--","--","--","--","--","--","--","--","--","--","--","--","--","--","--","--","--","--","--","--","--","--","--","--","--","--","--","--","--","--","--","--","--","--","--","--","--","--","--","--","--","--","--","--","--","--","--","--","--","--","--","--","--","--","--","--","--","--","--","--","--","--","--","--","--","--","--","--","--","--","--","--","--","--","--","--","--","--","--","--","--","--",4,"--","--","--","--","--","--","--","--","--","--","--","--","那須の農1","--","--"]
[20,3,2021,1,null,"那須の農",1,null,null,"栃木県","那須町","大字寺子乙3215－16","那須町寺子乙",10,"圃場２","ﾎｼﾞｮｳ2",2021,10,null,null,2021,1,"2016年度夏作-WCS用イネ",null,"稲発酵粗飼料","wcsイネ","たちすがた",10,10,null,"赤田太郎","那須の農","赤田太郎",null,null,null,null,null,null,null,null,null,null,null,null,null,null,null,null,null,null,null,null,null,null,null,null,null,null,null,null,null,null,null,null,null,null,null,null,null,null,null,null,null,null,null,null,null,null,null,null,null,null,null,null,null,null,null,null,null,null,null,null,null,null,null,null,null,null,null,null,null,null,null,null,null,null,null,null,null,null,null,null,null,null,null,null,null,null,null,null,null,null,null,null,null,null,null,null,null,null,null,null,null,null,null,null,null,null,null,null,null,null,null,null,null,null,null,null,null,null,null,null,null,null,null,null,null,null,null,null,null,null,null,null,null,null,null,null,null,null,null,null,null,null,null,null,null,null,null,null,null,null,null,null,null,null,null,null,"那須の農1"]
[21,4,2021,1,null,"那須の農",1,null,null,"栃木県","那須町","大字寺子乙3215－1","那須町寺子乙",457.8,"圃場３","ﾎｼﾞｮｳ3",2021,100,null,null,2021,null,null,null,"稲発酵粗飼料","wcsイネ","たちすがた",100,100,null,"乗瀬一","那須の農","乗瀬一",null,null,null,null,null,null,null,null,null,null,null,null,null,null,null,null,null,null,null,null,null,null,null,null,null,null,null,null,null,null,null,null,null,null,null,null,null,null,null,null,null,null,null,null,null,null,null,null,null,null,null,null,null,null,null,null,null,null,null,null,null,null,null,null,null,null,null,null,null,null,null,null,null,null,null,null,null,null,null,null,null,null,null,null,null,null,null,null,null,null,null,null,null,null,null,null,null,null,null,null,null,null,null,null,null,null,null,null,null,null,null,null,null,null,null,null,null,null,null,null,null,null,null,null,null,null,null,null,null,null,null,null,null,null,null,null,null,null,null,null,null,null,null,null,null,null,null,null,null,null,null,null,null,null,null,null,"那須の農1"]
[22,1,2021,1,null,"那須の農",1,null,null,"栃木県","那須町","大字寺子乙3215－1","那須町寺子乙",460,"千本松太郎","ｾﾝﾎﾞﾝﾏﾂﾀﾛｳ",2021,100,null,null,2021,null,null,null,"稲発酵粗飼料","wcsイネ","たちすがた",100,100,null,"千本松太郎","那須の農","千本松太郎",null,null,null,null,null,null,null,null,null,null,null,null,null,null,null,null,null,null,null,null,null,null,null,null,null,null,null,null,null,null,null,null,null,null,null,null,null,null,null,null,null,null,null,null,null,null,null,null,null,null,null,null,null,null,null,null,null,null,null,null,null,null,null,null,null,null,null,null,null,null,null,null,null,null,null,null,null,null,null,null,null,null,null,null,null,null,null,null,null,null,null,null,null,null,null,null,null,null,null,null,null,null,null,null,null,null,null,null,null,null,null,null,null,null,null,null,null,null,null,null,null,null,null,null,null,null,null,null,null,null,null,null,null,null,null,null,null,null,null,null,null,null,null,null,null,null,null,null,null,null,null,null,null,null,null,null,"那須の農1"]
[23,2,2021,1,null,"那須の農",1,null,null,"栃木県","那須町","大字寺子乙3215－2","那須町寺子乙",215.4,"赤田太郎","ｱｶﾀﾞﾀﾛｳ",2021,33,null,null,2021,1,null,null,"稲発酵粗飼料","wcsイネ","たちすがた",33,33,null,"赤田太郎","那須の農","赤田太郎",null,null,null,null,null,null,null,null,null,null,"無",null,null,null,null,null,null,null,"無",null,null,null,null,null,null,null,"無",null,null,null,null,null,null,null,"無",null,null,null,null,null,null,null,"無",null,null,null,null,null,null,null,"無",null,null,null,null,null,null,null,"無",null,null,null,null,null,null,null,"無",null,null,null,null,null,null,null,"無",null,null,null,null,null,null,null,null,"無",null,null,null,null,null,"無",null,null,1,1,null,"無",null,null,1,null,"無",null,null,null,null,null,null,null,null,null,null,null,null,null,null,null,null,null,null,null,null,null,null,null,null,null,null,null,null,null,null,null,null,null,null,null,null,null,null,null,null,null,null,9,null,null,null,null,null,null,null,null,null,null,null,null,"那須の農1"]
[24,3,2021,1,null,"那須の農","2020-09-03",null,null,"栃木県","那須町","大字寺子乙3309-5","那須町大字寺子乙3309-5",31,"乗瀬一","ﾉﾘｾﾊｼﾞﾒ",2021,20,null,null,2021,1,null,null,"稲発酵粗飼料","wcsイネ","たちすがた",20,20,null,"乗瀬一","那須の農","乗瀬一",null,null,null,null,null,null,null,null,null,null,"無",null,null,null,null,null,null,null,"無",null,null,null,null,null,null,null,"無",null,null,null,null,null,null,null,"無",null,null,null,null,null,null,null,"無",null,null,null,null,null,null,null,"無",null,null,null,null,null,null,null,"無",null,null,null,null,null,null,null,"無",null,null,null,null,null,null,null,"無",null,null,null,null,null,null,null,null,"無",null,null,null,null,null,"無",null,null,null,null,null,"無",null,null,null,null,"無",null,null,null,null,"無",null,null,null,null,null,null,null,null,null,null,null,null,"無",null,null,null,null,null,null,null,null,null,null,null,null,null,null,null,null,null,null,null,null,null,null,null,null,4,null,null,null,null,null,null,null,null,null,null,null,null,"那須の農1899/12/31"]

{"sheet":"pc02_101FieldTable","index":16,"n_rows":6,"n_cols":192,"rows_kept":6,"cut":false,"hidden":false,"merged":[]}
[1,2,3,4,5,6,7,8,8,10,11,12,13,14,15,16,17,14,19,20,21,22,23,24,25,26,27,14,14,30,15,32,15,34,35,36,37,37,39,40,41,42,43,44,45,46,46,48,49,50,51,52,53,54,54,56,57,58,59,60,61,62,63,64,65,66,67,68,69,70,71,72,73,74,75,76,77,78,79,80,81,82,83,84,85,86,87,88,89,90,91,92,93,94,95,96,97,98,99,100,101,102,103,104,105,106,107,108,109,42934,null,1,113,114,1,116,117,118,119,1,0,122,123,124,125,1,1,128,129,130,131,1,133,134,135,136,1,138,139,140,141,142,143,144,145,146,147,148,149,150,151,152,153,154,155,156,157,158,159,160,161,162,163,164,165,166,167,168,169,170,171,172,173,174,175,176,177,178,179,180,181,182,183,184,185,186,187,188,189,190,191,192]
["名称","圃場台帳",null,null,null,null,195,"名称",true,null,null,null,null,null,null,null,null,null,null,null,null,null,null,null,null,null,null,null,null,null,null,null,null,null,null,null,null,null,null,null,null,null,null,null,null,null,null,null,null,null,null,null,null,null,null,null,null,null,null,null,null,null,null,null,null,null,null,null,null,null,null,null,null,null,null,null,null,null,null,null,null,null,null,null,null,null,null,null,null,null,null,null,null,null,null,null,null,null,null,null,null,null,null,null,null,null,null,null,null,42934,null,0,null,null,0,null,null,null,null,0,0,null,null,null,null,0,0,null,null,null,null,0,null,null,null,null,0,null,null,null,null,null,null,3,5]
["ファイル名","101FieldTable.csv",null,null,null,null,null,"ファイル名"]
["説明","生産管理者が管理する圃場および生産計画に関する情報",null,null,null,null,null,"説明"]
["1",2,3,4,5,6,7,8,9,10,11,12,13,14,15,16,17,14,19,20,21,22,23,24,25,26,27,28,29,30,31,32,15,34,35,36,37,37,39,40,41,42,43,44,45,46,46,48,49,50,51,52,53,54,54,56,57,58,59,60,61,62,63,64,65,66,67,68,69,70,71,72,73,74,75,76,77,78,79,80,81,82,83,84,85,86,87,88,89,90,91,92,93,94,95,96,97,98,99,100,101,102,103,104,105,106,107,108,109,110,111,112,113,114,115,116,117,118,119,120,121,122,123,124,125,126,127,128,129,130,131,132,133,134,135,136,137,138,139,140,141,142,143,144,145,146,147,148,149,150,151,152,153,154,155,156,157,158,159,160,161,162,163,164,165,166,167,168,169,170,171,172,173,174,175,176,177,178,179,180,181,182,183,184,185,186,187,188,189,190,191,192]
["主キー","圃場番号","栽培番号","収穫有無","シリアル番号","地区・団地名","圃場名","収穫日フラグ","作業終了フラグ","地番（都道府県）","地番（市区町村）","地番（地番）","生産地名","地積（㎡）","地権者名","フリガナ",null,"地積（㎡）","地図URL","圃場コメント","生産年度","作期番号","生産名称","収穫予定日","製品名","作物名","品種名","地積（㎡）","地積（㎡）","生産予定数量(kg)","地権者名","収穫調製者名","地権者名","購入者名","生産計画コメント","移植・直播更新時刻","移植・直播記録者名","移植･直播日","移植･直播種別","苗箱数（個）","播種量（Kg）","移植・直播作業員名","移植･直播コメント","移植・直播写真","堆肥更新時刻","堆肥記録者名","堆肥散布日","畜種","堆肥散布量(t/10a)","堆肥作業員名","堆肥コメント","堆肥写真","基肥更新時刻","基肥記録者名","基肥散布日","基肥肥料名","基肥散布量(kg/10a)","基肥作業員名","基肥コメント","基肥写真","追肥1更新時刻","追肥1記録者名","追肥1散布日","追肥1肥料名","追肥1散布量(kg/10a)","追肥1作業員名","追肥1コメント","追肥1写真","追肥2更新時刻","追肥2記録者名","追肥2散布日","追肥2肥料名","追肥2散布量(kg/10a)","追肥2作業員名","追肥2コメント","追肥2写真","除草1更新時刻","除草1記録者名","除草1散布日","除草1薬剤名","除草1散布量(kg/10a)","除草1作業員名","除草1コメント","除草1写真","除草2更新時刻","除草2記録者名","除草2散布日","除草2薬剤名","除草2散布量(kg/10a)","除草2作業員名","除草2コメント","除草2写真","殺虫1更新時刻","殺虫1記録者名","殺虫1散布日","殺虫1薬剤名","殺虫1散布量(kg/10a)","殺虫1作業員名","殺虫1コメント","殺虫1写真","殺虫2更新時刻","殺虫2記録者名","殺虫2散布日","殺虫2薬剤名","殺虫2散布量(kg/10a)","殺虫2作業員名","殺虫2コメント","殺虫2写真","収穫更新日時","収穫開始日","収穫終了日","収穫時刻","熟度更新時刻","熟度記録者名","収穫時熟度","収穫時熟度コメント","収穫時熟度写真","雑草更新時刻","雑草記録者名","雑草の発生程度","主な雑草の種類","雑草被害コメント","雑草被害写真","病害虫更新時刻","病害虫記録者名","病害虫の被害程度","主な病害虫の種類","病害虫被害コメント","病害虫被害写真","倒伏更新時刻","倒伏記録者名","倒伏の被害程度","倒伏被害コメント","倒伏被害写真","圃場状態更新時刻","圃場状態記録者名","圃場状態","圃場状態コメント","圃場状態写真","収穫梱包更新時刻","収穫梱包記録者名","専用収穫機体系","反転の有無","反転回数","予乾日数","ロール直径","ロール高さ","添加剤使用","添加剤名","収穫梱包作業員名","収穫梱包コメント","収穫梱包写真","密封更新時刻","密封記録者名","フィルム巻き数","密封作業員名","密封コメント","重量更新時刻","重量記録者名","平均重量(KG)","重量算出方法","重量作業員名","重量コメント","水分更新時刻","水分記録者名","水分量(％)","水分算出方法","水分作業員名","水分コメント","放射線更新時刻","放射線記録者名","最大放射線量(Bq)","放射線量作業員名","放射線量コメント","保管更新時刻","保管記録者名","保管ロール数","保管場所","保管作業員名","保管コメント","検品更新時刻","検品記録者名","保管場所","検品作業員名","出荷更新時刻","出荷記録者名","出荷先","出荷作業員名",null,null,"作業ユニット名"]

{"sheet":"pc03_101FieldTable","index":17,"n_rows":0,"n_cols":0,"rows_kept":0,"cut":false,"hidden":false,"merged":[]}

{"sheet":"pc04_101FieldTable","index":18,"n_rows":0,"n_cols":0,"rows_kept":0,"cut":false,"hidden":false,"merged":[]}

{"sheet":"pc05_101FieldTable","index":19,"n_rows":6,"n_cols":192,"rows_kept":6,"cut":false,"hidden":false,"merged":[]}
[1,2,3,4,5,6,7,8,"1900-01-08",10,11,12,13,14,15,16,17,14,19,20,21,22,23,24,25,26,27,14,14,30,15,32,15,34,35,36,37,"1900-02-06",39,40,41,42,43,44,45,46,"1900-02-15",48,49,50,51,52,53,54,"1900-02-23",56,57,58,59,60,61,62,"1900-03-03",64,65,66,67,68,69,70,"1900-03-11",72,73,74,75,76,77,78,"1900-03-19",80,81,82,83,84,85,"1900-03-26",87,88,89,90,91,92,93,"1900-04-03",95,96,97,98,99,100,101,"1900-04-11",103,104,105,106,107,108,109,"2017-07-18",null,1,113,114,1,116,117,118,119,1,0,122,123,124,125,1,1,128,129,130,131,1,133,134,135,136,1,138,139,140,141,142,143,144,145,146,147,148,149,150,151,152,153,154,155,156,157,158,159,160,161,162,163,164,165,166,167,168,169,170,171,172,173,174,175,176,177,178,179,180,181,182,183,184,185,186,187,188,189,190,191,192]
["名称","圃場台帳",null,null,null,null,195,"名称",true,null,null,null,null,null,null,null,null,null,null,null,null,null,null,null,null,null,null,null,null,null,null,null,null,null,null,null,null,null,null,null,null,null,null,null,null,null,null,null,null,null,null,null,null,null,null,null,null,null,null,null,null,null,null,null,null,null,null,null,null,null,null,null,null,null,null,null,null,null,null,null,null,null,null,null,null,null,null,null,null,null,null,null,null,null,null,null,null,null,null,null,null,null,null,null,null,null,null,null,null,"2017-07-18",null,0,null,null,0,null,null,null,null,0,0,null,null,null,null,0,0,null,null,null,null,0,null,null,null,null,0,null,null,null,null,null,null,3,5]
["ファイル名","101FieldTable.csv",null,null,null,null,null,"ファイル名"]
["説明","生産管理者が管理する圃場および生産計画に関する情報",null,null,null,null,null,"説明"]
["1",2,3,4,5,6,7,8,"1900-01-09",10,11,12,13,14,15,16,17,14,19,20,21,22,23,24,25,26,27,28,29,30,31,32,15,34,35,36,37,"1900-02-06",39,40,41,42,43,44,45,46,"1900-02-15",48,49,50,51,52,53,54,"1900-02-23",56,57,58,59,60,61,62,"1900-03-03",64,65,66,67,68,69,70,"1900-03-11",72,73,74,75,76,77,78,"1900-03-19",80,81,82,83,84,85,"1900-03-26",87,88,89,90,91,92,93,"1900-04-03",95,96,97,98,99,100,101,"1900-04-11",103,104,105,106,107,108,109,"1900-04-19","1900-04-20",112,113,114,115,116,117,118,119,120,121,122,123,124,125,126,127,128,129,130,131,132,133,134,135,136,137,138,139,140,141,142,143,144,145,146,147,148,149,150,151,152,153,154,155,156,157,158,159,160,161,162,163,164,165,166,167,168,169,170,171,172,173,174,175,176,177,178,179,180,181,182,183,184,185,186,187,188,189,190,191,192]
["主キー","圃場番号","栽培番号","収穫有無","シリアル番号","地区・団地名","圃場名","収穫日フラグ","作業終了フラグ","地番（都道府県）","地番（市区町村）","地番（地番）","生産地名","地積（㎡）","地権者名","フリガナ",null,"地積（㎡）","地図URL","圃場コメント","生産年度","作期番号","生産名称","収穫予定日","製品名","作物名","品種名","地積（㎡）","地積（㎡）","生産予定数量(kg)","地権者名","収穫調製者名","地権者名","購入者名","生産計画コメント","移植・直播更新時刻","移植・直播記録者名","移植･直播日","移植･直播種別","苗箱数（個）","播種量（Kg）","移植・直播作業員名","移植･直播コメント","移植・直播写真","堆肥更新時刻","堆肥記録者名","堆肥散布日","畜種","堆肥散布量(t/10a)","堆肥作業員名","堆肥コメント","堆肥写真","基肥更新時刻","基肥記録者名","基肥散布日","基肥肥料名","基肥散布量(kg/10a)","基肥作業員名","基肥コメント","基肥写真","追肥1更新時刻","追肥1記録者名","追肥1散布日","追肥1肥料名","追肥1散布量(kg/10a)","追肥1作業員名","追肥1コメント","追肥1写真","追肥2更新時刻","追肥2記録者名","追肥2散布日","追肥2肥料名","追肥2散布量(kg/10a)","追肥2作業員名","追肥2コメント","追肥2写真","除草1更新時刻","除草1記録者名","除草1散布日","除草1薬剤名","除草1散布量(kg/10a)","除草1作業員名","除草1コメント","除草1写真","除草2更新時刻","除草2記録者名","除草2散布日","除草2薬剤名","除草2散布量(kg/10a)","除草2作業員名","除草2コメント","除草2写真","殺虫1更新時刻","殺虫1記録者名","殺虫1散布日","殺虫1薬剤名","殺虫1散布量(kg/10a)","殺虫1作業員名","殺虫1コメント","殺虫1写真","殺虫2更新時刻","殺虫2記録者名","殺虫2散布日","殺虫2薬剤名","殺虫2散布量(kg/10a)","殺虫2作業員名","殺虫2コメント","殺虫2写真","収穫更新日時","収穫開始日","収穫終了日","収穫時刻","熟度更新時刻","熟度記録者名","収穫時熟度","収穫時熟度コメント","収穫時熟度写真","雑草更新時刻","雑草記録者名","雑草の発生程度","主な雑草の種類","雑草被害コメント","雑草被害写真","病害虫更新時刻","病害虫記録者名","病害虫の被害程度","主な病害虫の種類","病害虫被害コメント","病害虫被害写真","倒伏更新時刻","倒伏記録者名","倒伏の被害程度","倒伏被害コメント","倒伏被害写真","圃場状態更新時刻","圃場状態記録者名","圃場状態","圃場状態コメント","圃場状態写真","収穫梱包更新時刻","収穫梱包記録者名","専用収穫機体系","反転の有無","反転回数","予乾日数","ロール直径","ロール高さ","添加剤使用","添加剤名","収穫梱包作業員名","収穫梱包コメント","収穫梱包写真","密封更新時刻","密封記録者名","フィルム巻き数","密封作業員名","密封コメント","重量更新時刻","重量記録者名","平均重量(KG)","重量算出方法","重量作業員名","重量コメント","水分更新時刻","水分記録者名","水分量(％)","水分算出方法","水分作業員名","水分コメント","放射線更新時刻","放射線記録者名","最大放射線量(Bq)","放射線量作業員名","放射線量コメント","保管更新時刻","保管記録者名","保管ロール数","保管場所","保管作業員名","保管コメント","検品更新時刻","検品記録者名","保管場所","検品作業員名","出荷更新時刻","出荷記録者名","出荷先","出荷作業員名",null,null,"作業ユニット名"]

{"sheet":"2011SagyouReport","index":20,"n_rows":13,"n_cols":26,"rows_kept":13,"cut":false,"hidden":false,"merged":[]}
["分類","作業日報"]
["名称","作業日報"]
["ファイル名","201SagyouReport.csv"]
[null,"コントラクタ作業日報"]
["1",2,3,4,5,6,7,8,9,10,11,12,13,14,15,16,17,18,19]
["主キー","日時","作業者","作業ユニット","圃場キー","圃場情報","作業内容","完了","作物","圃場番号","圃場面積","作業時間　開始","作業時間　終了","備考","天気","圃場状態","ロール個数","全体の備考","質量"]
[1,"2019-11-28","那須太郎","PC01",9,"赤田太郎","収穫",false,"wcsイネ",1,215.4,"07:00:00","13:30:00",null,"晴れ",null,30]
[2,"2019-11-28","大宮三郎","PC01",8,"千本松太郎","収穫",false,"wcsイネ",1,460,"14:00:00","16:00:00",null,"晴れ",null,15]
[3,"2019-11-28","那須太郎","PC02",9,"赤田太郎","収穫",false,"wcsイネ",1,215.4,"10:00:00",null,null,"晴れ",null,15]
[4,"2019-11-29","大宮三郎","mainpc",9,"赤田太郎","収穫",false,"wcsイネ",1,215.4,null,null,null,null,null,28,"testdata"]
[5,"2020-09-01","那須太郎","PC01",12,"圃場１","収穫",false,"wcsイネ",1,100,"09:30:00","15:30:00",null,"晴れ","良好",45,null,null,296,341,45,1,45,null,45]
[6,"2020-09-03","那須太郎","PC01",12,"圃場１","収穫",false,"wcsイネ",1,100,"13:00:00","16:00:00",null,"晴れ",null,20,null,null,373,393,65,1,65,null,65]
[7,"2020-09-08","那須太郎","PC01",12,"圃場１","収穫",false,"wcsイネ",1,100,"09:00:00","14:30:00",null,"晴れ",null,30,null,null,342,372,95,1,95,null,95]

{"sheet":"pc01_2011SagyouReport","index":21,"n_rows":13,"n_cols":26,"rows_kept":13,"cut":false,"hidden":false,"merged":[]}
["分類","作業日報"]
["名称","作業日報"]
["ファイル名","201SagyouReport.csv"]
[null,"コントラクタ作業日報"]
["1",2,3,4,5,6,7,8,9,10,11,12,13,14,15,16,17,18,19]
["主キー","日時","作業者","作業ユニット","圃場キー","圃場情報","作業内容","完了","作物","圃場番号","圃場面積","作業時間　開始","作業時間　終了","備考","天気","圃場状態","ロール個数","全体の備考","質量"]
[1,"2019-11-28","那須太郎","PC01",9,"赤田太郎","収穫",false,"wcsイネ",1,215.4,"07:00:00","13:30:00",null,"晴れ",null,30]
[2,"2019-11-28","大宮三郎","PC01",8,"千本松太郎","収穫",false,"wcsイネ",1,460,"14:00:00","16:00:00",null,"晴れ",null,15]
[3,"2019-11-28","那須太郎","PC02",9,"赤田太郎","収穫",false,"wcsイネ",1,215.4,"10:00:00",null,null,"晴れ",null,15]
[4,"2019-11-29","大宮三郎","mainpc",9,"赤田太郎","収穫",false,"wcsイネ",1,215.4,null,null,null,null,null,28,"testdata"]
[5,"2020-09-01","那須太郎","PC01",12,"圃場１","収穫",false,"wcsイネ",1,100,"09:30:00","15:30:00",null,"晴れ","良好",45,null,null,296,341,45,1,45,null,45]
[6,"2020-09-03","那須太郎","PC01",12,"圃場１","収穫",false,"wcsイネ",1,100,"13:00:00","16:00:00",null,"晴れ",null,20,null,null,373,393,65,1,65,null,65]
[7,"2020-09-08","那須太郎","PC01",12,"圃場１","収穫",false,"wcsイネ",1,100,"09:00:00","14:30:00",null,"晴れ",null,30,null,null,342,372,95,1,95,null,95]

{"sheet":"pc02_2011SagyouReport","index":22,"n_rows":6,"n_cols":19,"rows_kept":6,"cut":false,"hidden":false,"merged":[]}
["分類","作業日報"]
["名称","作業日報"]
["ファイル名","201SagyouReport.csv"]
[null,"コントラクタ作業日報"]
["1","1900-01-01",3,4,5,6,7,8,9,10,11,12,13,14,15,16,17,18,19]
["主キー","日時","作業者","作業ユニット","圃場キー","圃場情報","作業内容","完了","作物","圃場番号","圃場面積","作業時間　開始","作業時間　終了","備考","天気","圃場状態","ロール個数","全体の備考","質量"]

{"sheet":"pc03_2011SagyouReport","index":23,"n_rows":0,"n_cols":0,"rows_kept":0,"cut":false,"hidden":false,"merged":[]}

{"sheet":"pc04_2011SagyouReport","index":24,"n_rows":0,"n_cols":0,"rows_kept":0,"cut":false,"hidden":false,"merged":[]}

{"sheet":"pc05_2011SagyouReport","index":25,"n_rows":6,"n_cols":19,"rows_kept":6,"cut":false,"hidden":false,"merged":[]}
["分類","作業日報"]
["名称","作業日報"]
["ファイル名","201SagyouReport.csv"]
[null,"コントラクタ作業日報"]
["1","1900-01-01",3,4,5,6,7,8,9,10,11,12,13,14,15,16,17,18,19]
["主キー","日時","作業者","作業ユニット","圃場キー","圃場情報","作業内容","完了","作物","圃場番号","圃場面積","作業時間　開始","作業時間　終了","備考","天気","圃場状態","ロール個数","全体の備考","質量"]

{"sheet":"2012RoumReport","index":26,"n_rows":19,"n_cols":12,"rows_kept":19,"cut":false,"hidden":false,"merged":[]}
["分類","労務日報",null,null,"昼休み　","01:00:00","00:01:00"]
["名称","労務日報"]
["ファイル名","2012RoumuReport"]
["説明","コントラクタ作業日報"]
["1",2,3,4,5,6,7,8,9,10,11,12]
["主キー","日時","作業者","作業ユニット","オペレータ","開始時間","終了時間","勤務時間","昼休み1時間","機械リスト"]
[1,"2019-10-10","作業者１","PC01","作業者１","07:30:00","14:00:00","05:30:00",true,"私用車あり"]
[2,"2019-10-10","作業者１","PC01","作業者２","07:30:00","14:00:00","05:30:00",true]
[3,"2019-11-28","大宮三郎","PC01","那須太郎","07:30:00","17:30:00","09:00:00",true]
[4,"2019-11-28","大宮三郎","PC01","御代田四郎","07:30:00","17:30:00","09:00:00",true]
[5,"2019-11-28","大宮三郎","PC01","作業者１","07:30:00","17:00:00","08:30:00",true]
[6,"2019-11-28","那須太郎","PC02","那須太郎","07:30:00","17:30:00","09:00:00",true]
[7,"2020-09-01","那須太郎","PC01","那須太郎","07:30:00","17:30:00","09:00:00",true,null,"収穫,圃場１"]
[8,"2020-09-01","那須太郎","PC01","作業者１","07:30:00","17:30:00","09:00:00",true,null,"収穫,圃場１"]
[9,"2020-09-03","那須太郎","PC01","那須太郎","13:00:00","17:30:00","04:30:00",false,null,"収穫,圃場１"]
[10,"2020-09-03","那須太郎","PC01","作業者１","13:00:00","17:30:00","04:30:00",false,null,"収穫,圃場１"]
[11,"2020-09-03","那須太郎","PC01","作業者３","07:30:00","17:00:00","08:30:00",true]
[12,"2020-09-03","那須太郎","PC01","作業者２","07:30:00","17:00:00","08:30:00",true]
[13,"2020-09-08","那須太郎","PC01","作業者１","13:00:00","17:00:00","08:30:00",true]

{"sheet":"pc01_2012RoumReport","index":27,"n_rows":19,"n_cols":12,"rows_kept":19,"cut":false,"hidden":false,"merged":[]}
["分類","労務日報",null,null,"昼休み　","01:00:00","00:01:00"]
["名称","労務日報"]
["ファイル名","2012RoumuReport"]
["説明","コントラクタ作業日報"]
["1",2,3,4,5,6,7,8,9,10,11,12]
["主キー","日時","作業者","作業ユニット","オペレータ","開始時間","終了時間","勤務時間","昼休み1時間","機械リスト"]
[1,"2019-10-10","作業者１","PC01","作業者１","07:30:00","14:00:00","05:30:00",true,"私用車あり"]
[2,"2019-10-10","作業者１","PC01","作業者２","07:30:00","14:00:00","05:30:00",true]
[3,"2019-11-28","大宮三郎","PC01","那須太郎","07:30:00","17:30:00","09:00:00",true]
[4,"2019-11-28","大宮三郎","PC01","御代田四郎","07:30:00","17:30:00","09:00:00",true]
[5,"2019-11-28","大宮三郎","PC01","作業者１","07:30:00","17:00:00","08:30:00",true]
[6,"2019-11-28","那須太郎","PC02","那須太郎","07:30:00","17:30:00","09:00:00",true]
[7,"2020-09-01","那須太郎","PC01","那須太郎","07:30:00","17:30:00","09:00:00",true,null,"収穫,圃場１"]
[8,"2020-09-01","那須太郎","PC01","作業者１","07:30:00","17:30:00","09:00:00",true,null,"収穫,圃場１"]
[9,"2020-09-03","那須太郎","PC01","那須太郎","13:00:00","17:30:00","04:30:00",false,null,"収穫,圃場１"]
[10,"2020-09-03","那須太郎","PC01","作業者１","13:00:00","17:30:00","04:30:00",false,null,"収穫,圃場１"]
[11,"2020-09-03","那須太郎","PC01","作業者３","07:30:00","17:00:00","08:30:00",true]
[12,"2020-09-03","那須太郎","PC01","作業者２","07:30:00","17:00:00","08:30:00",true]
[13,"2020-09-08","那須太郎","PC01","作業者１","13:00:00","17:00:00","08:30:00",true]

{"sheet":"pc02_2012RoumReport","index":28,"n_rows":6,"n_cols":12,"rows_kept":6,"cut":false,"hidden":false,"merged":[]}
["分類","労務日報",null,null,"昼休み　","01:00:00","00:01:00"]
["名称","労務日報"]
["ファイル名","2012RoumuReport"]
["説明","コントラクタ作業日報"]
["1",1,3,4,5,6,7,8,9,10,11,12]
["主キー","日時","作業者","作業ユニット","オペレータ","開始時間","終了時間","勤務時間","昼休み1時間","機械リスト"]

{"sheet":"pc03_2012RoumReport","index":29,"n_rows":0,"n_cols":0,"rows_kept":0,"cut":false,"hidden":false,"merged":[]}

{"sheet":"pc04_2012RoumReport","index":30,"n_rows":0,"n_cols":0,"rows_kept":0,"cut":false,"hidden":false,"merged":[]}

{"sheet":"pc05_2012RoumReport","index":31,"n_rows":6,"n_cols":12,"rows_kept":6,"cut":false,"hidden":false,"merged":[]}
["分類","労務日報",null,null,"昼休み　",4.1666666999999998E-2,6.9444444444444447E-4]
["名称","労務日報"]
["ファイル名","2012RoumuReport"]
["説明","コントラクタ作業日報"]
["1",1,3,4,5,6,7,8,9,10,11,12]
["主キー","日時","作業者","作業ユニット","オペレータ","開始時間","終了時間","勤務時間","昼休み1時間","機械リスト"]

{"sheet":"2013MachineReport","index":32,"n_rows":14,"n_cols":17,"rows_kept":14,"cut":false,"hidden":false,"merged":[]}
["分類","作業機日報",null,null,"昼休み　","01:00:00"]
["名称","作業機日報"]
["ファイル名","2013MachineReport"]
["説明","コントラクタ作業日報",null,null,null,null,7,8,9,10,11,12,13,14,15,16,17]
["主キー","日時","オペレータ名","ユニット名","圃場番号","使用機械","軽油","ガソリン","オイル","ネット","ラップフィルム","乳酸菌",null,null,"使用機材備考","備考","アワーメータ"]
[1,"2019-10-10","作業者１","PC01",null,"汎用型１",20,null,null,1,null,null,null,null,null,null,0]
[2,"2019-10-10","作業者１","PC01",null,"自走式ラップ１",null,null,null,null,2,null,null,null,null,null,500]
[3,"2019-11-28","大宮三郎","PC01",9,"専用機１",null,null,null,null,null,null,null,null,null,null,1025]
[4,"2019-11-28","大宮三郎","PC01",1,"自走式ラップ１",null,null,null,null,null,null,null,null,null,null,1179]
[5,"2019-11-28","那須太郎","PC02",9,"専用機２",null,null,null,null,null,null,null,null,null,null,1007]
[6,"2019-11-28","那須太郎","PC02",null,"自走式ラップ１",null,null,null,null,null,null,null,null,null,null,500]
[7,"2020-09-01","那須太郎","PC01",12,"専用機１",null,null,null,null,null,null,null,null,null,null,1179]
[8,"2020-09-03","那須太郎","PC01",12,"専用機１",null,null,null,null,null,null,null,null,null,null,1179]
[9,"2020-09-08","那須太郎","PC01",12,"専用機１",null,null,null,null,null,null,null,null,null,null,1179]

{"sheet":"pc01_2013MachineReport","index":33,"n_rows":14,"n_cols":17,"rows_kept":14,"cut":false,"hidden":false,"merged":[]}
["分類","作業機日報",null,null,"昼休み　","01:00:00"]
["名称","作業機日報"]
["ファイル名","2013MachineReport"]
["説明","コントラクタ作業日報",null,null,null,null,7,8,9,10,11,12,13,14,15,16,17]
["主キー","日時","オペレータ名","ユニット名","圃場番号","使用機械","軽油","ガソリン","オイル","ネット","ラップフィルム","乳酸菌",null,null,"使用機材備考","備考","アワーメータ"]
[1,"2019-10-10","作業者１","PC01",null,"汎用型１",20,null,null,1,null,null,null,null,null,null,0]
[2,"2019-10-10","作業者１","PC01",null,"自走式ラップ１",null,null,null,null,2,null,null,null,null,null,500]
[3,"2019-11-28","大宮三郎","PC01",9,"専用機１",null,null,null,null,null,null,null,null,null,null,1025]
[4,"2019-11-28","大宮三郎","PC01",1,"自走式ラップ１",null,null,null,null,null,null,null,null,null,null,1179]
[5,"2019-11-28","那須太郎","PC02",9,"専用機２",null,null,null,null,null,null,null,null,null,null,1007]
[6,"2019-11-28","那須太郎","PC02",null,"自走式ラップ１",null,null,null,null,null,null,null,null,null,null,500]
[7,"2020-09-01","那須太郎","PC01",12,"専用機１",null,null,null,null,null,null,null,null,null,null,1179]
[8,"2020-09-03","那須太郎","PC01",12,"専用機１",null,null,null,null,null,null,null,null,null,null,1179]
[9,"2020-09-08","那須太郎","PC01",12,"専用機１",null,null,null,null,null,null,null,null,null,null,1179]

{"sheet":"pc02_2013MachineReport","index":34,"n_rows":5,"n_cols":17,"rows_kept":5,"cut":false,"hidden":false,"merged":[]}
["分類","作業機日報",null,null,"昼休み　","01:00:00"]
["名称","作業機日報"]
["ファイル名","2013MachineReport"]
["説明","コントラクタ作業日報",null,null,null,null,7,8,9,10,11,12,13,14,15,16,17]
["主キー","日時","オペレータ名","ユニット名","圃場番号","使用機械","軽油","ガソリン","オイル","ネット","ラップフィルム","乳酸菌",null,null,"使用機材備考","備考","アワーメータ"]

{"sheet":"pc03_2013MachineReport","index":35,"n_rows":0,"n_cols":0,"rows_kept":0,"cut":false,"hidden":false,"merged":[]}

{"sheet":"pc04_2013MachineReport","index":36,"n_rows":0,"n_cols":0,"rows_kept":0,"cut":false,"hidden":false,"merged":[]}

{"sheet":"pc05_2013MachineReport","index":37,"n_rows":5,"n_cols":15,"rows_kept":5,"cut":false,"hidden":false,"merged":[]}
["分類","作業機日報",null,null,"昼休み　",4.1666666999999998E-2]
["名称","作業機日報"]
["ファイル名","2013MachineReport"]
["説明","コントラクタ作業日報",null,null,null,null,7,8,9,10,11,12,13,14,15]
["主キー","日時","オペレータ名","ユニット名","圃場番号","使用機械","軽油","ガソリン","オイル","ネット","ラップフィルム","乳酸菌",null,null,"使用機材備考"]

{"sheet":"memo","index":38,"n_rows":0,"n_cols":0,"rows_kept":0,"cut":false,"hidden":true,"merged":[]}

{"sheet":"csvfile","index":39,"n_rows":30,"n_cols":10,"rows_kept":30,"cut":false,"hidden":false,"merged":[]}
[null,"CSVファイル　import  , outport 設定"]
[1,{"$f":"A2+1","v":2},{"$f":"B2+1","v":3},4,5,6,7,8,9,10]
[null,"PC番号の設定",null,null,"mainpc",0]
[]
[null,"ファイル出力フォルダ設定",null,null,"c:\\wcs\\export\\",null,"メールアドレス",null,null,"nasunominoriforegis@gmail.com"]
[null,null,null,null,null,null,null,null,null,"tamakidapon@gmail.com"]
[null,"ファイル入力フォルダ設定",null,null,"c:\\wcs\\import\\"]
[]
[null,"出力ファイル名",null,null,"101FieldTable"]
[null,null,null,null,"2011SagyouReport"]
[null,null,null,null,"2012RoumReport"]
[null,null,null,null,"2013MachineReport"]
[null,null,null,null,"log"]
[]
[null,null,null,null,null,"タブレット名+日付csvを出力"]
[null,null,null,null,null,"・作業日報ファイル、生産履歴ファイル"]
[null,null,null,null,null,"メインPCは各タブレットの作業情報ファイルを統合"]
[]
[]
[]
[]
[]
[]
[]
[]
[]
[null,"添付ファイル名",null,null,"c:\\wcs\\export\\101FieldTable20180515.csv"]
[null,null,null,null,"c:\\wcs\\export\\2011SagyouReport20180515.csv"]
[null,null,null,null,"c:\\wcs\\export\\2012RoumReport20180515.csv"]
[null,null,null,null,"c:\\wcs\\export\\2013MachineReport20180515.csv"]

{"sheet":"productlabel","index":40,"n_rows":3,"n_cols":145,"rows_kept":3,"cut":false,"hidden":false,"merged":[]}
["sheets","title","label01_flag","label01_item","label01_data","label02_flag","label02_item","label02_data","label03_flag","label03_item","label03_data","label04_flag","label04_item","label04_data","label05_flag","label05_item","label05_data","label06_flag","label06_item","label06_data","label07_flag","label07_item","label07_data","label08_flag","label08_item","label08_data","label09_flag","label09_item","label09_data","label10_flag","label10_item","label10_data","labelLN_flag","labelSN_flag","QR01_flag","QR01_data","QR02_flag","QR02_data","QR03_flag","QR03_data","QR04_flag","QR04_data","QR05_flag","QR05_data","QR06_flag","QR06_data","QR07_flag","QR07_data","QR08_flag","QR08_data","QR09_flag","QR09_data","QR10_flag","QR10_data","QRLN_flag","QRSN_flag","LN1","LN2","LN3","LN4","SN_start"]
[1,"ロールベール表示票","ON","製品名","稲発酵粗飼料","ON","生産地",null,"ON","生産地","那須町寺子乙","ON","品種名",16,"ON","収穫日","たちすがた","ON","熟期",null,"ON","ハーベスタ切断長","---","ON","添加剤","---","ON","水分",null,"ON","水分[%]",null,"ON","ON","ON","製品名：稲発酵粗飼料","ON","販売者名：","ON","品種名：たちすがた","ON","収穫日：","ON","[管理番号]","OFF",null,"OFF",null,"OFF",null,"OFF",null,"OFF",null,"ON","ON",16,16,2017,null,"AUTO",null,null,null,null,null,null,null,null,null,null,null,null,null,null,null,null,null,null,null,null,null,null,null,null,null,null,null,null,null,null,null,null,null,null,null,null,null,null,null,null,null,null,null,null,null,null,null,null,null,null,null,null,null,"乳熟期",null,null,null,null,null,null,null,null,null,null,null,null,null,null,null,null,null,null,null,null,null,null,null,null,null,null,null,null,7,5]
[1,{"$f":"A3+1","v":2},{"$f":"B3+1","v":3},4,5,6,7,8,9,10,11,12,13,14,15,16,17,18,19,20,21,22,23,24,25,26,27,28,29,30,31,32,33,34,35,36,37,38,39,40,41,42,43,44,45,46,47,48,49,50,51,52,53,54,55,56,57,58,59,60,61]

{"sheet":"label","index":41,"n_rows":43,"n_cols":14,"rows_kept":43,"cut":false,"hidden":false,"merged":[[28,1,28,6],[28,8,28,13],[36,1,36,6],[36,8,36,13],[2,1,2,2],[4,1,4,6],[4,8,4,13],[12,1,12,6],[12,8,12,13],[20,1,20,6],[20,8,20,13]]}
[1,{"$f":"A1+1","v":2},{"$f":"B1+1","v":3},4,5,6,7,8,9,10,11,12,13,14]
[null,"ロールベール表示票（中条農産）",null,null,null,null,null,null,null,null,"QRコード記載情報"]
[null,"印刷番号",null,2,null,null,null,null,null,null,"http://foregis.jp/0804.htm"]
[]
[null,"ロールベール表示票",null,null,null,null,null,null,"ロールベール表示票"]
[null,"製品名","：","稲発酵粗飼料",null,null,null,null,"製品名","：","稲発酵粗飼料"]
[null,"生産地","：",null,null,null,null,null,"生産地","："]
[null,"品種名","：","ゆめあおば",null,null,null,null,"品種名","：","たちすがた"]
[null,"収穫日",null,"2016-08-04",null,null,null,null,"収穫日",null,"2016-10-26"]
[]
[null,{"$f":"label_data!B3","v":"nasu2017_000001"},null,null,null,"S/N=1",null,null,{"$f":"label_data!B4","v":"nasu2017_000002"},null,null,null,"S/N=1"]
[]
[null,"ロールベール表示票",null,null,null,null,null,null,"ロールベール表示票"]
[null,"製品名","：","稲発酵粗飼料",null,null,null,null,"製品名","：","稲発酵粗飼料"]
[null,"生産地","：",null,null,null,null,null,"生産地","："]
[null,"品種名","：",null,null,null,null,null,"品種名","："]
[null,"収穫日","：","2016-10-26",null,null,null,null,"収穫日","：","2016-10-26"]
[]
[null,null,null,null,null,"S/N=2",null,null,null,null,null,null,"S/N=2"]
[]
[null,"ロールベール表示票",null,null,null,null,null,null,"ロールベール表示票"]
[null,"製品名","：","稲発酵粗飼料",null,null,null,null,"製品名","：","稲発酵粗飼料"]
[null,"生産地","：",null,null,null,null,null,"生産地","："]
[null,"品種名","：","たちすがた",null,null,null,null,"品種名","：","たちすがた"]
[null,"収穫日","：","2016-10-26",null,null,null,null,"収穫日","：","2016-10-26"]
[]
[null,null,null,null,null,"S/N=3",null,null,null,null,null,null,"S/N=3"]
[]
[null,"ロールベール表示票",null,null,null,null,null,null,"ロールベール表示票"]
[null,"製品名","：","稲発酵粗飼料",null,null,null,null,"製品名","：","稲発酵粗飼料"]
[null,"生産地","：","那須町大字富岡818-2",null,null,null,null,"生産地","：","那須町大字富岡818-2"]
[null,"品種名","：","たちすがた",null,null,null,null,"品種名","：","たちすがた"]
[null,"収穫日","：","2016-10-26",null,null,null,null,"収穫日","：","2016-10-26"]
[]
[null,null,null,null,null,"S/N=4",null,null,null,null,null,null,"S/N=4"]
[]
[null,"ロールベール表示票",null,null,null,null,null,null,"ロールベール表示票"]
[null,"製品名","：","稲発酵粗飼料",null,null,null,null,"製品名","：","稲発酵粗飼料"]
[null,"生産地","：",null,null,null,null,null,"生産地","："]
[null,"品種名","：","たちすがた",null,null,null,null,"品種名","：","たちすがた"]
[null,"収穫日","：","2016-10-26",null,null,null,null,"収穫日","：","2016-10-26"]
[]
[null,null,null,null,null,"S/N=4",null,null,null,null,null,null,"S/N=4"]

{"sheet":"label_data","index":42,"n_rows":35,"n_cols":2,"rows_kept":35,"cut":false,"hidden":false,"merged":[]}
["ラベル印刷データ"]
["index","ラベル印刷内容"]
[1,"nasu2017_000001"]
[{"$f":"A3+1","v":2},"nasu2017_000002"]
[{"$f":"A4+1","v":3},"nasu2017_000003"]
[4,"nasu2017_000004"]
[5,"nasu2017_000005"]
[6,"nasu2017_000006"]
[7,"nasu2017_000007"]
[8,"nasu2017_000008"]
[9,"nasu2017_000009"]
[10,"nasu2017_000010"]
[11,"nasu2017_000011"]
[12,"nasu2017_000012"]
[13,"nasu2017_000013"]
[14,"nasu2017_000014"]
[15,"nasu2017_000015"]
[16,"nasu2017_000016"]
[17,"nasu2017_000017"]
[18,"nasu2017_000018"]
[19,"nasu2017_000019"]
[20,"nasu2017_000020"]
[21,"nasu2017_000021"]
[22,"nasu2017_000022"]
[23,"nasu2017_000023"]
[24,"nasu2017_000024"]
[25,"nasu2017_000025"]
[26,"nasu2017_000026"]
[27,"nasu2017_000027"]
[28,"nasu2017_000028"]
[29,"nasu2017_000029"]
[30,"nasu2017_000030"]
[31,"nasu2017_000031"]
[32,"nasu2017_000032"]
[33,"nasu2017_000033"]

{"sheet":"CSV","index":43,"n_rows":2,"n_cols":61,"rows_kept":2,"cut":false,"hidden":false,"merged":[]}
["sheets","title","label01_flag","label01_item","label01_data","label02_flag","label02_item","label02_data","label03_flag","label03_item","label03_data","label04_flag","label04_item","label04_data","label05_flag","label05_item","label05_data","label06_flag","label06_item","label06_data","label07_flag","label07_item","label07_data","label08_flag","label08_item","label08_data","label09_flag","label09_item","label09_data","label10_flag","label10_item","label10_data","labelLN_flag","labelSN_flag","QR01_flag","QR01_data","QR02_flag","QR02_data","QR03_flag","QR03_data","QR04_flag","QR04_data","QR05_flag","QR05_data","QR06_flag","QR06_data","QR07_flag","QR07_data","QR08_flag","QR08_data","QR09_flag","QR09_data","QR10_flag","QR10_data","QRLN_flag","QRSN_flag","LN1","LN2","LN3","LN4","SN_start"]
[1,"ロールベール表示票","ON","製品名","稲発酵粗飼料","ON","販売者名","ドリームファームｽｽﾞｶ","ON","生産地","鈴鹿市柳町","ON","圃場名","ヤナ1505","ON","品種名","なつあおば","ON","収穫日",41871,"ON","収穫時熟期","完熟期","ON","フィルム巻数","8層巻","ON","重量[kg]",250,"ON","水分[%]",65,"ON","ON","ON","製品名：稲発酵粗飼料","ON","販売者名：ドリームファームｽｽﾞｶ","ON","品種名：なつあおば","ON","収穫日：2014/08/20","ON","[管理番号]","OFF",null,"OFF",null,"OFF",null,"OFF",null,"OFF",null,"ON","ON",242071,21,201401,140820,"AUTO"]

{"sheet":"RoumuBuffer","index":44,"n_rows":0,"n_cols":0,"rows_kept":0,"cut":false,"hidden":false,"merged":[]}

{"sheet":"nippou","index":45,"n_rows":27,"n_cols":17,"rows_kept":27,"cut":false,"hidden":false,"merged":[[17,16,18,16],[24,7,24,8],[0,0,0,14],[7,6,7,7],[7,2,8,3],[4,5,4,6],[7,0,8,0],[7,1,8,1],[2,1,2,3],[3,1,3,3],[5,1,5,3],[4,3,4,4],[7,5,8,5],[5,9,5,10],[3,5,3,6],[19,7,19,8],[7,4,8,4],[17,11,18,11],[17,12,17,15],[17,1,17,6],[17,7,18,8],[17,9,18,9],[7,9,8,14],[9,9,9,14],[10,9,10,14],[11,9,11,14],[12,9,12,14],[13,9,13,14],[14,9,14,14],[27,0,29,14],[20,7,20,8],[21,7,21,8],[22,7,22,8],[23,7,23,8]]}
["    作業日報",null,null,null,null,null,null,null,null,null,null,null,null,null,null,"株式会社　那須の農"]
[]
["作業日","2020-09-03"]
["報告者名","那須太郎",null,null,null,"作業ﾕﾆｯﾄ",null,"PC01"]
[]
[null,null,null,null,null,"天気","晴れ",null,"圃場状態"]
["圃場情報"]
["作業委託者\n作業場所","圃場　面積","作物",null,"作業内容","作業\n完了","作業時間",null,"出来高","圃場状態備考"]
[null,null,null,null,null,null,"開始","終了","ロール数"]
["圃場１-1",100,"wcsイネ",null,"収穫","未完了","16:00:00","16:00:00",20]
[]
[]
[]
[]
[]
["合計",{"$f":"SUM(B10:B15)","v":100},null,null,null,null,null,null,{"$f":"SUM(I10:I15)","v":20}]
["使用機材情報",null,null,null,null,null,null,null,null,null,null,"勤怠情報"]
[null,"補充機材",null,null,null,null,null,"使用機材備考",null,"アワーメータ",null,"オペレータ","稼働時間",null,null,null,"機材備考"]
["使用機材","軽油","ガソリン","オイル","ネット","ﾗｯﾌﾟﾌｨﾙﾑ","乳酸菌",null,null,null,null,null,"開始","終了","昼休み","実時間"]
["専用機１",null,null,null,null,null,null,null,null,1179,null,"那須太郎","13:00:00","17:30:00",false,"04:30:00"]
[null,null,null,null,null,null,null,null,null,null,null,"作業者１","13:00:00","17:30:00",false,"04:30:00"]
[null,null,null,null,null,null,null,null,null,null,null,"作業者３","07:30:00","17:00:00",true,"08:30:00"]
[null,null,null,null,null,null,null,null,null,null,null,"作業者２","07:30:00","17:00:00",true,"08:30:00"]
[]
[]
[null,{"$f":"SUM(B20:B25)","v":0},0,0,0,0,0]
["備考"]

{"sheet":"kinmunippou","index":46,"n_rows":46,"n_cols":9,"rows_kept":46,"cut":false,"hidden":false,"merged":[[45,0,45,1],[4,7,5,7],[41,0,41,1],[37,0,39,4],[4,0,5,0],[4,1,5,1],[4,2,5,2],[4,3,5,3],[4,4,5,4],[4,8,5,8],[4,5,4,6],[43,0,43,1],[44,0,44,1],[1,0,1,8]]}
[]
["勤務状況報告書"]
[2020,"年",9,"月分",null,"氏名："]
[]
["日付","曜日","始業","終業","休憩","実務時間",null,"備考","私用車\n有無"]
[null,null,null,null,null,"労働時間","時間外"]
["2020-08-21","金"]
["2020-08-22","土"]
["2020-08-23","日"]
["2020-08-24","月"]
["2020-08-25","火"]
["2020-08-26","水"]
["2020-08-27","木"]
["2020-08-28","金"]
["2020-08-29","土"]
["2020-08-30","日"]
["2020-08-31","月"]
["2020-09-01","火"]
["2020-09-02","水"]
["2020-09-03","木"]
["2020-09-04","金"]
["2020-09-05","土"]
["2020-09-06","日"]
["2020-09-07","月"]
["2020-09-08","火"]
["2020-09-09","水"]
["2020-09-10","木"]
["2020-09-11","金"]
["2020-09-12","土"]
["2020-09-13","日"]
["2020-09-14","月"]
["2020-09-15","火"]
["2020-09-16","水"]
["2020-09-17","木"]
["2020-09-18","金"]
["2020-09-19","土"]
["2020-09-20","日"]
["合計",null,null,null,null,"労働時間","時間外",null,"私用車"]
[null,null,null,null,null,65,"04:00:00"]
[null,null,null,null,null,91000,7000,null,0]
[]
["出勤日数",null,10,null,null,null,"合計金額",98000]
[]
["時間単価",null,1400]
["時間外単価",null,1750]
["私用車単価",null,2000]

{"sheet":"nippou2","index":47,"n_rows":27,"n_cols":18,"rows_kept":27,"cut":false,"hidden":false,"merged":[[24,7,24,9],[17,1,17,6],[17,7,18,9],[17,11,18,11],[17,12,17,15],[19,7,19,9],[20,7,20,9],[21,7,21,9],[22,7,22,9],[23,7,23,9],[17,16,18,16],[17,17,18,17],[9,7,9,9],[10,7,10,9],[11,7,11,9],[12,7,12,9],[13,7,13,9],[14,7,14,9],[7,7,8,9],[0,0,0,11],[2,1,2,2],[3,1,3,2],[4,2,4,3],[4,4,4,5],[5,1,5,2],[7,0,8,0],[7,1,8,1],[7,2,8,2],[7,3,8,3],[7,4,7,5]]}
["    作業日報",null,null,null,null,null,null,null,null,null,null,null,"株式会社　那須の農"]
[]
["作業日","2017-12-18"]
["報告者名",null,null,null,null,"作業ﾕﾆｯﾄ","No2"]
[]
[null,null,null,null,"天候",null,null,"圃場状態",null,"極良好"]
[]
["圃場番号","圃場面積","作物","作業内容","作業時間",null,"出来高","圃場状態備考"]
[null,null,null,null,"開始","終了","ロール数"]
[]
[]
[]
[]
[]
[]
["合計",{"$f":"SUM(B10:B15)","v":0},null,null,null,null,{"$f":"SUM(G10:G15)","v":0}]
[]
[null,"補充機材",null,null,null,null,null,"使用機材備考",null,null,null,"オペレータ","稼働時間",null,null,null,"使用機材","オペレータメモ"]
["使用機材","軽油","ガソリン","オイル","ネット","ﾗｯﾌﾟﾌｨﾙﾑ","乳酸菌",null,null,null,null,null,"開始","終了","昼休み","実時間"]
[]
[]
[]
[]
[]
[]
[null,{"$f":"SUM(B20:B25)","v":0},0,0,0,0,0]
["備考"]

{"sheet":"202MemberList","index":48,"n_rows":13,"n_cols":12,"rows_kept":13,"cut":false,"hidden":false,"merged":[]}
["分類","作業日報test"]
["名称","作業日報"]
["ファイル名","201MemberList.csv"]
["説明","コントラクタ作業者名"]
[1,2,3,4,5,6,7,8,9,10,11,12]
["項目番号","表示有無","初期表示","データ名","リスト表示名","フラグ","備考","checklist","RFID","時間単価","時間外単価"]
[0,0,"--","--",null,null,"▼選択してください",1]
[2,1,null,null,null,1,"那須太郎",1,null,1000,1000]
[1,1,null,null,null,null,"大宮三郎",1,null,1000,1000]
[2,1,null,null,null,null,"筑波次郎",1,null,1000,1000]
[3,1,null,null,null,null,"作業者１",1,null,1000,1000]
[4,1,null,null,null,null,"作業者２",1,null,1000,1000]
[5,1,null,null,null,null,"作業者３",1,null,1000,1000]

{"sheet":"203UnitList","index":49,"n_rows":11,"n_cols":7,"rows_kept":11,"cut":false,"hidden":false,"merged":[]}
["分類","作業日報"]
["名称","作業日報"]
["ファイル名","201MemberList.csv"]
["説明","コントラクタユニット名"]
[1,2,3,4,5,6,7]
["項目番号","表示有無","初期表示","データ名","リスト表示名","説明","備考"]
[1,1,"No1"]
[2,1,"No2"]
[3,1,"No3"]
[4,1,"No4"]
[5,1,"No5"]

{"sheet":"204SagyouList","index":50,"n_rows":21,"n_cols":8,"rows_kept":21,"cut":false,"hidden":false,"merged":[]}
["分類","作業日報"]
["名称","作業日報"]
["ファイル名","201MemberList.csv"]
["説明","コントラクタユニット名"]
[1,2,3,4,5,6,7,"checklist"]
["項目番号","表示有無","初期表示","データ名","リスト表示名","説明","備考"]
[0,1,"▼選択してください",null,null,null,null,0]
[1,1,"収穫",null,null,null,null,1]
[2,1,"堆肥散布",null,null,null,null,1]
[3,1,"施肥",null,null,null,null,1]
[4,1,"耕起",null,null,null,null,1]
[5,1,"代かき",null,null,null,null,1]
[6,1,"移植",null,null,null,null,1]
[7,1,"殺虫剤散布",null,null,null,null,1]
[8,1,"ロール運搬",null,null,null,null,1]
[9,1,"ロール計量",null,null,null,null,1]
[10,1,"ローダ運搬",null,null,null,null,1]
[11,1,"機器運搬",null,null,null,null,1]
[12,1,"機器清掃",null,null,null,null,1]
[13,1,"機器整備",null,null,null,null,1]
[14,1,"その他",null,null,null,null,1]

{"sheet":"205PCList","index":51,"n_rows":15,"n_cols":7,"rows_kept":15,"cut":false,"hidden":false,"merged":[]}
["分類","作業日報"]
["名称","作業日報"]
["ファイル名","201MemberList.csv"]
["説明","履歴管理PC名"]
[1,2,3,4,5,6,7]
["項目番号","表示有無","初期表示","データ名","リスト表示名","説明","備考"]
[0,1,"▼選択してください","▼選択してください","▼選択してください"]
[1,1,"事務所PC","mainpc","事務所PC"]
[2,1,"タブレット１","PC01","タブレット１"]
[3,1,"タブレット２","PC02","タブレット２"]
[4,1,"タブレット３","PC03","タブレット３"]
[5,1,"タブレット４","PC04","タブレット４"]
[6,1,"タブレット５","PC05","タブレット５"]
[7]
[8]

{"sheet":"206Sagyoulist2","index":52,"n_rows":16,"n_cols":7,"rows_kept":16,"cut":false,"hidden":false,"merged":[]}
["分類","作業日報"]
["名称","作業日報"]
["ファイル名","206SagyouList2"]
["説明","コントラクタユニット名"]
[1,2,3,4,5,6,7]
["項目番号","表示有無","初期表示","データ名","リスト表示名","説明","備考"]
[0,1,"▼選択してください","▼選択してください","▼選択してください"]
[1,1,"機材運搬"]
[2,1,"収穫作業"]
[3,1,"梱包作業"]
[4,1,"資材補給"]
[5,1,"機材戻し"]
[6,1,"作業記録"]
[7,1,"機械整備"]
[8,1,"機械修理"]
[9,1,"清掃"]

{"sheet":"207UnitList","index":53,"n_rows":12,"n_cols":7,"rows_kept":12,"cut":false,"hidden":false,"merged":[]}
["分類","作業日報"]
["名称","作業日報"]
["ファイル名","201MemberList.csv"]
["説明","履歴管理PC名"]
[1,2,3,4,5,6,7]
["項目番号","表示有無","初期表示","データ名","リスト表示名","説明","備考"]
[0,1,"▼選択してください","▼選択してください","▼選択してください"]
[1,1,"タブレット１","Unit1","タブレット１"]
[2,1,"タブレット２","Unit2","タブレット２"]
[3,1,"タブレット３","Unit3","タブレット３"]
[4,1,"タブレット４","Unit4","タブレット４"]
[5,1,"タブレット５","Unit5","タブレット５"]

{"sheet":"timeinput","index":54,"n_rows":97,"n_cols":3,"rows_kept":97,"cut":false,"hidden":false,"merged":[]}
["06:00:00",null,"00:10:00"]
[{"$f":"A1+$C$1","v":"06:10:00"}]
[{"$f":"A2+$C$1","v":"06:20:00"}]
["06:30:00"]
["06:40:00"]
["06:50:00"]
["07:00:00"]
["07:10:00"]
["07:20:00"]
["07:30:00"]
["07:40:00"]
["07:50:00"]
["08:00:00"]
["08:10:00"]
["08:20:00"]
["08:30:00"]
["08:40:00"]
["08:50:00"]
["09:00:00"]
["09:10:00"]
["09:20:00"]
["09:30:00"]
["09:40:00"]
["09:50:00"]
["10:00:00"]
["10:10:00"]
["10:20:00"]
["10:30:00"]
["10:40:00"]
["10:50:00"]
["11:00:00"]
["11:10:00"]
["11:20:00"]
["11:30:00"]
["11:40:00"]
["11:50:00"]
["12:00:00"]
["12:10:00"]
["12:20:00"]
["12:30:00"]
["12:40:00"]
["12:50:00"]
["13:00:00"]
["13:10:00"]
["13:20:00"]
["13:30:00"]
["13:40:00"]
["13:50:00"]
["14:00:00"]
["14:10:00"]
["14:20:00"]
["14:30:00"]
["14:40:00"]
["14:50:00"]
["15:00:00"]
["15:10:00"]
["15:20:00"]
["15:30:00"]
["15:40:00"]
["15:50:00"]
["16:00:00"]
["16:10:00"]
["16:20:00"]
["16:30:00"]
["16:40:00"]
["16:50:00"]
[{"$f":"A66+$C$1","v":"17:00:00"}]
["17:10:00"]
["17:20:00"]
["17:30:00"]
["17:40:00"]
["17:50:00"]
["18:00:00"]
["18:10:00"]
["18:20:00"]
["18:30:00"]
["18:40:00"]
["18:50:00"]
["19:00:00"]
["19:10:00"]
["19:20:00"]
["19:30:00"]
["19:40:00"]
["19:50:00"]
["20:00:00"]
["20:10:00"]
["20:20:00"]
["20:30:00"]
["20:40:00"]
["20:50:00"]
["21:00:00"]
["21:10:00"]
["21:20:00"]
["21:30:00"]
["21:40:00"]
["21:50:00"]
["22:00:00"]

{"sheet":"timeinput2","index":55,"n_rows":33,"n_cols":3,"rows_kept":33,"cut":false,"hidden":false,"merged":[]}
["06:00:00",null,"00:30:00"]
[{"$f":"A1+$C$1","v":"06:30:00"}]
[{"$f":"A2+$C$1","v":"07:00:00"}]
["07:30:00"]
["08:00:00"]
["08:30:00"]
["09:00:00"]
["09:30:00"]
["10:00:00"]
["10:30:00"]
["11:00:00"]
["11:30:00"]
["12:00:00"]
["12:30:00"]
["13:00:00"]
["13:30:00"]
["14:00:00"]
["14:30:00"]
["15:00:00"]
["15:30:00"]
["16:00:00"]
["16:30:00"]
["17:00:00"]
["17:30:00"]
["18:00:00"]
["18:30:00"]
["19:00:00"]
["19:30:00"]
["20:00:00"]
["20:30:00"]
["21:00:00"]
["21:30:00"]
["22:00:00"]

{"sheet":"901IshokuList","index":56,"n_rows":26,"n_cols":7,"rows_kept":26,"cut":false,"hidden":false,"merged":[]}
["分類","共通リスト情報"]
["名称","移植・直播種別リスト"]
["ファイル名","901IshokuList.csv"]
["説明","稲の田植えを行う際の方法（移植、湛直、乾直）"]
[1,2,3,4,5,6,7]
["項目番号","表示有無","初期表示","データ名","リスト表示名","説明","備考"]
[1,1,1,"---","▼選択してください"]
[2,1,null,"移植","移植"]
[3,1,null,"湛直","湛直"]
[4,1,null,"乾直","乾直"]
[5]
[6]
[7]
[8]
[9]
[10]
[11]
[12]
[13]
[14]
[15]
[16]
[17]
[18]
[19]
[20]

{"sheet":"902ExcrementList","index":57,"n_rows":26,"n_cols":7,"rows_kept":26,"cut":false,"hidden":false,"merged":[]}
["分類","個別リスト情報"]
["名称","畜種リスト"]
["ファイル名","902ExcrementList.csv"]
["説明","堆肥施肥時に使用する肥料の名称（牛ふん堆肥など）"]
[1,2,3,4,5,6,7]
["項目番号","表示有無","初期表示","データ名","リスト表示名","説明","備考"]
[1,1,1,"---","▼選択してください"]
[2,1,null,"牛ふん堆肥","牛ふん堆肥"]
[3,1,null,"豚ぷん堆肥","豚ぷん堆肥"]
[4,1,null,"鶏ふん堆肥","鶏ふん堆肥"]
[5]
[6]
[7]
[8]
[9]
[10]
[11]
[12]
[13]
[14]
[15]
[16]
[17]
[18]
[19]
[20]

{"sheet":"903ManureList","index":58,"n_rows":26,"n_cols":7,"rows_kept":26,"cut":false,"hidden":false,"merged":[]}
["分類","個別リスト情報"]
["名称","肥料リスト"]
["ファイル名","903ManureList.csv"]
["説明","基肥、追肥施肥時に使用する肥料の名称"]
[1,2,3,4,5,6,7]
["項目番号","表示有無","初期表示","データ名","リスト表示名","説明","備考"]
[1,1,1,"---","▼選択してください"]
[2,1,null,"化成肥料42号","化成肥料42号"]
[3,1,null,"被服尿素M号","被服尿素M号"]
[4,1,null,"バイオアグロ４４４","バイオアグロ４４４"]
[5]
[6]
[7]
[8]
[9]
[10]
[11]
[12]
[13]
[14]
[15]
[16]
[17]
[18]
[19]
[20]

{"sheet":"904WeedKillerlist","index":59,"n_rows":26,"n_cols":7,"rows_kept":26,"cut":false,"hidden":false,"merged":[]}
["分類","個別リスト情報"]
["名称","除草剤リスト"]
["ファイル名","904WeedKillerList.csv"]
["説明","除草剤散布時に使用する薬剤の名称（サンバード粒剤など）"]
[1,2,3,4,5,6,7]
["項目番号","表示有無","初期表示","データ名","リスト表示名","説明","備考"]
[1,1,1,"---","▼選択してください"]
[2,1,null,"バッチリジャンボ","バッチリジャンボ"]
[3,1,null,"バサグラン","バサグラン"]
[4,1,null,"クリンチャー","クリンチャー"]
[5,1,null,"クリンチャーバスＭＥ液剤","クリンチャーバスＭＥ液剤"]
[6,1,null,"デルカット乳剤","デルカット乳剤"]
[7,1,null,"ポッシブルジャンボ","ポッシブルジャンボ"]
[8,1,null,"カービー1kg粒","カービー1kg粒"]
[9,1,null,"ザーベックスDX1kg粒","ザーベックスDX1kg粒"]
[10,1,null,"サンバード粒剤","サンバード粒剤"]
[11,1,null,"キックバイ１キロ粒剤","キックバイ１キロ粒剤"]
[12,1,null,"ザークＤ１キロ粒剤５１","ザークＤ１キロ粒剤５１"]
[13,1,null,"ジョイスターＬフロアブル","ジョイスターＬフロアブル"]
[14]
[15]
[16]
[17]
[18]
[19]
[20]

{"sheet":"905InsecticideList","index":60,"n_rows":26,"n_cols":7,"rows_kept":26,"cut":false,"hidden":false,"merged":[]}
["分類","個別リスト情報"]
["名称","殺虫・殺菌剤リスト"]
["ファイル名","905InsecticideList.csv"]
["説明","殺虫・殺菌剤産婦時に使用する薬剤の名称（スミチオン乳剤など）"]
[1,2,3,4,5,6,7]
["項目番号","表示有無","初期表示","データ名","リスト表示名","説明","備考"]
[1,1,1,"---","▼選択してください"]
[2,1,null,"スミチオン乳剤","スミチオン乳剤"]
[3,1,null,"Ｚボルドー粉剤ＤＬ","Ｚボルドー粉剤ＤＬ"]
[4]
[5]
[6]
[7]
[8]
[9]
[10]
[11]
[12]
[13]
[14]
[15]
[16]
[17]
[18]
[19]
[20]

{"sheet":"906CropTimeList","index":61,"n_rows":26,"n_cols":7,"rows_kept":26,"cut":false,"hidden":false,"merged":[]}
["分類","共通リスト情報"]
["名称","収穫時刻リスト"]
["ファイル名","906CropTimeList.csv"]
["説明","稲収穫時の時刻（午前、午後、夕方）"]
[1,2,3,4,5,6,7]
["項目番号","表示有無","初期表示","データ名","リスト表示名","説明","備考"]
[1,1,1,"---","▼選択してください"]
[2,1,null,"午前","午前"]
[3,1,null,"午後","午後"]
[4,1,null,"夕方","夕方"]
[5]
[6]
[7]
[8]
[9]
[10]
[11]
[12]
[13]
[14]
[15]
[16]
[17]
[18]
[19]
[20]

{"sheet":"907RiceAgeList","index":62,"n_rows":26,"n_cols":7,"rows_kept":26,"cut":false,"hidden":false,"merged":[]}
["分類","共通リスト情報"]
["名称","収穫時熟度リスト"]
["ファイル名","907RiceAgeList.csv"]
["説明","稲収穫時の熟度（乳熟期、糊熟期、黄熟期、完熟期、過熟期）"]
[1,2,3,4,5,6,7]
["項目番号","表示有無","初期表示","データ名","リスト表示名","説明","備考"]
[1,1,1,"---","▼選択してください"]
[2,1,null,"出穂期","出穂期",null,"稲では未使用"]
[3,1,null,"未熟期","未熟期",null,"稲では未使用しない"]
[4,1,null,"乳熟期","乳熟期"]
[5,1,null,"糊熟期","糊熟期"]
[6,1,null,"黄熟期","黄熟期"]
[7,1,null,"完熟期","完熟期"]
[8,1,null,"過熟期","過熟期"]
[9]
[10]
[11]
[12]
[13]
[14]
[15]
[16]
[17]
[18]
[19]
[20]

{"sheet":"908GrassDamageList","index":63,"n_rows":26,"n_cols":7,"rows_kept":26,"cut":false,"hidden":false,"merged":[]}
["分類","共通リスト情報"]
["名称","雑草被害リスト"]
["ファイル名","908GrassDamageList.csv"]
["説明","圃場内（畦畔除く）の雑草発生程度（無～微、中、多～甚）"]
[1,2,3,4,5,6,7]
["項目番号","表示有無","初期表示","データ名","リスト表示名","説明","備考"]
[1,1,1,"---","▼選択してください"]
[2,1,null,"無～微","無～微：5%未満"]
[3,1,null,"中","中：5～10%"]
[4,1,null,"多～甚","多～甚：10%以上"]
[5]
[6]
[7]
[8]
[9]
[10]
[11]
[12]
[13]
[14]
[15]
[16]
[17]
[18]
[19]
[20]

{"sheet":"909GrassKindList","index":64,"n_rows":26,"n_cols":7,"rows_kept":26,"cut":false,"hidden":false,"merged":[]}
["分類","共通リスト情報"]
["名称","雑草種類リスト"]
["ファイル名","909GrassKindList.csv"]
["説明","圃場内（畦畔除く）の雑草の種類（ヒエ類、アゼガヤなど）"]
[1,2,3,4,5,6,7]
["項目番号","表示有無","初期表示","データ名","リスト表示名","説明","備考"]
[1,1,1,"---","▼選択してください"]
[2,1,null,"ヒエ類","ヒエ類"]
[3,1,null,"アゼガヤ","アゼガヤ"]
[4,1,null,"チョウジタデ","チョウジタデ"]
[5,1,null,"クサネム","クサネム"]
[6,1,null,"イボクサ","イボクサ"]
[7,1,null,"アメリカセンダングサ","アメリカセンダングサ"]
[8,1,null,"タカサブロウ","タカサブロウ"]
[9,1,null,"タウコギ","タウコギ"]
[10,1,null,"ホソバヒメミソハギ","ホソバヒメミソハギ"]
[11,1,null,"その他","その他"]
[12]
[13]
[14]
[15]
[16]
[17]
[18]
[19]
[20]

{"sheet":"910DiseaseDamageList","index":65,"n_rows":26,"n_cols":7,"rows_kept":26,"cut":false,"hidden":false,"merged":[]}
["分類","共通リスト情報"]
["名称","病害虫被害リスト"]
["ファイル名","910DiseaseDamageList.csv"]
["説明","稲の病害虫被害の程度（無～微、中、多～甚）"]
[1,2,3,4,5,6,7]
["項目番号","表示有無","初期表示","データ名","リスト表示名","説明","備考"]
[1,1,1,"---","▼選択してください"]
[2,1,null,"無～微","無～微：10%未満"]
[3,1,null,"中","中：10～30%"]
[4,1,null,"多～甚","多～甚：30%以上"]
[5]
[6]
[7]
[8]
[9]
[10]
[11]
[12]
[13]
[14]
[15]
[16]
[17]
[18]
[19]
[20]

{"sheet":"911DiseaseKindList","index":66,"n_rows":26,"n_cols":7,"rows_kept":26,"cut":false,"hidden":false,"merged":[]}
["分類","共通リスト情報"]
["名称","病害虫種類リスト"]
["ファイル名","911DiseaseKindList.csv"]
["説明","病害虫被害の種類（いもち病、葉しょう腐敗病など）"]
[1,2,3,4,5,6,7]
["項目番号","表示有無","初期表示","データ名","リスト表示名","説明","備考"]
[1,1,1,"---","▼選択してください"]
[2,1,null,"いもち病（病害）","いもち病（病害）"]
[3,1,null,"紋枯れ病（病害）","紋枯れ病（病害）"]
[4,1,null,"稲こうじ病（病害）","稲こうじ病（病害）"]
[5,1,null,"ばか苗病（病害）","ばか苗病（病害）"]
[6,1,null,"白葉枯病（病害）","白葉枯病（病害）"]
[7,1,null,"葉しょう腐敗病（病害）","葉しょう腐敗病（病害）"]
[8,1,null,"南方黒すじ病（病害）","南方黒すじ病（病害）"]
[9,1,null,"イネツト虫（虫害）","イネツト虫（虫害）"]
[10,1,null,"ニカメイガ（虫害）","ニカメイガ（虫害）"]
[11,1,null,"コブノメイガ（虫害）","コブノメイガ（虫害）"]
[12,1,null,"ウンカ類（虫害）","ウンカ類（虫害）"]
[13,1,null,"斑点米カメムシ（虫害）","斑点米カメムシ（虫害）"]
[14,1,null,"その他病害虫","その他病害虫"]
[15]
[16]
[17]
[18]
[19]
[20]

{"sheet":"912FallDamageList","index":67,"n_rows":26,"n_cols":7,"rows_kept":26,"cut":false,"hidden":false,"merged":[]}
["分類","共通リスト情報"]
["名称","倒伏被害リスト"]
["ファイル名","912FallDamageList.csv"]
["説明","稲の倒伏被害の程度（無～微、中、多～甚）"]
[1,2,3,4,5,6,7]
["項目番号","表示有無","初期表示","データ名","リスト表示名","説明","備考"]
[1,1,1,"---","▼選択してください"]
[2,1,null,"無～微","無～微：5%未満"]
[3,1,null,"中","中：5～10%"]
[4,1,null,"多～甚","多～甚：10%以上"]
[5]
[6]
[7]
[8]
[9]
[10]
[11]
[12]
[13]
[14]
[15]
[16]
[17]
[18]
[19]
[20]

{"sheet":"913FiledConditionList","index":68,"n_rows":26,"n_cols":7,"rows_kept":26,"cut":false,"hidden":false,"merged":[]}
["分類","共通リスト情報"]
["名称","圃場状態リスト"]
["ファイル名","913FiledConditionList.csv"]
["説明","稲梱包時の圃場の軟弱度合い（極良好、良好、不良）"]
[1,2,3,4,5,6,7]
["項目番号","表示有無","初期表示","データ名","リスト表示名","説明","備考"]
[1,1,1,"---","▼選択してください"]
[2,1,null,"良好","極良好：0～0.3cm未満の足沈下"]
[3,1,null,"ぬかるみ多少","良好：0.3～2.0cmの足沈下"]
[4,1,null,"ぬかるみ多い","不良：2cmを超える足沈下"]
[5,1,null,"ぬかるみ極多い"]
[6]
[7]
[8]
[9]
[10]
[11]
[12]
[13]
[14]
[15]
[16]
[17]
[18]
[19]
[20]

{"sheet":"914MachineKindList","index":69,"n_rows":30,"n_cols":8,"rows_kept":30,"cut":false,"hidden":false,"merged":[]}
["分類","共通リスト情報　那須の農用　2017/06追加"]
["名称","専用収穫機体系リスト"]
["ファイル名","914MachineKindList2.csv"]
["説明","那須の農使用機材リスト　"]
[1,2,3,4,5,6,7]
["項目番号","表示有無","初期表示","データ名","リスト表示名","説明","備考"]
[1,1,1,"---","▼選択してください"]
[2,1,null,"コンバイン型（従来型）","専用機１",null,1179,1]
[3,1,null,null,"専用機２",null,1193,1]
[4,1,null,null,"専用機３",null,300,1]
[5,1,null,"汎用型飼料収穫機","汎用型１",null,1456,1]
[6,1,null,null,"汎用型２",null,1259,1]
[7,1,null,null,"汎用型３",null,1109,1]
[8,1,null,null,"汎用型４",null,604,1]
[9,1,null,"自走式ラップマシン","自走式ラップ１",null,null,1]
[10,1,null,null,"自走式ラップ２",null,null,1]
[11,1,null,null,"自走式ラップ３",null,null,1]
[12,1,null,null,"自走式ラップ４",null,null,1]
[13,1,null,null,"自走式ラップ５",null,null,1]
[14,1,null,"10ｔトラック","10ｔトラック",null,0,1]
[15,1,null,"2tトラック","2tトラック",null,0,1]
[16,1,null,"ローダ・ハンドラ","ローダ・ハンドラ１",null,500,1]
[17,1,null,null,"ローダ・ハンドラ２",null,501,1]
[18,1,null,"運搬車","運搬車",null,null,1]
[19,1,null,"グラブ付きトラクタ","グラブ付きトラクタ",null,503,1]
[20,1,null,null,"機械予備1",null,0,1]
[21,1,null,null,"機械予備2",null,0,1]
[22,1,null,null,"機械予備3",null,0,1]
[23,1,null,null,"汎用型5",null,1445,1]
[24,1,null,null,"汎用実演機",null,null,1]

{"sheet":"914MachineKindList2","index":70,"n_rows":29,"n_cols":8,"rows_kept":29,"cut":false,"hidden":true,"merged":[]}
["分類","共通リスト情報"]
["名称","専用収穫機体系リスト"]
["ファイル名","914MachineKindList.csv"]
["説明","ダイレクト収穫機体系での収穫機の種類（コンバイン型、フレール型など）"]
[1,2,3,4,5,6,7]
["項目番号","表示有無","初期表示","データ名","リスト表示名","説明","備考"]
[1,1,1,"---","▼選択してください"]
[2,1,null,"コンバイン型（従来型）","専用機１",null,1025,1]
[3,1,null,null,"専用機２",null,1007,1]
[4,1,null,null,"専用機３",null,300,1]
[5,1,null,"汎用型飼料収穫機","汎用型１",null,0,1]
[6,1,null,null,"汎用型２",null,10,1]
[7,1,null,null,"汎用型３",null,15,1]
[8,1,null,null,"汎用型４",null,0,1]
[9,1,null,null,"微細断型１",null,0,1]
[10,1,null,"自走式ラップマシン","自走式ラップ１",null,500,1]
[11,1,null,null,"自走式ラップ２",null,510,1]
[12,1,null,null,"自走式ラップ３",null,520,1]
[13,1,null,null,"自走式ラップ４",null,530,1]
[14,1,null,null,"自走式ラップ５",null,540,1]
[15,1,null,"10ｔトラック","10ｔトラック",null,0,1]
[16,1,null,"2tトラック","2tトラック",null,0,1]
[17,1,null,"ローダ・ハンドラ","ローダ・ハンドラ１",null,500,1]
[18,1,null,null,"ローダ・ハンドラ２",null,501,1]
[19,1,null,"運搬車","運搬車",null,502,1]
[20,1,null,"グラブ付きトラクタ","グラブ付きトラクタ",null,503,1]
[21,1,null,null,"機械予備1",null,0,1]
[22,1,null,null,"機械予備2",null,0,1]
[23,1,null,null,"機械予備3",null,0,1]

{"sheet":"914MachineKindList3","index":71,"n_rows":30,"n_cols":8,"rows_kept":30,"cut":false,"hidden":true,"merged":[]}
["分類","共通リスト情報"]
["名称","専用収穫機体系リスト"]
["ファイル名","914MachineKindList.csv"]
["説明","ダイレクト収穫機体系での収穫機の種類（コンバイン型、フレール型など）"]
[1,2,3,4,5,6,7]
["項目番号","表示有無","初期表示","データ名","リスト表示名","説明","備考"]
[1,1,1,"---","▼選択してください"]
[2,1,null,"コンバイン型（従来型）","専用機１",null,1025,1]
[3,1,null,null,"専用機２",null,1007,1]
[4,1,null,null,"専用機３",null,300,1]
[5,1,null,"汎用型飼料収穫機","汎用型１",null,0,1]
[6,1,null,null,"汎用型２",null,10,1]
[7,1,null,null,"汎用型３",null,15,1]
[8,1,null,null,"汎用型４",null,0,1]
[9,1,null,null,"微細断型１",null,0,1]
[10,1,null,"自走式ラップマシン","自走式ラップ１",null,500,1]
[11,1,null,null,"自走式ラップ２",null,510,1]
[12,1,null,null,"自走式ラップ３",null,520,1]
[13,1,null,null,"自走式ラップ４",null,530,1]
[14,1,null,null,"自走式ラップ５",null,540,1]
[15,1,null,"10ｔトラック","10ｔトラック",null,0,1]
[16,1,null,"2tトラック","2tトラック",null,0,1]
[17,1,null,"ローダ・ハンドラ","ローダ・ハンドラ１",null,500,1]
[18,1,null,null,"ローダ・ハンドラ２",null,501,1]
[19,1,null,"運搬車","運搬車",null,502,1]
[20,1,null,"グラブ付きトラクタ","グラブ付きトラクタ",null,503,1]
[21,1,null,null,"機械予備1",null,0,1]
[22,1,null,null,"機械予備2",null,0,1]
[23,1,null,null,"機械予備3",null,0,1]
[24,1,null,null,"機械予備3",null,0,1]

{"sheet":"915HantenKindList","index":72,"n_rows":26,"n_cols":7,"rows_kept":26,"cut":false,"hidden":false,"merged":[]}
["分類","共通リスト情報"]
["名称","牧草反転有無リスト"]
["ファイル名","915HantenKindList.csv"]
["説明","牧草用収穫機体系における反転作業の有無"]
[1,2,3,4,5,6,7]
["項目番号","表示有無","初期表示","データ名","リスト表示名","説明","備考"]
[1,1,1,"---","▼選択してください"]
[2,1,null,"有","有"]
[3,1,null,"無","無"]
[4]
[5]
[6]
[7]
[8]
[9]
[10]
[11]
[12]
[13]
[14]
[15]
[16]
[17]
[18]
[19]
[20]

{"sheet":"916TenkaUseList","index":73,"n_rows":26,"n_cols":7,"rows_kept":26,"cut":false,"hidden":false,"merged":[]}
["分類","共通リスト情報"]
["名称","添加剤使用有無リスト"]
["ファイル名","916TenkaUseList.csv"]
["説明","添加剤の使用の有無"]
[1,2,3,4,5,6,7]
["項目番号","表示有無","初期表示","データ名","リスト表示名","説明","備考"]
[1,1,1,"---","▼選択してください"]
[2,1,null,"有","有"]
[3,1,null,"無","無"]
[4]
[5]
[6]
[7]
[8]
[9]
[10]
[11]
[12]
[13]
[14]
[15]
[16]
[17]
[18]
[19]
[20]

{"sheet":"917BacteriaList","index":74,"n_rows":26,"n_cols":7,"rows_kept":26,"cut":false,"hidden":false,"merged":[]}
["分類","個別リスト情報"]
["名称","添加剤リスト"]
["ファイル名","917BacteriaList.csv"]
["説明","梱包時に添加する添加剤の名称（畜草1号、アクレモなど）"]
[1,2,3,4,5,6,7]
["項目番号","表示有無","初期表示","データ名","リスト表示名","説明","備考"]
[1,1,1,"---","▼選択してください"]
[2,1,null,"畜草1号","畜草1号"]
[3,1,null,"畜草2号","畜草２号"]
[4]
[5]
[6]
[7]
[8]
[9]
[10]
[11]
[12]
[13]
[14]
[15]
[16]
[17]
[18]
[19]
[20]

{"sheet":"918WrapLayerList","index":75,"n_rows":26,"n_cols":7,"rows_kept":26,"cut":false,"hidden":false,"merged":[]}
["分類","共通リスト情報"]
["名称","フィルム巻数リスト"]
["ファイル名","918WrapLayerList.csv"]
["説明","ロールベールのフィルム巻数（4層、6層、8層、10層）"]
[1,2,3,4,5,6,7]
["項目番号","表示有無","初期表示","データ名","リスト表示名","説明","備考"]
[1,1,1,"---","▼選択してください"]
[2,1,null,"4層","4層"]
[3,1,null,"6層","6層"]
[4,1,null,"8層","8層"]
[5,1,null,"10層","10層"]
[6]
[7]
[8]
[9]
[10]
[11]
[12]
[13]
[14]
[15]
[16]
[17]
[18]
[19]
[20]

{"sheet":"919WeightKindList","index":76,"n_rows":26,"n_cols":7,"rows_kept":26,"cut":false,"hidden":false,"merged":[]}
["分類","共通リスト情報"]
["名称","重量算出方法リスト"]
["ファイル名","919WeightKindList.csv"]
["説明","重量の測定方法の種類（推定値、サンプル平均、全数平均）"]
[1,2,3,4,5,6,7]
["項目番号","表示有無","初期表示","データ名","リスト表示名","説明","備考"]
[1,1,1,"---","▼選択してください"]
[2,1,null,"推定値","未測定：推定値"]
[3,1,null,"サンプル平均値","サンプル平均値"]
[4,1,null,"全平均値","全平均値"]
[5]
[6]
[7]
[8]
[9]
[10]
[11]
[12]
[13]
[14]
[15]
[16]
[17]
[18]
[19]
[20]

{"sheet":"920MoistureKindList","index":77,"n_rows":26,"n_cols":7,"rows_kept":26,"cut":false,"hidden":false,"merged":[]}
["分類","共通リスト情報"]
["名称","水分測定種別リスト"]
["ファイル名","920MoistureKindList.csv"]
["説明","水分の測定方法の種類（推定値、サンプル平均、全数平均）"]
[1,2,3,4,5,6,7]
["項目番号","表示有無","初期表示","データ名","リスト表示名","説明","備考"]
[1,1,1,"---","▼選択してください"]
[2,1,null,"推定値","未測定：推定値"]
[3,1,null,"サンプル平均値","サンプル平均値"]
[4,1,null,"全平均値","全平均値"]
[5]
[6]
[7]
[8]
[9]
[10]
[11]
[12]
[13]
[14]
[15]
[16]
[17]
[18]
[19]
[20]

{"sheet":"921RadiationJudgeList","index":78,"n_rows":26,"n_cols":7,"rows_kept":26,"cut":false,"hidden":false,"merged":[]}
["分類","共通リスト情報"]
["名称","最大放射線量リスト"]
["ファイル名","921RadiationJudgeList.csv"]
["説明","最大放射線量の判定結果（未測定、未検出、50Bq/kg未満、50～100Bq/kg、100Bq/kg以上）"]
[1,2,3,4,5,6,7]
["項目番号","表示有無","初期表示","データ名","リスト表示名","説明","備考"]
[1,1,1,"---","▼選択してください"]
[2,1,null,"未測定","未測定"]
[3,1,null,"未検出","未検出"]
[4,1,null,"50Bq/kg未満","50Bq/kg未満"]
[5,1,null,"50～100Bq/kg","50～100Bq/kg"]
[6,1,null,"100Bq/kg以上","100Bq/kg以上"]
[7]
[8]
[9]
[10]
[11]
[12]
[13]
[14]
[15]
[16]
[17]
[18]
[19]
[20]

{"sheet":"922KeepPlaceList","index":79,"n_rows":26,"n_cols":7,"rows_kept":26,"cut":false,"hidden":false,"merged":[]}
["分類","個別リスト情報"]
["名称","保管場所リスト"]
["ファイル名","922KeepPlaceList.csv"]
["説明","ロールベールの保管先（圃場、販売先、ストックヤード）"]
[1,2,3,4,5,6,7]
["項目番号","表示有無","初期表示","データ名","リスト表示名","説明","備考"]
[1,1,1,"---","▼選択してください"]
[2,1,null,"圃場","圃場"]
[3,1,null,"販売先","販売先"]
[4,1,null,"ストックヤード","ストックヤード"]
[5]
[6]
[7]
[8]
[9]
[10]
[11]
[12]
[13]
[14]
[15]
[16]
[17]
[18]
[19]
[20]

{"sheet":"923DressingList","index":80,"n_rows":26,"n_cols":7,"rows_kept":26,"cut":false,"hidden":false,"merged":[]}
["分類","施肥リスト情報"]
["名称","施肥リスト"]
["ファイル名","923DressingList.csv"]
["説明","圃場選択条件(施肥)一覧"]
[1,2,3,4,5,6,7]
["項目番号","表示有無","初期表示","データ名","リスト表示名","説明","備考"]
[1,1,1,"---","▼選択してください"]
[2,1,null,"施肥(未散布)","施肥(未散布)"]
[3,1,null,"施肥(散布済)","施肥(散布済)"]
[4,1,null,"基肥(未散布)","基肥(未散布)"]
[5,1,null,"基肥(散布済)","基肥(散布済)"]
[6,1,null,"追肥(未散布)","追肥(未散布)"]
[7,1,null,"追肥(散布済)","追肥(散布済)"]
[8]
[9]
[10]
[11]
[12]
[13]
[14]
[15]
[16]
[17]
[18]
[19]
[20]

{"sheet":"924DrugList","index":81,"n_rows":26,"n_cols":7,"rows_kept":26,"cut":false,"hidden":false,"merged":[]}
["分類","薬剤リスト情報"]
["名称","薬剤リスト"]
["ファイル名","924DrugList.csv"]
["説明","圃場選択条件(薬剤)一覧"]
[1,2,3,4,5,6,7]
["項目番号","表示有無","初期表示","データ名","リスト表示名","説明","備考"]
[1,1,1,"---","▼選択してください"]
[2,1,null,"除草剤(未散布)","除草剤(未散布)"]
[3,1,null,"除草剤(1回散布)","除草剤(1回散布)"]
[4,1,null,"除草剤(2回散布)","除草剤(2回散布)"]
[5,1,null,"殺虫剤(未散布)","殺虫剤(未散布)"]
[6,1,null,"殺虫剤(1回散布)","殺虫剤(1回散布)"]
[7,1,null,"殺虫剤(2回散布)","殺虫剤(2回散布)"]
[8]
[9]
[10]
[11]
[12]
[13]
[14]
[15]
[16]
[17]
[18]
[19]
[20]

{"sheet":"925TransplantList","index":82,"n_rows":26,"n_cols":7,"rows_kept":26,"cut":false,"hidden":false,"merged":[]}
["分類","移植(播種)リスト情報"]
["名称","移植(播種)リスト"]
["ファイル名","925TransplantList.csv"]
["説明","圃場選択条件(移植(播種))一覧"]
[1,2,3,4,5,6,7]
["項目番号","表示有無","初期表示","データ名","リスト表示名","説明","備考"]
[1,1,1,"---","▼選択してください"]
[2,1,null,"移植(播種)前","移植(播種)前"]
[3,1,null,"移植(播種)済","移植(播種)済"]
[4]
[5]
[6]
[7]
[8]
[9]
[10]
[11]
[12]
[13]
[14]
[15]
[16]
[17]
[18]
[19]
[20]

{"sheet":"926HarvestList","index":83,"n_rows":26,"n_cols":7,"rows_kept":26,"cut":false,"hidden":false,"merged":[]}
["分類","収穫・運搬リスト情報"]
["名称","収穫・運搬リスト"]
["ファイル名","926HarvestList.csv"]
["説明","圃場選択条件(収穫・運搬)一覧"]
[1,2,3,4,5,6,7]
["項目番号","表示有無","初期表示","データ名","リスト表示名","説明","備考"]
[1,1,1,"---","▼選択してください"]
[2,1,null,"収穫前","収穫前"]
[3,1,null,"収穫済","収穫済"]
[4,1,null,"未検品","未検品"]
[5,1,null,"検品済","検品済"]
[6,1,null,"発送前","発送前"]
[7,1,null,"発送済","発送済"]
[8]
[9]
[10]
[11]
[12]
[13]
[14]
[15]
[16]
[17]
[18]
[19]
[20]

{"sheet":"930cornharvesterList","index":84,"n_rows":26,"n_cols":7,"rows_kept":26,"cut":false,"hidden":false,"merged":[]}
["分類","イアーコーン収穫機械リスト"]
["名称","ハーベスタ切断長"]
["ファイル名","926HarvestList.csv"]
["説明","ハーベスタ切断長"]
[1,2,3,4,5,6,7]
["項目番号","表示有無","初期表示","データ名","リスト表示名","説明","備考"]
[1,1,1,"---","▼選択してください"]
[2,1,null,3,3]
[3,1,null,5,5]
[4,1,null,7,7]
[5]
[6]
[7]
[8]
[9]
[10]
[11]
[12]
[13]
[14]
[15]
[16]
[17]
[18]
[19]
[20]

{"sheet":"931corncrusherList","index":85,"n_rows":26,"n_cols":7,"rows_kept":26,"cut":false,"hidden":false,"merged":[]}
["分類","イアーコーン収穫機械リスト"]
["名称","コーンクラッシャー幅"]
["ファイル名","926HarvestList.csv"]
["説明","圃場選択条件(収穫・運搬)一覧"]
[1,2,3,4,5,6,7]
["項目番号","表示有無","初期表示","データ名","リスト表示名","説明","備考"]
[1,1,1,"---","▼選択してください"]
[2,1,null,2,2]
[3,1,null,3,3]
[4,1,null,5,5]
[5,1,null,7,7]
[6]
[7]
[8]
[9]
[10]
[11]
[12]
[13]
[14]
[15]
[16]
[17]
[18]
[19]
[20]

{"sheet":"940memolist","index":86,"n_rows":15,"n_cols":8,"rows_kept":15,"cut":false,"hidden":false,"merged":[]}
["分類","備考欄記載リスト"]
["名称","備考欄記載リスト"]
["ファイル名","940memolist"]
["説明","圃場選択条件(収穫・運搬)一覧"]
[1,2,3,4,5,6,7,8]
["項目番号","表示有無","初期表示","データ名","リスト表示名","説明","備考"]
[1,1,1,"---","▼選択してください"]
[2,1,null,"トラブルなし",null,null,null,1]
[3,1,null,"機械トラブル（軽微）",null,null,null,1]
[4,1,null,"機械トラブル（作業中断）",null,null,null,1]
[5,1,null,"結束ミス",null,null,null,1]
[6,1,null,"天候急変",null,null,null,1]
[7,1,null,"労務災害",null,null,null,1]
[8,1,null,"圃場面積変更",null,null,null,1]
[9,1,null,"その他",null,null,null,1]

{"sheet":"941fielddatalist","index":87,"n_rows":16,"n_cols":8,"rows_kept":16,"cut":false,"hidden":false,"merged":[]}
["分類","備考欄記載リスト"]
["名称","備考欄記載リスト"]
["ファイル名","941fielddatalist"]
["説明","圃場選択条件(収穫・運搬)一覧"]
[1,2,3,4,5,6,7,8]
["項目番号","表示有無","初期表示","データ名","リスト表示名","説明","備考"]
[1,1,1,"---","▼選択してください"]
[2,1,null,"トラブルなし",null,null,null,1]
[3,1,null,"雑草なし　倒伏なし",null,null,null,1]
[4,1,null,"雑草なし　倒伏あり",null,null,null,1]
[5,1,null,"雑草あり　倒伏なし",null,null,null,1]
[6,1,null,"雑草あり　倒伏あり",null,null,null,1]
[7,1,null,"露あり",null,null,null,1]
[8,1,null,"病害あり",null,null,null,1]
[9,1,null,"ぬかるみ",null,null,null,1]
[10,1,null,"sonota2",null,null,null,1]

{"sheet":"942Machindeconditionlist","index":88,"n_rows":25,"n_cols":8,"rows_kept":25,"cut":false,"hidden":false,"merged":[]}
["分類","使用機材備考欄記載リスト"]
["名称","備考欄記載リスト"]
["ファイル名","942Machindeconditionlist"]
["説明","圃場選択条件(収穫・運搬)一覧"]
[1,2,3,4,5,6,7,8]
["項目番号","表示有無","初期表示","データ名","リスト表示名","説明","備考"]
[1,1,1,"---","▼選択してください"]
[2,1,null,"トラブルなし",null,null,null,1]
[3,1,null,"軽微なトラブル",null,null,null,1]
[4,1,null,"調整",null,null,null,1]
[5,1,null,"修理",null,null,null,1]
[6,1,null,"部品交換",null,null,null,1]
[8]
[9]
[10]
[11]
[12]
[13]
[14]
[15]
[16]
[17]
[18]
[19]
[20]

{"sheet":"Sheet3","index":89,"n_rows":5,"n_cols":204,"rows_kept":5,"cut":false,"hidden":false,"merged":[]}
[null,null,null,null,null,null,null,null,null,null,null,null,1,2,3,4,5,6,7,8,8,10,11,12,13,14,15,16,17,14,19,20,21,22,23,24,25,26,27,14,14,30,15,32,15,34,35,36,37,37,39,40,41,42,43,44,45,46,46,48,49,50,51,52,53,54,54,56,57,58,59,60,61,62,63,64,65,66,67,68,69,70,71,72,73,74,75,76,77,78,79,80,81,82,83,84,85,86,87,88,89,90,91,92,93,94,95,96,97,98,99,100,101,102,103,104,105,106,107,108,109,42934,null,1,113,114,1,116,117,118,119,1,0,122,123,124,125,1,1,128,129,130,131,1,133,134,135,136,1,138,139,140,141,142,143,144,145,146,147,148,149,150,151,152,153,154,155,156,157,158,159,160,161,162,163,164,165,166,167,168,169,170,171,172,173,174,175,176,177,178,179,180,181,182,183,184,185,186,187,188,189,190,191,192]
[null,null,null,null,null,null,null,null,null,null,null,null,"名称","圃場台帳",null,null,null,null,195,"名称",true,null,null,null,null,null,null,null,null,null,null,null,null,null,null,null,null,null,null,null,null,null,null,null,null,null,null,null,null,null,null,null,null,null,null,null,null,null,null,null,null,null,null,null,null,null,null,null,null,null,null,null,null,null,null,null,null,null,null,null,null,null,null,null,null,null,null,null,null,null,null,null,null,null,null,null,null,null,null,null,null,null,null,null,null,null,null,null,null,null,null,null,null,null,null,null,null,null,null,null,null,42934,null,0,null,null,0,null,null,null,null,0,0,null,null,null,null,0,0,null,null,null,null,0,null,null,null,null,0,null,null,null,null,null,null,3,5]
[1,{"$f":"A3+1","v":2},{"$f":"B3+1","v":3},4,5,6,7,8,9,10,11,12,"1",2,3,4,5,6,7,8,9,10,11,12,13,14,15,16,17,14,19,20,21,22,23,24,25,26,27,28,29,30,31,32,15,34,35,36,37,37,39,40,41,42,43,44,45,46,46,48,49,50,51,52,53,54,54,56,57,58,59,60,61,62,63,64,65,66,67,68,69,70,71,72,73,74,75,76,77,78,79,80,81,82,83,84,85,86,87,88,89,90,91,92,93,94,95,96,97,98,99,100,101,102,103,104,105,106,107,108,109,110,111,112,113,114,115,116,117,118,119,120,121,122,123,124,125,126,127,128,129,130,131,132,133,134,135,136,137,138,139,140,141,142,143,144,145,146,147,148,149,150,151,152,153,154,155,156,157,158,159,160,161,162,163,164,165,166,167,168,169,170,171,172,173,174,175,176,177,178,179,180,181,182,183,184,185,186,187,188,189,190,191,192]
[null,"作物名",null,null,null,null,null,null,null,null,null,null,"主キー","圃場番号","栽培番号","収穫有無","シリアル番号","地区・団地名","圃場名","収穫日フラグ","作業終了フラグ","地番（都道府県）","地番（市区町村）","地番（地番）","生産地名","地積（㎡）","地権者名","フリガナ",null,"地積（㎡）","地図URL","圃場コメント","生産年度","作期番号","生産名称","収穫予定日","製品名","作物名","品種名","地積（㎡）","地積（㎡）","生産予定数量(kg)","地権者名","収穫調製者名","地権者名","購入者名","生産計画コメント","移植・直播更新時刻","移植・直播記録者名","移植･直播日","移植･直播種別","苗箱数（個）","播種量（Kg）","移植・直播作業員名","移植･直播コメント","移植・直播写真","堆肥更新時刻","堆肥記録者名","堆肥散布日","畜種","堆肥散布量(t/10a)","堆肥作業員名","堆肥コメント","堆肥写真","基肥更新時刻","基肥記録者名","基肥散布日","基肥肥料名","基肥散布量(kg/10a)","基肥作業員名","基肥コメント","基肥写真","追肥1更新時刻","追肥1記録者名","追肥1散布日","追肥1肥料名","追肥1散布量(kg/10a)","追肥1作業員名","追肥1コメント","追肥1写真","追肥2更新時刻","追肥2記録者名","追肥2散布日","追肥2肥料名","追肥2散布量(kg/10a)","追肥2作業員名","追肥2コメント","追肥2写真","除草1更新時刻","除草1記録者名","除草1散布日","除草1薬剤名","除草1散布量(kg/10a)","除草1作業員名","除草1コメント","除草1写真","除草2更新時刻","除草2記録者名","除草2散布日","除草2薬剤名","除草2散布量(kg/10a)","除草2作業員名","除草2コメント","除草2写真","殺虫1更新時刻","殺虫1記録者名","殺虫1散布日","殺虫1薬剤名","殺虫1散布量(kg/10a)","殺虫1作業員名","殺虫1コメント","殺虫1写真","殺虫2更新時刻","殺虫2記録者名","殺虫2散布日","殺虫2薬剤名","殺虫2散布量(kg/10a)","殺虫2作業員名","殺虫2コメント","殺虫2写真","収穫更新日時","収穫開始日","収穫終了日","収穫時刻","熟度更新時刻","熟度記録者名","収穫時熟度","収穫時熟度コメント","収穫時熟度写真","雑草更新時刻","雑草記録者名","雑草の発生程度","主な雑草の種類","雑草被害コメント","雑草被害写真","病害虫更新時刻","病害虫記録者名","病害虫の被害程度","主な病害虫の種類","病害虫被害コメント","病害虫被害写真","倒伏更新時刻","倒伏記録者名","倒伏の被害程度","倒伏被害コメント","倒伏被害写真","圃場状態更新時刻","圃場状態記録者名","圃場状態","圃場状態コメント","圃場状態写真","収穫梱包更新時刻","収穫梱包記録者名","専用収穫機体系","反転の有無","反転回数","予乾日数","ロール直径","ロール高さ","添加剤使用","添加剤名","収穫梱包作業員名","収穫梱包コメント","収穫梱包写真","密封更新時刻","密封記録者名","フィルム巻き数","密封作業員名","密封コメント","重量更新時刻","重量記録者名","平均重量(KG)","重量算出方法","重量作業員名","重量コメント","水分更新時刻","水分記録者名","水分量(％)","水分算出方法","水分作業員名","水分コメント","放射線更新時刻","放射線記録者名","最大放射線量(Bq)","放射線量作業員名","放射線量コメント","保管更新時刻","保管記録者名","保管ロール数","保管場所","保管作業員名","保管コメント","検品更新時刻","検品記録者名","保管場所","検品作業員名","出荷更新時刻","出荷記録者名","出荷先","出荷作業員名",null,null,"作業ユニット名"]
[2,"wcsイネ",null,null,null,null,null,null,null,null,null,null,2,2,2017,1,null,"那須の農",1,null,null,"栃木県","那須町","大字寺子乙3215－1","那須町寺子乙",100,"圃場１","ﾎｼﾞｮｳ1",null,20,null,null,2017,1,"2016年度夏作-WCS用イネ",null,"稲発酵粗飼料","wcsイネ","たちすがた",20,20,null,"千本松太郎","那須の農","千本松太郎","--","--","--",null,null,null,"--",null,"--","--","--","--","--","--","--","--","--","--","--","--","--","--","--","--","--","--","--","--","--","--","--","--","--","--","--","--","--","--","--","--","--","--","--","--","--","--","--","--","--","--","--","--","--","--","--","--","--","--","--","--","--","--","--","--","--","--","--","--","--","--","--","--","--","--","--","--","--","--","--","--","--","--","--","--","--","--","--","--","--","--","--","--","--","--","--","--","--","--","--","--","--","--","--","--","--","--","--","--","--","--","--","--","--","--","--","--","--","--","--","--","--","--","--","--","--","--","--","--","--","--","--","--","--","--","--","--","--","--","--","--","--","--","--",4,"--","--","--","--","--","--","--","--","--","--","--","--","那須の農1","--","--"]

{"sheet":"Sheet10","index":90,"n_rows":15,"n_cols":204,"rows_kept":15,"cut":false,"hidden":false,"merged":[]}
[null,null,null,null,null,null,null,null,null,null,null,null,1,2,3,4,5,6,7,8,8,10,11,12,13,14,15,16,17,14,19,20,21,22,23,24,25,26,27,14,14,30,15,32,15,34,35,36,37,37,39,40,41,42,43,44,45,46,46,48,49,50,51,52,53,54,54,56,57,58,59,60,61,62,63,64,65,66,67,68,69,70,71,72,73,74,75,76,77,78,79,80,81,82,83,84,85,86,87,88,89,90,91,92,93,94,95,96,97,98,99,100,101,102,103,104,105,106,107,108,109,42934,null,1,113,114,1,116,117,118,119,1,0,122,123,124,125,1,1,128,129,130,131,1,133,134,135,136,1,138,139,140,141,142,143,144,145,146,147,148,149,150,151,152,153,154,155,156,157,158,159,160,161,162,163,164,165,166,167,168,169,170,171,172,173,174,175,176,177,178,179,180,181,182,183,184,185,186,187,188,189,190,191,192]
[null,null,null,null,null,null,null,null,null,null,null,null,"名称","圃場台帳",null,null,null,null,195,"名称",true,null,null,null,null,null,null,null,null,null,null,null,null,null,null,null,null,null,null,null,null,null,null,null,null,null,null,null,null,null,null,null,null,null,null,null,null,null,null,null,null,null,null,null,null,null,null,null,null,null,null,null,null,null,null,null,null,null,null,null,null,null,null,null,null,null,null,null,null,null,null,null,null,null,null,null,null,null,null,null,null,null,null,null,null,null,null,null,null,null,null,null,null,null,null,null,null,null,null,null,null,42934,null,0,null,null,0,null,null,null,null,0,0,null,null,null,null,0,0,null,null,null,null,0,null,null,null,null,0,null,null,null,null,null,null,3,5]
[null,null,null,null,null,null,null,null,null,null,null,null,"1",2,3,4,5,6,7,8,9,10,11,12,13,14,15,16,17,14,19,20,21,22,23,24,25,26,27,28,29,30,31,32,15,34,35,36,37,37,39,40,41,42,43,44,45,46,46,48,49,50,51,52,53,54,54,56,57,58,59,60,61,62,63,64,65,66,67,68,69,70,71,72,73,74,75,76,77,78,79,80,81,82,83,84,85,86,87,88,89,90,91,92,93,94,95,96,97,98,99,100,101,102,103,104,105,106,107,108,109,110,111,112,113,114,115,116,117,118,119,120,121,122,123,124,125,126,127,128,129,130,131,132,133,134,135,136,137,138,139,140,141,142,143,144,145,146,147,148,149,150,151,152,153,154,155,156,157,158,159,160,161,162,163,164,165,166,167,168,169,170,171,172,173,174,175,176,177,178,179,180,181,182,183,184,185,186,187,188,189,190,191,192]
[null,null,null,null,null,null,null,null,null,null,null,null,"主キー","圃場番号","栽培番号","収穫有無","シリアル番号","地区・団地名","圃場名","収穫日フラグ","作業終了フラグ","地番（都道府県）","地番（市区町村）","地番（地番）","生産地名","地積（㎡）","地権者名","フリガナ",null,"地積（㎡）","地図URL","圃場コメント","生産年度","作期番号","生産名称","収穫予定日","製品名","作物名","品種名","地積（㎡）","地積（㎡）","生産予定数量(kg)","地権者名","収穫調製者名","地権者名","購入者名","生産計画コメント","移植・直播更新時刻","移植・直播記録者名","移植･直播日","移植･直播種別","苗箱数（個）","播種量（Kg）","移植・直播作業員名","移植･直播コメント","移植・直播写真","堆肥更新時刻","堆肥記録者名","堆肥散布日","畜種","堆肥散布量(t/10a)","堆肥作業員名","堆肥コメント","堆肥写真","基肥更新時刻","基肥記録者名","基肥散布日","基肥肥料名","基肥散布量(kg/10a)","基肥作業員名","基肥コメント","基肥写真","追肥1更新時刻","追肥1記録者名","追肥1散布日","追肥1肥料名","追肥1散布量(kg/10a)","追肥1作業員名","追肥1コメント","追肥1写真","追肥2更新時刻","追肥2記録者名","追肥2散布日","追肥2肥料名","追肥2散布量(kg/10a)","追肥2作業員名","追肥2コメント","追肥2写真","除草1更新時刻","除草1記録者名","除草1散布日","除草1薬剤名","除草1散布量(kg/10a)","除草1作業員名","除草1コメント","除草1写真","除草2更新時刻","除草2記録者名","除草2散布日","除草2薬剤名","除草2散布量(kg/10a)","除草2作業員名","除草2コメント","除草2写真","殺虫1更新時刻","殺虫1記録者名","殺虫1散布日","殺虫1薬剤名","殺虫1散布量(kg/10a)","殺虫1作業員名","殺虫1コメント","殺虫1写真","殺虫2更新時刻","殺虫2記録者名","殺虫2散布日","殺虫2薬剤名","殺虫2散布量(kg/10a)","殺虫2作業員名","殺虫2コメント","殺虫2写真","収穫更新日時","収穫開始日","収穫終了日","収穫時刻","熟度更新時刻","熟度記録者名","収穫時熟度","収穫時熟度コメント","収穫時熟度写真","雑草更新時刻","雑草記録者名","雑草の発生程度","主な雑草の種類","雑草被害コメント","雑草被害写真","病害虫更新時刻","病害虫記録者名","病害虫の被害程度","主な病害虫の種類","病害虫被害コメント","病害虫被害写真","倒伏更新時刻","倒伏記録者名","倒伏の被害程度","倒伏被害コメント","倒伏被害写真","圃場状態更新時刻","圃場状態記録者名","圃場状態","圃場状態コメント","圃場状態写真","収穫梱包更新時刻","収穫梱包記録者名","専用収穫機体系","反転の有無","反転回数","予乾日数","ロール直径","ロール高さ","添加剤使用","添加剤名","収穫梱包作業員名","収穫梱包コメント","収穫梱包写真","密封更新時刻","密封記録者名","フィルム巻き数","密封作業員名","密封コメント","重量更新時刻","重量記録者名","平均重量(KG)","重量算出方法","重量作業員名","重量コメント","水分更新時刻","水分記録者名","水分量(％)","水分算出方法","水分作業員名","水分コメント","放射線更新時刻","放射線記録者名","最大放射線量(Bq)","放射線量作業員名","放射線量コメント","保管更新時刻","保管記録者名","保管ロール数","保管場所","保管作業員名","保管コメント","検品更新時刻","検品記録者名","保管場所","検品作業員名","出荷更新時刻","出荷記録者名","出荷先","出荷作業員名",null,null,"作業ユニット名"]
[1,"その他",null,null,null,null,null,null,null,null,null,null,1,1,2017,1,null,"那須の農",1,null,null,"栃木県",null,null,null,null,"その他",null,null,0,null,null,null,null,null,null,null,null,null,0,0,null,"その他",null,null,null,null,null,null,null,null,null,null,null,null,null,null,null,null,null,null,null,null,null,null,null,null,null,null,null,null,null,null,null,null,null,null,null,null,null,null,null,null,null,null,null,null,null,null,null,null,null,null,null,null,null,null,null,null,null,null,null,null,null,null,null,null,null,null,null,null,null,null,null,null,null,null,null,null,null,null,null,null,null,null,null,null,null,null,null,null,null,null,null,null,null,null,null,null,null,null,null,null,null,null,null,null,null,null,null,null,null,null,null,null,null,null,null,null,null,null,null,null,null,null,null,null,null,null,null,null,null,null,null,null,null,null,null,null,null,null,null,null,null,null,null,null,null,null,null,null,null,null,null,null,null,null,null,null,null,null,"那須の農1"]
[2,"千本松太郎",null,null,null,null,null,null,null,null,null,null,2,2,2017,1,null,"那須の農",1,null,null,"栃木県","那須町","大字寺子乙3215－1","那須町寺子乙",100,"圃場１","ﾎｼﾞｮｳ1",null,20,null,null,2017,1,"2016年度夏作-WCS用イネ",null,"稲発酵粗飼料","wcsイネ","たちすがた",20,20,null,"千本松太郎","那須の農","千本松太郎","--","--","--",null,null,null,"--",null,"--","--","--","--","--","--","--","--","--","--","--","--","--","--","--","--","--","--","--","--","--","--","--","--","--","--","--","--","--","--","--","--","--","--","--","--","--","--","--","--","--","--","--","--","--","--","--","--","--","--","--","--","--","--","--","--","--","--","--","--","--","--","--","--","--","--","--","--","--","--","--","--","--","--","--","--","--","--","--","--","--","--","--","--","--","--","--","--","--","--","--","--","--","--","--","--","--","--","--","--","--","--","--","--","--","--","--","--","--","--","--","--","--","--","--","--","--","--","--","--","--","--","--","--","--","--","--","--","--","--","--","--","--","--","--",4,"--","--","--","--","--","--","--","--","--","--","--","--","那須の農1","--","--"]
[3,"赤田太郎",null,null,null,null,null,null,null,null,null,null,3,3,2017,1,null,"那須の農",1,null,null,"栃木県","那須町","大字寺子乙3215－16","那須町寺子乙",10,"圃場２","ﾎｼﾞｮｳ2",null,10,null,null,2017,1,"2016年度夏作-WCS用イネ",null,"稲発酵粗飼料","wcsイネ","たちすがた",10,10,null,"赤田太郎","那須の農","赤田太郎",null,null,null,null,null,null,null,null,null,null,null,null,null,null,null,null,null,null,null,null,null,null,null,null,null,null,null,null,null,null,null,null,null,null,null,null,null,null,null,null,null,null,null,null,null,null,null,null,null,null,null,null,null,null,null,null,null,null,null,null,null,null,null,null,null,null,null,null,null,null,null,null,null,null,null,null,null,null,null,null,null,null,null,null,null,null,null,null,null,null,null,null,null,null,null,null,null,null,null,null,null,null,null,null,null,null,null,null,null,null,null,null,null,null,null,null,null,null,null,null,null,null,null,null,null,null,null,null,null,null,null,null,null,null,null,null,null,null,null,null,null,null,null,null,null,null,null,null,null,null,null,null,null,null,null,null,"那須の農1"]
[4,"乗瀬一",null,null,null,null,null,null,null,null,null,null,4,4,2017,1,null,"那須の農",1,null,null,"栃木県","那須町","大字寺子乙3215－1","那須町寺子乙",457.8,"圃場３","ﾎｼﾞｮｳ3",2017,100,null,null,2017,null,null,null,"稲発酵粗飼料","wcsイネ","たちすがた",100,100,null,"乗瀬一","那須の農","乗瀬一",null,null,null,null,null,null,null,null,null,null,null,null,null,null,null,null,null,null,null,null,null,null,null,null,null,null,null,null,null,null,null,null,null,null,null,null,null,null,null,null,null,null,null,null,null,null,null,null,null,null,null,null,null,null,null,null,null,null,null,null,null,null,null,null,null,null,null,null,null,null,null,null,null,null,null,null,null,null,null,null,null,null,null,null,null,null,null,null,null,null,null,null,null,null,null,null,null,null,null,null,null,null,null,null,null,null,null,null,null,null,null,null,null,null,null,null,null,null,null,null,null,null,null,null,null,null,null,null,null,null,null,null,null,null,null,null,null,null,null,null,null,null,null,null,null,null,null,null,null,null,null,null,null,null,null,null,"那須の農1"]
[1,"千本松太郎",null,null,null,null,null,null,null,null,null,null,5,1,2018,1,null,"那須の農",1,null,null,"栃木県","那須町","大字寺子乙3215－2","那須町寺子乙",246.5,"千本松太郎","ｾﾝﾎﾞﾝﾏﾂﾀﾛｳ",2018,33,null,null,2018,1,null,null,"稲発酵粗飼料","wcsイネ","たちすがた",33,33,null,"千本松太郎","那須の農","千本松太郎",null,null,null,null,null,null,null,null,null,null,"無",null,null,null,null,null,null,null,"無",null,null,null,null,null,null,null,"無",null,null,null,null,null,null,null,"無",null,null,null,null,null,null,null,"無",null,null,null,null,null,null,null,"無",null,null,null,null,null,null,null,"無",null,null,null,null,null,null,null,"無",null,null,null,null,null,null,null,"無",null,null,null,null,null,null,null,null,"無",null,null,null,null,null,"無",null,null,1,1,null,"無",null,null,1,null,"無",null,null,null,null,null,null,null,null,null,null,null,null,null,null,null,null,null,null,null,null,null,null,null,null,null,null,null,null,null,null,null,null,null,null,null,null,null,null,null,null,null,null,9,null,null,null,null,null,null,null,null,null,null,null,null,"那須の農1"]
[2,"赤田太郎",null,null,null,null,"赤田太郎",null,null,null,null,null,6,2,2018,1,null,"那須の農",1,null,null,"栃木県","那須町","大字寺子乙3309-5","那須町大字寺子乙3309-5",31,"赤田太郎","ｱｶﾀﾞﾀﾛｳ",2018,20,null,null,2018,1,null,null,"稲発酵粗飼料","wcsイネ","たちすがた",20,20,null,"赤田太郎","那須の農","赤田太郎",null,null,null,null,null,null,null,null,null,null,"無",null,null,null,null,null,null,null,"無",null,null,null,null,null,null,null,"無",null,null,null,null,null,null,null,"無",null,null,null,null,null,null,null,"無",null,null,null,null,null,null,null,"無",null,null,null,null,null,null,null,"無",null,null,null,null,null,null,null,"無",null,null,null,null,null,null,null,"無",null,null,null,null,null,null,null,null,"無",null,null,null,null,null,"無",null,null,null,null,null,"無",null,null,null,null,"無",null,null,null,null,"無",null,null,null,null,null,null,null,null,null,null,null,null,"無",null,null,null,null,null,null,null,null,null,null,null,null,null,null,null,null,null,null,null,null,null,null,null,null,4,null,null,null,null,null,null,null,null,null,null,null,null,"那須の農1"]
[3,"乗瀬一",null,null,null,null,1,null,null,null,null,null,7,3,2018,1,null,"那須の農",1,null,null,"栃木県","那須町","大字寺子乙　2916","那須町大字寺子乙　2916",60,"乗瀬一","ﾉﾘｾﾊｼﾞﾒ",2018,30,null,null,2018,1,null,null,"稲発酵粗飼料","wcsイネ","たちすがた",30,30,null,"乗瀬一","那須の農","乗瀬一",null,null,null,null,null,null,null,null,null,null,"無",null,null,null,null,null,null,null,"無",null,null,null,null,null,null,null,"無",null,null,null,null,null,null,null,"無",null,null,null,null,null,null,null,"無",null,null,null,null,null,null,null,"無",null,null,null,null,null,null,null,"無",null,null,null,null,null,null,null,"無",null,null,null,null,null,null,null,"無",null,null,null,null,null,null,null,null,"無",null,null,null,null,null,"無",null,null,null,null,null,"無",null,null,null,null,"無",null,null,null,null,"無",null,null,null,null,null,null,null,null,null,null,null,null,"無",null,null,null,null,null,null,null,null,null,null,null,null,null,null,null,null,null,null,null,null,null,null,null,null,4,null,null,null,null,null,null,null,null,null,null,null,null,"那須の農1"]
[null,null,null,null,null,null,0]
[]
[null,null,null,null,null,null,"2-17-2021-赤田太郎-1"]
[null,null,null,null,null,null,17]

{"sheet":"Sheet6","index":91,"n_rows":5,"n_cols":192,"rows_kept":5,"cut":false,"hidden":true,"merged":[]}
[1,2,3,4,5,6,7,8,8,10,11,12,13,14,15,16,17,14,19,20,21,22,23,24,25,26,27,14,14,30,15,32,15,34,35,36,37,37,39,40,41,42,43,44,45,46,46,48,49,50,51,52,53,54,54,56,57,58,59,60,61,62,63,64,65,66,67,68,69,70,71,72,73,74,75,76,77,78,79,80,81,82,83,84,85,86,87,88,89,90,91,92,93,94,95,96,97,98,99,100,101,102,103,104,105,106,107,108,109,42934,null,1,113,114,1,116,117,118,119,1,0,122,123,124,125,1,1,128,129,130,131,1,133,134,135,136,1,138,139,140,141,142,143,144,145,146,147,148,149,150,151,152,153,154,155,156,157,158,159,160,161,162,163,164,165,166,167,168,169,170,171,172,173,174,175,176,177,178,179,180,181,182,183,184,185,186,187,188,189,190,191,192]
[16,1,2021,1,null,"那須の農",1,null,null,"栃木県","那須町","大字寺子乙3215－1","那須町寺子乙",460,"千本松太郎","ｾﾝﾎﾞﾝﾏﾂﾀﾛｳ",2021,100]
[17,2,2021,1,null,"那須の農",1,null,null,"栃木県","那須町","大字寺子乙3215－2","那須町寺子乙",215.4,"赤田太郎","ｱｶﾀﾞﾀﾛｳ",2021,33]
[18,3,2021,1,null,"那須の農",1,null,null,"栃木県","那須町","大字寺子乙3309-5","那須町大字寺子乙3309-5",31,"乗瀬一","ﾉﾘｾﾊｼﾞﾒ",2021,20]
[19,4,2021,1,null,"那須の農",2,null,null,null,null,null,null,65,"千本松太郎","ｾﾝﾎﾞﾝﾏﾂﾀﾛｳ",2021]

{"sheet":"Sheet11","index":92,"n_rows":11,"n_cols":204,"rows_kept":11,"cut":false,"hidden":false,"merged":[]}
[null,null,null,null,null,null,null,null,null,null,null,null,1,2,3,4,5,6,7,8,8,10,11,12,13,14,15,16,17,14,19,20,21,22,23,24,25,26,27,14,14,30,15,32,15,34,35,36,37,37,39,40,41,42,43,44,45,46,46,48,49,50,51,52,53,54,54,56,57,58,59,60,61,62,63,64,65,66,67,68,69,70,71,72,73,74,75,76,77,78,79,80,81,82,83,84,85,86,87,88,89,90,91,92,93,94,95,96,97,98,99,100,101,102,103,104,105,106,107,108,109,42934,null,1,113,114,1,116,117,118,119,1,0,122,123,124,125,1,1,128,129,130,131,1,133,134,135,136,1,138,139,140,141,142,143,144,145,146,147,148,149,150,151,152,153,154,155,156,157,158,159,160,161,162,163,164,165,166,167,168,169,170,171,172,173,174,175,176,177,178,179,180,181,182,183,184,185,186,187,188,189,190,191,192]
[null,null,null,null,null,null,null,null,null,null,null,null,"名称","圃場台帳",null,null,null,null,195,"名称",true,null,null,null,null,null,null,null,null,null,null,null,null,null,null,null,null,null,null,null,null,null,null,null,null,null,null,null,null,null,null,null,null,null,null,null,null,null,null,null,null,null,null,null,null,null,null,null,null,null,null,null,null,null,null,null,null,null,null,null,null,null,null,null,null,null,null,null,null,null,null,null,null,null,null,null,null,null,null,null,null,null,null,null,null,null,null,null,null,null,null,null,null,null,null,null,null,null,null,null,null,42934,null,0,null,null,0,null,null,null,null,0,0,null,null,null,null,0,0,null,null,null,null,0,null,null,null,null,0,null,null,null,null,null,null,3,5]
[null,null,null,null,null,null,null,null,null,null,null,null,"1",2,3,4,5,6,7,8,9,10,11,12,13,14,15,16,17,14,19,20,21,22,23,24,25,26,27,28,29,30,31,32,15,34,35,36,37,37,39,40,41,42,43,44,45,46,46,48,49,50,51,52,53,54,54,56,57,58,59,60,61,62,63,64,65,66,67,68,69,70,71,72,73,74,75,76,77,78,79,80,81,82,83,84,85,86,87,88,89,90,91,92,93,94,95,96,97,98,99,100,101,102,103,104,105,106,107,108,109,110,111,112,113,114,115,116,117,118,119,120,121,122,123,124,125,126,127,128,129,130,131,132,133,134,135,136,137,138,139,140,141,142,143,144,145,146,147,148,149,150,151,152,153,154,155,156,157,158,159,160,161,162,163,164,165,166,167,168,169,170,171,172,173,174,175,176,177,178,179,180,181,182,183,184,185,186,187,188,189,190,191,192]
[null,null,null,null,null,null,null,null,null,null,null,null,"主キー","圃場番号","栽培番号","収穫有無","シリアル番号","地区・団地名","圃場名","収穫日フラグ","作業終了フラグ","地番（都道府県）","地番（市区町村）","地番（地番）","生産地名","地積（㎡）","地権者名","フリガナ",null,"地積（㎡）","地図URL","圃場コメント","生産年度","作期番号","生産名称","収穫予定日","製品名","作物名","品種名","地積（㎡）","地積（㎡）","生産予定数量(kg)","地権者名","収穫調製者名","地権者名","購入者名","生産計画コメント","移植・直播更新時刻","移植・直播記録者名","移植･直播日","移植･直播種別","苗箱数（個）","播種量（Kg）","移植・直播作業員名","移植･直播コメント","移植・直播写真","堆肥更新時刻","堆肥記録者名","堆肥散布日","畜種","堆肥散布量(t/10a)","堆肥作業員名","堆肥コメント","堆肥写真","基肥更新時刻","基肥記録者名","基肥散布日","基肥肥料名","基肥散布量(kg/10a)","基肥作業員名","基肥コメント","基肥写真","追肥1更新時刻","追肥1記録者名","追肥1散布日","追肥1肥料名","追肥1散布量(kg/10a)","追肥1作業員名","追肥1コメント","追肥1写真","追肥2更新時刻","追肥2記録者名","追肥2散布日","追肥2肥料名","追肥2散布量(kg/10a)","追肥2作業員名","追肥2コメント","追肥2写真","除草1更新時刻","除草1記録者名","除草1散布日","除草1薬剤名","除草1散布量(kg/10a)","除草1作業員名","除草1コメント","除草1写真","除草2更新時刻","除草2記録者名","除草2散布日","除草2薬剤名","除草2散布量(kg/10a)","除草2作業員名","除草2コメント","除草2写真","殺虫1更新時刻","殺虫1記録者名","殺虫1散布日","殺虫1薬剤名","殺虫1散布量(kg/10a)","殺虫1作業員名","殺虫1コメント","殺虫1写真","殺虫2更新時刻","殺虫2記録者名","殺虫2散布日","殺虫2薬剤名","殺虫2散布量(kg/10a)","殺虫2作業員名","殺虫2コメント","殺虫2写真","収穫更新日時","収穫開始日","収穫終了日","収穫時刻","熟度更新時刻","熟度記録者名","収穫時熟度","収穫時熟度コメント","収穫時熟度写真","雑草更新時刻","雑草記録者名","雑草の発生程度","主な雑草の種類","雑草被害コメント","雑草被害写真","病害虫更新時刻","病害虫記録者名","病害虫の被害程度","主な病害虫の種類","病害虫被害コメント","病害虫被害写真","倒伏更新時刻","倒伏記録者名","倒伏の被害程度","倒伏被害コメント","倒伏被害写真","圃場状態更新時刻","圃場状態記録者名","圃場状態","圃場状態コメント","圃場状態写真","収穫梱包更新時刻","収穫梱包記録者名","専用収穫機体系","反転の有無","反転回数","予乾日数","ロール直径","ロール高さ","添加剤使用","添加剤名","収穫梱包作業員名","収穫梱包コメント","収穫梱包写真","密封更新時刻","密封記録者名","フィルム巻き数","密封作業員名","密封コメント","重量更新時刻","重量記録者名","平均重量(KG)","重量算出方法","重量作業員名","重量コメント","水分更新時刻","水分記録者名","水分量(％)","水分算出方法","水分作業員名","水分コメント","放射線更新時刻","放射線記録者名","最大放射線量(Bq)","放射線量作業員名","放射線量コメント","保管更新時刻","保管記録者名","保管ロール数","保管場所","保管作業員名","保管コメント","検品更新時刻","検品記録者名","保管場所","検品作業員名","出荷更新時刻","出荷記録者名","出荷先","出荷作業員名",null,null,"作業ユニット名"]
[1,2017,null,null,null,null,null,null,null,null,null,null,1,1,2017,1,null,"那須の農",1,null,null,"栃木県",null,null,null,null,"その他",null,null,0,null,null,null,null,null,null,null,null,null,0,0,null,"その他",null,null,null,null,null,null,null,null,null,null,null,null,null,null,null,null,null,null,null,null,null,null,null,null,null,null,null,null,null,null,null,null,null,null,null,null,null,null,null,null,null,null,null,null,null,null,null,null,null,null,null,null,null,null,null,null,null,null,null,null,null,null,null,null,null,null,null,null,null,null,null,null,null,null,null,null,null,null,null,null,null,null,null,null,null,null,null,null,null,null,null,null,null,null,null,null,null,null,null,null,null,null,null,null,null,null,null,null,null,null,null,null,null,null,null,null,null,null,null,null,null,null,null,null,null,null,null,null,null,null,null,null,null,null,null,null,null,null,null,null,null,null,null,null,null,null,null,null,null,null,null,null,null,null,null,null,null,null,"那須の農1"]
[1,2018,null,null,null,null,null,null,null,null,null,null,5,1,2018,1,null,"那須の農",1,null,null,"栃木県","那須町","大字寺子乙3215－2","那須町寺子乙",246.5,"千本松太郎","ｾﾝﾎﾞﾝﾏﾂﾀﾛｳ",2018,33,null,null,2018,1,null,null,"稲発酵粗飼料","wcsイネ","たちすがた",33,33,null,"千本松太郎","那須の農","千本松太郎",null,null,null,null,null,null,null,null,null,null,"無",null,null,null,null,null,null,null,"無",null,null,null,null,null,null,null,"無",null,null,null,null,null,null,null,"無",null,null,null,null,null,null,null,"無",null,null,null,null,null,null,null,"無",null,null,null,null,null,null,null,"無",null,null,null,null,null,null,null,"無",null,null,null,null,null,null,null,"無",null,null,null,null,null,null,null,null,"無",null,null,null,null,null,"無",null,null,1,1,null,"無",null,null,1,null,"無",null,null,null,null,null,null,null,null,null,null,null,null,null,null,null,null,null,null,null,null,null,null,null,null,null,null,null,null,null,null,null,null,null,null,null,null,null,null,null,null,null,null,9,null,null,null,null,null,null,null,null,null,null,null,null,"那須の農1"]
[1,2019,null,null,null,null,null,null,null,null,null,null,8,1,2019,1,null,"那須の農",1,null,null,"栃木県","那須町","大字寺子乙3215－1","那須町寺子乙",460,"千本松太郎","ｾﾝﾎﾞﾝﾏﾂﾀﾛｳ",2019,100,null,null,2019,null,null,null,"稲発酵粗飼料","wcsイネ","たちすがた",100,100,null,"千本松太郎","那須の農","千本松太郎",null,null,null,null,null,null,null,null,null,null,null,null,null,null,null,null,null,null,null,null,null,null,null,null,null,null,null,null,null,null,null,null,null,null,null,null,null,null,null,null,null,null,null,null,null,null,null,null,null,null,null,null,null,null,null,null,null,null,null,null,null,null,null,null,null,null,null,null,null,null,null,null,null,null,null,null,null,null,null,null,null,null,null,null,null,null,null,null,null,null,null,null,null,null,null,null,null,null,null,null,null,null,null,null,null,null,null,null,null,null,null,null,null,null,null,null,null,null,null,null,null,null,null,null,null,null,null,null,null,null,null,null,null,null,null,null,null,null,null,null,null,null,null,null,null,null,null,null,null,null,null,null,null,null,null,null,"那須の農1"]
[1,2020,null,null,null,null,null,null,null,null,null,null,11,1,2020,1,null,"那須の農",1,null,null,"栃木県",null,null,null,null,"その他",null,2020,0,null,null,2020,null,null,null,null,null,null,0,0,null,"その他",null,null,null,null,null,null,null,null,null,null,null,null,null,null,null,null,null,null,null,null,null,null,null,null,null,null,null,null,null,null,null,null,null,null,null,null,null,null,null,null,null,null,null,null,null,null,null,null,null,null,null,null,null,null,null,null,null,null,null,null,null,null,null,null,null,null,null,null,null,null,null,null,null,null,null,null,null,null,null,null,null,null,null,null,null,null,null,null,null,null,null,null,null,null,null,null,null,null,null,null,null,null,null,null,null,null,null,null,null,null,null,null,null,null,null,null,null,null,null,null,null,null,null,null,null,null,null,null,null,null,null,null,null,null,null,null,null,null,null,null,null,null,null,null,null,null,null,null,null,null,null,null,null,null,null,null,null,null,"那須の農1"]
[1,2021,null,null,null,null,null,null,null,null,null,null,18,1,2021,1,null,"那須の農",1,null,null,"栃木県",null,null,null,null,"その他",null,2021,0,null,null,2021,null,null,null,null,null,null,0,0,null,"その他",null,null,null,null,null,null,null,null,null,null,null,null,null,null,null,null,null,null,null,null,null,null,null,null,null,null,null,null,null,null,null,null,null,null,null,null,null,null,null,null,null,null,null,null,null,null,null,null,null,null,null,null,null,null,null,null,null,null,null,null,null,null,null,null,null,null,null,null,null,null,null,null,null,null,null,null,null,null,null,null,null,null,null,null,null,null,null,null,null,null,null,null,null,null,null,null,null,null,null,null,null,null,null,null,null,null,null,null,null,null,null,null,null,null,null,null,null,null,null,null,null,null,null,null,null,null,null,null,null,null,null,null,null,null,null,null,null,null,null,null,null,null,null,null,null,null,null,null,null,null,null,null,null,null,null,null,null,null,"那須の農1"]
[null,null,null,null,null,null,2021]
[null,null,null,null,null,null,4]

{"sheet":"Sheet14","index":93,"n_rows":7,"n_cols":192,"rows_kept":7,"cut":false,"hidden":false,"merged":[]}
[1,2,3,4,5,6,7,8,8,10,11,12,13,14,15,16,17,14,19,20,21,22,23,24,25,26,27,14,14,30,15,32,15,34,35,36,37,37,39,40,41,42,43,44,45,46,46,48,49,50,51,52,53,54,54,56,57,58,59,60,61,62,63,64,65,66,67,68,69,70,71,72,73,74,75,76,77,78,79,80,81,82,83,84,85,86,87,88,89,90,91,92,93,94,95,96,97,98,99,100,101,102,103,104,105,106,107,108,109,42934,null,1,113,114,1,116,117,118,119,1,0,122,123,124,125,1,1,128,129,130,131,1,133,134,135,136,1,138,139,140,141,142,143,144,145,146,147,148,149,150,151,152,153,154,155,156,157,158,159,160,161,162,163,164,165,166,167,168,169,170,171,172,173,174,175,176,177,178,179,180,181,182,183,184,185,186,187,188,189,190,191,192]
[17,2,2021,1,null,"那須の農",1,null,null,"栃木県","那須町","大字寺子乙3215－2","那須町寺子乙",215.4,"赤田太郎","ｱｶﾀﾞﾀﾛｳ",2021,33]
[]
[]
[]
[]
[null,null,null,null,null,null,null,null,null,null,null,null,null,null,null,null,null,null,null,null,null,null,null,null,null,null,null,null,null,null,null,null,null,null,null,null,null,null,null,null,null,null,null,null,null,null,null,null,null,null,null,null,null,null,null,null,null,null,null,null,null,null,null,null,null,null,null,null,null,null,null,null,null,null,null,null,null,null,null,null,null,null,null,null,null,null,null,null,null,null,null,null,null,null,null,null,null,null,null,null,null,null,null,null,null,null,null,null,null,null,null,null,null,null,null,null,null,null,null,null,null,null,null,null,null,null,null,null,null,null,null,null,null,null,null,null,null,null,null,null,null,null,null,null,null,null,null,null,null,null,null,null,null,null,null,null,null,null,null,null,null,null,null,null,null,null,null,null,null,null,null,null,null,null,null,null,null,null,null,null,null,null,null,null,null,null,null,null,null,"2-17-2021-赤田太郎-1"]

{"sheet":"Sheet7","index":94,"n_rows":66,"n_cols":2,"rows_kept":66,"cut":false,"hidden":false,"merged":[]}
["作業者名","フリガナ"]
["阿久津孝","ｱｸﾂﾀｶｼ"]
["阿久津宣之","ｱｸﾂﾖｼﾕｷ"]
["有本徳彦","ｱﾘﾓﾄﾉﾘﾋｺ"]
["磯洋和","ｲｿﾋﾛｶｽﾞ"]
["井上一雄","ｲﾉｳｴｶｽﾞｵ"]
["今　牧場","ｲﾏﾎﾞｸｼﾞｮｳ"]
["薄井幸雄","ｳｽｲｻﾁｵ"]
["遠藤清志","ｴﾝﾄﾞｳｷﾖｼ"]
["大島正一","ｵｵｼﾏｼｮｳｲﾁ"]
["大関一男","ｵｵｾﾞｷｶｽﾞｵ"]
["大野文博","ｵｵﾉﾌﾐﾋﾛ"]
["大平岳史","ｵｵﾋﾗﾀｹｼ"]
["岡田牧場","ｵｶﾀﾞﾎﾞｸｼﾞｮｳ"]
["小野孝之","ｵﾉﾀｶﾕｷ"]
["小野幹夫","ｵﾉﾐｷｵ"]
["神立正夫","ｶﾐﾀﾁﾏｻｵ"]
["川上哲男","ｶﾜｶﾐﾃﾂｵ"]
["草山誠","ｸｻﾔﾏﾏｺﾄ"]
["熊田茂","ｸﾏﾀﾞｼｹﾞﾙ"]
["熊田孝","ｸﾏﾀﾞﾀｶｼ"]
["熊谷貞二","ｸﾏﾀﾆﾃｲｼﾞ"]
["熊田正和","ｸﾏﾀﾞﾏｻｶｽﾞ"]
["斉藤章","ｻｲﾄｳｱｷﾗ"]
["斉藤拓巳","ｻｲﾄｳﾀｸﾐ"]
["斉藤博敏","ｻｲﾄｳﾋﾛﾄｼ"]
["五月女文哉","ｻｵﾄﾒﾌﾐﾔ"]
["坂内美明","ｻｶｳﾁﾖｼｱｷ"]
["佐久間隼人","ｻｸﾏﾊﾔﾄ"]
["笹沼正一","ｻｻﾇﾏｼｮｳｲﾁ"]
["佐藤正光","ｻﾄｳﾐﾂﾋﾛ"]
["澤田浩孝","ｻﾜﾀﾞﾋﾛﾀｶ"]
["自社圃場","ｼﾞｼｬﾎｼﾞｮｳ"]
["杉本茂雄","ｽｷﾞﾓﾄｼｹﾞｵ"]
["相馬進　","ｿｳﾏｽｽﾑ"]
["相馬幸男","ｿｳﾏﾕｷｵ"]
["高久一雄","ﾀｶｸｶｽﾞｵ"]
["高久文芳","ﾀｶｸﾌﾐﾖｼ"]
["高橋一雄","ﾀｶﾊｼｶｽﾞｵ"]
["田代和一","ﾀｼﾛｶｽﾞｲﾁ"]
["槌江栄作","ﾂﾁｴｴｲｻｸ"]
["角田牧場","ﾂﾉﾀﾞﾎﾞｸｼﾞｮｳ"]
["中島克己","ﾅｶｼﾞﾏｶﾂﾐ"]
["中曽根秀治","ﾅｶｿﾈﾋﾃﾞｼﾞ"]
["中野謙一","ﾅｶﾉｹﾝｲﾁ"]
["中野　努","ﾅｶﾉﾂﾄﾑ"]
["沼野井静雄","ﾇﾏﾉｲｼｽﾞｵ"]
["林武信","ﾊﾔｼﾀｹﾉﾌﾞ"]
["人見二三夫","ﾋﾄﾐｶｽﾞｵ"]
["人見孝子","ﾋﾄﾐﾀｶｺ"]
["人見忠男","ﾋﾄﾐﾀﾀﾞｵ"]
["人見正光","ﾋﾄﾐﾏｻﾐﾂ"]
["藤田政宣","ﾌｼﾞﾀﾏｻﾋﾛ"]
["益子軍寿","ﾏｼｺ"]
["南條弘充","ﾐﾅﾐｼﾞｮｳﾋﾛｱﾂ"]
["見山貴生","ﾐﾔﾏﾀｶｵ"]
["室井歳夫","ﾑﾛｲﾄｼｵ"]
["桃井兼夫","ﾓﾓｲｶﾈｵ"]
["矢野目国男","ﾔﾉﾒｸﾆｵ"]
["矢村和憲","ﾔﾑﾗｶｽﾞﾉﾘ"]
["横山英樹","ﾖｺﾔﾏﾋﾃﾞｷ"]
["吉成亀美雄","ﾖｼﾅﾘｶﾐｵ"]
["和久邦宏","ﾜｸｸﾆﾋﾛ"]
["和久集落営農組合","ﾜｸｼｭｳﾗｸｴｲﾉｳ"]
["渡辺祐一","ﾜﾀﾅﾍﾞﾕｳｲﾁ"]
["和田吉幸","ﾜﾀﾞﾖｼﾕｷ"]

{"sheet":"sqlite","index":95,"n_rows":19,"n_cols":3,"rows_kept":19,"cut":false,"hidden":false,"merged":[[11,1,11,11]]}
[]
[null,"SQLiteにアクセス"]
[null,"2017-04-25"]
[]
[]
[]
[]
[null,"http://wiashia.blog.so-net.ne.jp/2014-04-02"]
[]
[null,"vbRichClient 利用"]
[]
[null,"select * from [crop_master] "]
[]
[null,"C:\\gisdata\\management_db.sqlite"]
[]
[null,"VBE　ツール＞＞参照設定　vbRichClient5 をチェック　"]
[]
[]
[null,null,"select id from [crop_master] where crop = '水稲'"]

{"sheet":"Label_serial","index":96,"n_rows":35,"n_cols":6,"rows_kept":35,"cut":false,"hidden":false,"merged":[]}
["製品ラベルシリアル番号管理"]
["2017年度から"]
[]
["主キー","シリアル番号","印刷フラグ","圃場番号","収穫日時","生産個数"]
[1,"nasu-000001",1]
[{"$f":"A5+1","v":2},"nasu-000002",1]
[{"$f":"A6+1","v":3},"nasu-000003",1]
[4,"nasu-000004",1]
[5,"nasu-000005",1]
[6,"nasu-000006",1]
[7,"nasu-000007",1]
[8,"nasu-000008",1]
[9,"nasu-000009",1]
[10,"nasu-000010",1]
[11,"nasu-000011",1]
[12,"nasu-000012",1]
[13,"nasu-000013",1]
[14,"nasu-000014",1]
[15,"nasu-000015",1]
[16,"nasu-000016",1]
[17,"nasu-000017",1]
[18,"nasu-000018",1]
[19,"nasu-000019",1]
[20,"nasu-000020",1]
[21,"nasu-000021",0]
[22,"nasu-000022",0]
[23,"nasu-000023",0]
[24,"nasu-000024",0]
[25,"nasu-000025",0]
[26,"nasu-000026",0]
[27,"nasu-000027",0]
[28,"nasu-000028",0]
[29,"nasu-000029",0]
[30,"nasu-000030",0]
[31,"nasu-000031",0]

{"sheet":"croplist","index":97,"n_rows":25,"n_cols":8,"rows_kept":25,"cut":false,"hidden":false,"merged":[]}
["分類","作物リスト　2021/01"]
["名称","作物リスト　2021/01"]
["ファイル名","croplist"]
["説明","圃場選択条件(収穫・運搬)一覧"]
[1,2,3,4,5,6,7,8]
["項目番号","表示有無","初期表示","データ名","リスト表示名","説明","備考"]
[1,1,1,"---","▼選択してください"]
[2,1,null,"wcsイネ",null,null,null,1]
[3,1,null,"トウモロコシ",null,null,null,1]
[4,1,null,"牧草",null,null,null,1]
[5,1,null,"wcs麦",null,null,null,1]
[6,1,null,"イアコーン",null,null,null,1]
[8,1,null,"スーダン",null,null,null,1]
[9,1,null,"ソルガム",null,null,null,1]
[10]
[11]
[12]
[13]
[14]
[15]
[16]
[17]
[18]
[19]
[20]